Workbook

Sheet Begrüßung
C19: Hilfsprogramm zur Berechnung der Punkteanzahl auf Niveau B2 GERS
C22: SRDP Rechner V4.0

Sheet Schritte_1_2_3
A1: Liebe Kollegin, lieber Kollege!
A2: Die vorliegende Excel Datei soll Ihnen dabei helfen, die mit der Beurteilung der standardisierten Reifeprüfung, bzw. Reife- und Diplomprüfung verbundenen notwendigen Berechnungen auf ein Mindestmaß zu reduzieren. Gehen Sie dazu die Schritte der Reihe nach durch.
A7: 1. Schritt:
A8: Drücken Sie die "Test" - Schaltfläche. ACHTUNG: Wenn Sie die Meldung "Test bestanden" nicht erhalten, müssen Sie die Makrosicherheit auf eine niedrigere Stufe stellen. Lesen Sie dazu die Datei "LIESMICH.DOC" .
A14: 2. Schritt:
A15: Legen Sie die Parameter für Ihre Prüfung und Ihre Schule fest.
A17: BG/BRG MUSTERSCHULE | B17: - Name der Schule
A18: Matura Haupttermin | B18: - Art der Prüfung
A19: Schuljahr 2013/ 2014 | B19: - Schuljahr/Datum
A20: 8A, Mag. Obermeier Eva | B20: - Gruppe/LehrerIn
A23: 3. Schritt:
A24: Wechseln Sie zum Tabellenblatt "Berechnen" und stellen Sie sicher, dass die Felder "Zu vergebende Punkte" und "Wertigkeit" richtig eingestellt sind. Fahren Sie danach mit Schritt 4 im Tabellenblatt „Schritte_4_5_6“ fort.
A30: Mögliche Fehlermeldungen, Anpassungswünsche, Fragen, etc. bitte an
A31: Ansprechpartner beim BIFIE

Sheet Schritte_4_5_6
A1: ="Bereits angelegt: " & COUNTA(NAME) -> Bereits angelegt: 12 | C1: 4. Schritt:
A2: NAME01 | B2: 1 | C2: Legen Sie die Namen (max. 31 Zeichen) Ihrer Schüler/Schülerinnen im gelben Bereich fest. (max. 46) Format: Familienname Vorname
A3: NAME02 | B3: 2
A4: NAME03 | B4: 3
A5: NAME04 | B5: 4
A6: NAME05 | B6: 5
A7: NAME06 | B7: 6
A8: NAME07 | B8: 7
A9: NAME08 | B9: 8 | C9: 5. Schritt:
A10: NAME09 | B10: 9 | C10: Wenn Sie alle Schüler/Schülerinnen angelegt und das Tabellenblatt "Berechnen" kontrolliert haben, drücken Sie die Schaltfläche ERZEUGEN.
A11: NAME10 | B11: 10
A12: NAME11 | B12: 11
A13: NAME12 | B13: 12
B14: 13
B15: 14
B16: 15
B17: 16
B18: 17
B19: 18 | C19: 6. Schritt:
B20: 19 | C20: Wechseln Sie nun zu den einzelnen Tabellenblättern mit den Namen Ihrer Schüler/Schülerinnen und legen Sie deren Punkte fest.
B21: 20
B22: 21
B23: 22
B24: 23
B25: 24
B26: 25
B27: 26
B28: 27
B29: 28
B30: 29
B31: 30
B32: 31
B33: 32
B34: 33
B35: 34
B36: 35
B37: 36
B38: 37
B39: 38
B40: 39
B41: 40
B42: 41
B43: 42
B44: 43
B45: 44
B46: 45
B47: 46
B54: 0 | C54: 1 | D54: 0 | E54: 0
B55: 1 | C55: 2 | D55: 1 | E55: 1
B56: 2 | C56: 3 | D56: 2 | E56: 2
B57: 3 | C57: 4 | D57: 3 | E57: 3
B58: 4 | C58: 5 | D58: 4 | E58: 4
B59: 5 | C59: 6 | D59: 5 | E59: 5
B60: 6 | C60: 7 | D60: 6 | E60: 6
B61: 7 | C61: 8 | D61: 7 | E61: 7
B62: 8 | C62: 9 | D62: 8 | E62: 8
B63: 9 | C63: 10 | D63: 9 | E63: 9
B64: 10 | C64: 11 | D64: 10 | E64: 10
B65: 11 | C65: 12 | D65: 11 | E65: 11
B66: 12 | C66: 13 | D66: 12 | E66: 11.111111
B67: 12.5 | C67: 14 | D67: 13 | E67: 12
B68: 13 | C68: 15 | D68: 14 | E68: 12.5
B69: 14 | C69: 16 | D69: 15 | E69: 13
B70: 15 | C70: 17 | D70: 16 | E70: 14
B71: 16 | C71: 18 | D71: 17 | E71: 15
B72: 17 | C72: 19 | D72: 18 | E72: 16
B73: 18 | C73: 20 | D73: 19 | E73: 16.666667
B74: 19 | C74: 21 | D74: 20 | E74: 17
B75: 20 | C75: 22 | D75: 21 | E75: 18
B76: 21 | C76: 23 | D76: 22 | E76: 19
B77: 22 | C77: 24 | D77: 23 | E77: 20
B78: 23 | C78: 25 | D78: 24 | E78: 21
B79: 24 | C79: 26 | D79: 25 | E79: 22
B80: 25 | C80: 27 | D80: 26 | E80: 23
B81: 26 | C81: 28 | D81: 27 | E81: 24
B82: 27 | C82: 29 | D82: 28 | E82: 25
B83: 28 | C83: 30 | D83: 29 | E83: 26
B84: 29 | C84: 31 | D84: 30 | E84: 27
B85: 30 | C85: 32 | D85: 31 | E85: 28
B86: 31 | C86: 33 | D86: 32 | E86: 29
B87: 32 | C87: 34 | D87: 33 | E87: 30
B88: 33 | C88: 35 | D88: 34 | E88: 31
B89: 34 | C89: 36 | D89: 35 | E89: 32
B90: 35 | C90: 37 | D90: 36 | E90: 33
B91: 36 | C91: 38 | D91: 37 | E91: 33.333333
B92: 37 | C92: 39 | D92: 38 | E92: 34
B93: 38 | C93: 40 | D93: 39 | E93: 35
B94: 39 | C94: 41 | D94: 40 | E94: 36
B95: 40 | C95: 42 | D95: 41 | E95: 37
B96: 41 | C96: 43 | D96: 42 | E96: 38
B97: 42 | C97: 44 | D97: 43 | E97: 39
B98: 43 | C98: 45 | D98: 44 | E98: 40
B99: 44 | C99: 46 | D99: 45 | E99: 41
B100: 45 | C100: 47 | D100: 46 | E100: 42
B101: 46 | C101: 48 | D101: 47 | E101: 43
B102: 47 | C102: 49 | D102: 48 | E102: 44
B103: 48 | C103: 50 | D103: 49 | E103: 45
B104: 49 | C104: 51 | D104: 50 | E104: 46
B105: 50 | C105: 52 | D105: 51 | E105: 47
B106: 51 | C106: 53 | D106: 52 | E106: 48
B107: 52 | C107: 54 | D107: 53 | E107: 49
B108: 53 | C108: 55 | D108: 54 | E108: 50
B109: 54 | C109: 56 | D109: 55 | E109: 51
B110: 55 | C110: 57 | D110: 56 | E110: 52
B111: 56 | C111: 58 | D111: 57 | E111: 53
B112: 57 | C112: 59 | D112: 58 | E112: 54
B113: 58 | C113: 60 | D113: 59 | E113: 55
B114: 59 | C114: 61 | D114: 60 | E114: 56
B115: 60 | C115: 62 | D115: 61 | E115: 57
B116: 61 | C116: 63 | D116: 62 | E116: 58
B117: 62 | C117: 64 | D117: 63 | E117: 59
B118: 63 | C118: 65 | D118: 64 | E118: 60
B119: 64 | C119: 66 | D119: 65 | E119: 61
B120: 65 | C120: 67 | D120: 66 | E120: 62
B121: 66 | C121: 68 | D121: 67 | E121: 63
B122: 67 | C122: 69 | D122: 68 | E122: 64
B123: 68 | C123: 70 | D123: 69 | E123: 65
B124: 69 | C124: 71 | D124: 70 | E124: 66
B125: 70 | C125: 72 | D125: 71 | E125: 67
B126: 71 | C126: 73 | D126: 72 | E126: 68
B127: 72 | C127: 74 | D127: 73 | E127: 69
B128: 73 | C128: 75 | D128: 74 | E128: 70
B129: 74 | C129: 76 | D129: 75 | E129: 71
B130: 75 | C130: 77 | D130: 76 | E130: 72
B131: 76 | C131: 78 | D131: 77 | E131: 73
B132: 77 | C132: 79 | D132: 78 | E132: 74
B133: 78 | C133: 80 | D133: 79 | E133: 75
B134: 79 | C134: 81 | D134: 80 | E134: 76
B135: 80 | C135: 82 | D135: 81 | E135: 77
B136: 81 | C136: 83 | D136: 82 | E136: 78
B137: 82 | C137: 84 | D137: 83 | E137: 79
B138: 83 | C138: 85 | D138: 84 | E138: 80
B139: 84 | C139: 86 | D139: 85 | E139: 81
B140: 85 | C140: 87 | D140: 86 | E140: 82
B141: 86 | C141: 88 | D141: 87 | E141: 83
B142: 87 | C142: 89 | D142: 88 | E142: 84
B143: 88 | C143: 90 | D143: 89 | E143: 85
B144: 89 | C144: 91 | D144: 90 | E144: 86
B145: 90 | C145: 92 | D145: 91 | E145: 87
B146: 91 | C146: 93 | D146: 92 | E146: 88
B147: 92 | C147: 94 | D147: 93 | E147: 89
B148: 93 | C148: 95 | D148: 94 | E148: 90
B149: 94 | C149: 96 | D149: 95 | E149: 91
B150: 95 | C150: 97 | D150: 96 | E150: 92
B151: 96 | C151: 98 | D151: 97 | E151: 93
B152: 97 | C152: 99 | D152: 98 | E152: 94
B153: 98 | C153: 100 | D153: 99 | E153: 95
B154: 99 | D154: 100 | E154: 96
B155: 100 | E155: 97
E156: 98
E157: 99
E158: 100

Sheet Berechnen
A1: =Schritte_1_2_3!A17 -> BG/BRG MUSTERSCHULE
A2: =Schritte_1_2_3!A18 & " - " & Schritte_1_2_3!A19 -> Matura Haupttermin - Schuljahr 2013/ 2014
A3: NAME: | B3: ANNA MUSTERMANN
B5: Erreichte Punkte | C5: Zu vergeb. Punkte | E5: Prozent Punkte | F5: WERTIGKEIT | G5: Wertigkeit festlegen
A6: Hörverständnis | B6: 0 | C6: 28 | D6: =IF(B6>C6,1,0) -> 0 | E6: =IF(C6<>0,IF(C6>=B6,B6/C6*G6,"FEHLER"),0) -> 0 | F6: =G6/100 -> 0.25 | G6: 25
A8: Leseverständnis | B8: 0 | C8: 30 | D8: =IF(B8>C8,1,0) -> 0 | E8: =IF(C8<>0,IF(C8>=B8,B8/C8*G8,"FEHLER"),0) -> 0 | F8: =G8/100 -> 0.25 | G8: 25
A10: Sprachverwendung im Kontext | B10: 0 | C10: 48 | D10: =IF(B10>C10,1,0) -> 0 | E10: =IF(C10<>0,IF(C10>=B10,B10/C10*G10,"FEHLER"),0) -> 0 | F10: =G10/100 -> 0.25 | G10: 25
I11: Assessment Scale B2
A12: Textproduktion 1 | B12: 0 | C12: 40 | D12: =IF(B12>C12,1,0) -> 0 | E12: =IF(C12<>0,IF(C12>=B12,B12/C12*G12,"FEHLER"),0) -> 0 | F12: =G12/100 -> 0.125 | G12: 12.5
A14: Textproduktion 2 | B14: 0 | C14: 40 | D14: =IF(B14>C14,1,0) -> 0 | E14: =IF(C14<>0,IF(C14>=B14,B14/C14*G14,"FEHLER"),0) -> 0 | F14: =G14/100 -> 0.125 | G14: 12.5
A16: Textproduktion 3 | B16: 0 | C16: 40 | D16: =IF(B16>C16,1,0) -> 0 | E16: =IF(C16<>0,IF(C16>=B16,B16/C16*G16,"FEHLER"),0) -> 0 | F16: =G16/100 -> 0 | G16: 0
F17: =F6+F8+F10+F12+F14+F16 -> 1
G18: =IF(OR(F17=100%,F17=99.999999%),"OK","Wertigkeit MUSS 100% sein!") -> OK
B19: PROZENTPUNKTE GESAMT | E19: =ROUND(E6+E8+E10+E12+E14+E16,2) -> 0 | F19: Rezeptive Fertigkeiten | H19: =E6+E8 -> 0
B20: NOTE: | C20: =IF(AND(H19/100>=SUM(F6:F8)/2,H20/100>=SUM(F10:F16)/2),IF(E19<D25,"NICHT GENÜGEND",IF(AND(E19>=D25,E19<D24),"GENÜGEND",IF(AND(E19>=D24,E19<D23),"BEFRIEDIGEND",IF(AND(E19>=D23,E19<D22),"GUT",IF(E19>=D22,"SEHR GUT",))))),"NICHT GENÜGEND") -> NICHT GENÜGEND | E20: =IF(AND(H19/100>=SUM(F6:F8)/2,H20/100>=SUM(F10:F16)/2),IF(E19<D25,5,IF(AND(E19>=D25,E19<D24),4,IF(AND(E19>=D24,E19<D23),3,IF(AND(E19>=D23,E19<D22),2,IF(E19>=D22,1,))))),5) -> 5 | F20: Produktive Fertigkeiten | H20: =E10+E12+E14+E16 -> 0
A22: Notenlegende | B22: Sehr gut | C22: 100 | D22: =D25+(C22-D25)/4*3 -> 90.75
B23: Gut | C23: =(((100-$D$25)/4)+D23)-0.01 -> 90.74 | D23: =D25+(C22-D25)/4*2 -> 81.5 | F23: 63 | G23: <- Notenschwelle festlegen
B24: Befriedigend | C24: =(((100-$D$25)/4)+D24)-0.01 -> 81.49 | D24: =D25+(C22-D25)/4 -> 72.25
B25: Genügend | C25: =(((100-$D$25)/4)+D25)-0.01 -> 72.24 | D25: =F23 -> 63
B26: Nicht genügend | C26: =F23-0.01 -> 62.99 | D26: 0
A29: =A1 & " " & A2 -> BG/BRG MUSTERSCHULE Matura Haupttermin - Schuljahr 2013/ 2014
A30: Name: | B30: =B3 -> ANNA MUSTERMANN
A32: TASK ACHIEVEMENT | B32: 1. TEXTAUFGABE
A33: Requirements of set task type | J33: 0
A34: Title / subject line / section headings
A35: Content points
A36: Supporting details / examples
A37: Different ideas / facts / graphs or solutions
A38: Explains ad/disadvantages
A39: Reasons in support of / against p.o.v.
A40: Personal significance of events / ideas
A41: Expressing news and views
A42: Set word length
A43: Performance/Communication
A45: ORGANISATION AND LAYOUT | B45: 1. TEXTAUFGABE
A46: Performance of structure | J46: 0
A47: Paragraphing conventions
A48: Developing points
A49: Relationships between ideas
A50: Linking devices
A51: Clearly intelligible continuous writing
A52: Layout for required task type
A53: No attempt at organisation
A55: LEXICAL AND STRUCTURAL RANGE | B55: 1. TEXTAUFGABE
A56: Expressing him/herself | J56: 0
A57: Variety in structures
A58: Structures / sentence forms
A59: Range of vocabulary for set task
A60: Formulation to avoid repetition
A61: Lifting of words from the prompt
A62: Expressing him/herself in the set task
A63: Descriptions / viewpoints / arguments
A64: Insufficient language to make an assessment
A66: =A1 & " " & A2 -> BG/BRG MUSTERSCHULE Matura Haupttermin - Schuljahr 2013/ 2014
A67: Name: | B67: =B3 -> ANNA MUSTERMANN
A69: LEXICAL AND STRUCTURAL ACCURACY | B69: 1. TEXTAUFGABE
A70: Structural control | J70: 0
A71: Errors and slips
A72: Influence from other languages
A73: Spelling
A74: Major errors with more complex thoughts
A75: Lexical inaccuracies
A76: Linking devices
A77: Punctuation conventions
A78: Rereading
A79: Limited accuracy
A80: Insufficient language to make an assessment
C83: 2. TEXTAUFGABE
A88: TASK ACHIEVEMENT | B88: 2. TEXTAUFGABE
A89: Requirements of set task type | J89: 0
A90: Title / subject line / section headings
A91: Content points
A92: Supporting details / examples
A93: Different ideas / facts / graphs or solutions
A94: Explains ad/disadvantages
A95: Reasons in support of / against p.o.v.
A96: Personal significance of events / ideas
A97: Expressing news and views
A98: Set word length
A99: Performance/Communication
A102: =A1 & " " & A2 -> BG/BRG MUSTERSCHULE Matura Haupttermin - Schuljahr 2013/ 2014
A103: Name: | B103: =B3 -> ANNA MUSTERMANN
A105: ORGANISATION AND LAYOUT | B105: 2. TEXTAUFGABE
A106: Performance of structure | J106: 0
A107: Paragraphing conventions
A108: Developing points
A109: Relationships between ideas
A110: Linking devices
A111: Clearly intelligible continuous writing
A112: Layout for required task type
A113: No attempt at organisation
A115: LEXICAL AND STRUCTURAL RANGE | B115: 2. TEXTAUFGABE
A116: Expressing him/herself | J116: 0
A117: Variety in structures
A118: Structures / sentence forms
A119: Range of vocabulary for set task
A120: Formulation to avoid repetition
A121: Lifting of words from the prompt
A122: Expressing him/herself in the set task
A123: Descriptions / viewpoints / arguments
A124: Insufficient language to make an assessment
A126: LEXICAL AND STRUCTURAL ACCURACY | B126: 2. TEXTAUFGABE
A127: Structural control | J127: 0
A128: Errors and slips
A129: Influence from other languages
A130: Spelling
A131: Major errors with more complex thoughts
A132: Lexical inaccuracies
A133: Linking devices
A134: Punctuation conventions
A135: Rereading
A136: Limited accuracy
A137: Insufficient language to make an assessment
A140: =A1 & " " & A2 -> BG/BRG MUSTERSCHULE Matura Haupttermin - Schuljahr 2013/ 2014
A141: Name: | B141: =B3 -> ANNA MUSTERMANN
C144: 3. TEXTAUFGABE
A149: TASK ACHIEVEMENT | B149: 3. TEXTAUFGABE
A150: Requirements of set task type | J150: 0
A151: Title / subject line / section headings
A152: Content points
A153: Supporting details / examples
A154: Different ideas / facts / graphs or solutions
A155: Explains ad/disadvantages
A156: Reasons in support of / against p.o.v.
A157: Personal significance of events / ideas
A158: Expressing news and views
A159: Set word length
A160: Performance/Communication
A162: ORGANISATION AND LAYOUT | B162: 3. TEXTAUFGABE
A163: Performance of structure | J163: 0
A164: Paragraphing conventions
A165: Developing points
A166: Relationships between ideas
A167: Linking devices
A168: Clearly intelligible continuous writing
A169: Layout for required task type
A170: No attempt at organisation
A176: =A1 & " " & A2 -> BG/BRG MUSTERSCHULE Matura Haupttermin - Schuljahr 2013/ 2014
A177: Name: | B177: =B3 -> ANNA MUSTERMANN
A180: LEXICAL AND STRUCTURAL RANGE | B180: 3. TEXTAUFGABE
A181: Expressing him/herself | J181: 0
A182: Variety in structures
A183: Structures / sentence forms
A184: Range of vocabulary for set task
A185: Formulation to avoid repetition
A186: Lifting of words from the prompt
A187: Expressing him/herself in the set task
A188: Descriptions / viewpoints / arguments
A189: Insufficient language to make an assessment
A191: LEXICAL AND STRUCTURAL ACCURACY | B191: 3. TEXTAUFGABE
A192: Structural control | J192: 0
A193: Errors and slips
A194: Influence from other languages
A195: Spelling
A196: Major errors with more complex thoughts
A197: Lexical inaccuracies
A198: Linking devices
A199: Punctuation conventions
A200: Rereading
A201: Limited accuracy
A202: Insufficient language to make an assessment
A205: =A1 & " " & A2 -> BG/BRG MUSTERSCHULE Matura Haupttermin - Schuljahr 2013/ 2014
A206: Name: | B206: =B3 -> ANNA MUSTERMANN
A208: ERFÜLLUNG DER AUFGABENSTELLUNG | B208: Textproduktion 1
A209: Einhaltung der Textsorte | J209: 0
A210: Titel/Betreff/Überschriften/Anrede/Grußzeile
A211: Ausführung der Aufgabenstellung
A212: Veranschaulichende Details
A213: Erklärung der Sachverhalte
A214: Irrelevante inhaltliche Punkte oder Details
A215: Eigene Meinung zu einer Situation
A216: Erklärung der Gründe für Handlungen
A217: Vorgegebene Wortanzahl
A218: Verfehlung der Aufgabenstellung
A221: AUFBAU UND LAYOUT | B221: Textproduktion 1
A222: Gesamtaufbau | J222: 0
A223: Präsentation inhaltlicher Punkte (Kohärenz)
A224: Gliederung
A225: Textspezifisches Layout
A226: Einsatz textgrammatischer Mittel (Kohäsion)
A227: Häufige Gedankensprünge
A228: Keine Struktur / keine Sprachproduktion
A231: SPEKTRUM SPRACHLICHER MITTEL | B231: Textproduktion 1
A232: Lexikalische und strukturelle Mitteln | J232: 0
A233: WH / Begrenzte Ausdrucksmöglichkeiten
A234: Formulierungen
A235: Formulierungsschwierigkeiten / Wortschatz
A236: Angemessener Stil
A237: Keine ausreichende Sprachproduktion
A242: =A1 & " " & A2 -> BG/BRG MUSTERSCHULE Matura Haupttermin - Schuljahr 2013/ 2014
A243: Name: | B243: =B3 -> ANNA MUSTERMANN
A245: SPRACHRICHTIGKEIT | B245: Textproduktion 1
A246: Grundwortschatz / Strukturen / Wendungen | J246: 0
A247: Kommunikation beeinträchtigende Fehler
A248: Rechtschreibung und Zeichensetzung
A249: Interferenzen anderer Sprachen
A250: Keine Sprachproduktion / nicht verständlich
C259: 2. TEXTPRODUKTION
A264: ERFÜLLUNG DER AUFGABENSTELLUNG | B264: Textproduktion 2
A265: Einhaltung der Textsorte | J265: 0
... 69 more rows

Sheet Daten
A1: =Schritte_1_2_3!A17 -> BG/BRG MUSTERSCHULE
A2: =Schritte_1_2_3!A18 & " - " & Schritte_1_2_3!A19 -> Matura Haupttermin - Schuljahr 2013/ 2014
A3: =Schritte_1_2_3!A20 -> 8A, Mag. Obermeier Eva
A8: NAME | C8: HO | D8: LE | E8: SK | F8: SR 1 | G8: SR 2 | H8: SR 3 | I8: Summe | J8: Negativ | K8: NOTE
A9: NAME01 | C9: 0.1696428571 | D9: 0.1166666667 | E9: 0.140625 | F9: 0.1 | G9: 0.06875 | H9: 0 | I9: 0.5956845238 | K9: 5
A10: NAME02 | C10: 0.1964285714 | D10: 0.1666666667 | E10: 0.1510416667 | F10: 0.1 | G10: 0.1 | H10: 0 | I10: 0.7141369048 | K10: 4
A11: NAME03 | C11: 0.2053571429 | D11: 0.225 | E11: 0.2395833333 | F11: 0.1 | G11: 0.0875 | H11: 0 | I11: 0.8574404762 | K11: 2
A12: NAME04 | C12: 0.2053571429 | D12: 0.1083333333 | E12: 0.1302083333 | F12: 0.0625 | G12: 0.05625 | H12: 0 | I12: 0.5626488095 | J12: Pr.F. | K12: 5
A13: NAME05 | C13: 0.1785714286 | D13: 0.2 | E13: 0.1875 | F13: 0.1125 | G13: 0.1 | H13: 0 | I13: 0.7785714286 | K13: 3
A14: NAME06 | C14: 0.2410714286 | D14: 0.2416666667 | E14: 0.234375 | F14: 0.125 | G14: 0.115625 | H14: 0 | I14: 0.9577380952 | K14: 1
A15: NAME07 | C15: 0.2321428571 | D15: 0.225 | E15: 0.15625 | F15: 0.0875 | G15: 0.059375 | H15: 0 | I15: 0.7602678571 | K15: 3
A16: NAME08 | C16: 0.2232142857 | D16: 0.2333333333 | E16: 0.2135416667 | F16: 0.121875 | G16: 0.1125 | H16: 0 | I16: 0.9044642857 | K16: 2
A17: NAME09 | C17: 0.2410714286 | D17: 0.1916666667 | E17: 0.15625 | F17: 0.090625 | G17: 0.075 | H17: 0 | I17: 0.7546130952 | K17: 3
A18: NAME10 | C18: 0.2321428571 | D18: 0.15 | E18: 0.1666666667 | F18: 0.0875 | G18: 0.05 | H18: 0 | I18: 0.6863095238 | K18: 4
A19: NAME11 | C19: 0.09821428571 | D19: 0.09166666667 | E19: 0.2291666667 | F19: 0.10625 | G19: 0.10625 | H19: 0 | I19: 0.631547619 | J19: Rez.F. | K19: 5
A20: NAME12 | C20: 0.2232142857 | D20: 0.2 | E20: 0.234375 | F20: 0.078125 | G20: 0.071875 | H20: 0 | I20: 0.8075892857 | K20: 3
A270: 1

Sheet Statistik
A1: =Schritte_1_2_3!A17 -> BG/BRG MUSTERSCHULE
A2: =Schritte_1_2_3!A18 & " - " & Schritte_1_2_3!A19 -> Matura Haupttermin - Schuljahr 2013/ 2014
A3: =Schritte_1_2_3!A20 -> 8A, Mag. Obermeier Eva
E5: in Klassenliste übertragen | F5: bereits angelegt
B6: Anzahl Schüler/Schülerinnen | E6: =COUNT(Daten!K9:K54) -> 12 | F6: ="/" & COUNTA(NAME) -> /12
G7: 1
B8: Sehr gut | E8: =COUNTIF(Daten!$K$9:$K$54,G7) -> 1 | F8: =IF($E$6>0,E8/$E$6,"") -> 0.08333333333 | G8: 2
B9: Gut | E9: =COUNTIF(Daten!$K$9:$K$54,G8) -> 2 | F9: =IF($E$6>0,E9/$E$6,"") -> 0.1666666667 | G9: 3
B10: Befriedigend | E10: =COUNTIF(Daten!$K$9:$K$54,G9) -> 4 | F10: =IF($E$6>0,E10/$E$6,"") -> 0.3333333333 | G10: 4
B11: Genügend | E11: =COUNTIF(Daten!$K$9:$K$54,G10) -> 2 | F11: =IF($E$6>0,E11/$E$6,"") -> 0.1666666667 | G11: 5
B12: Nicht genügend | E12: =COUNTIF(Daten!$K$9:$K$54,G11) -> 3 | F12: =IF($E$6>0,E12/$E$6,"") -> 0.25
B14: Durchschnitt
B15: Noten | E15: =IF(Daten!A9<>"",AVERAGE(Daten!K9:K54),"0") -> 3.333333333
B16: Punkteanzahl | E16: =IF(SUM(Daten!I9:I54)>0,AVERAGE(Daten!I9:I54),"0") -> 0.7509176587 | F16: ="/100" -> /100
B18: Durchschnitt - richtige Antworten
B19: Hörverständnis | F19: =IF(SUM(Daten!C9:C54)>0,AVERAGE(Daten!C$9:C$54)/(Berechnen!G6/100),"0%") -> 0.8154761905
B20: Leseverständnis | F20: =IF(SUM(Daten!D9:D54)>0,AVERAGE(Daten!D9:D54)/(Berechnen!G8/100),"0%") -> 0.7166666667
B21: Sprachverwendung im Kontext | F21: =IF(SUM(Daten!E9:E54),AVERAGE(Daten!E9:E54)/(Berechnen!G10/100),"0%") -> 0.7465277778
B22: Textproduktion 1 | F22: =IF(SUM(Daten!F9:F54)>0,AVERAGE(Daten!F9:F54)/(Berechnen!G12/100),"0%") -> 0.78125
B23: Textproduktion 2 | F23: =IF(SUM(Daten!G9:G54)>0,AVERAGE(Daten!G9:G54)/(Berechnen!G14/100),"0%") -> 0.66875
B24: Textproduktion 3 | F24: =IF(SUM(Daten!H9:H54)>0,AVERAGE(Daten!H9:H54)/(Berechnen!G16/100),"0%") -> 0%

Sheet NAME01
A1: =Schritte_1_2_3!A17 -> BG/BRG MUSTERSCHULE
A2: =Schritte_1_2_3!A18 & " - " & Schritte_1_2_3!A19 -> Matura Haupttermin - Schuljahr 2013/ 2014
A3: NAME: | B3: NAME01
B5: Erreichte Punkte | C5: Zu vergeb. Punkte | E5: Prozent Punkte | F5: WERTIGKEIT | G5: Wertigkeit festlegen
A6: Hörverständnis | B6: 19 | C6: 28 | D6: =IF(B6>C6,1,0) -> 0 | E6: =IF(C6<>0,IF(C6>=B6,B6/C6*G6,"FEHLER"),0) -> 16.96428571 | F6: =G6/100 -> 0.25 | G6: 25
A8: Leseverständnis | B8: 14 | C8: 30 | D8: =IF(B8>C8,1,0) -> 0 | E8: =IF(C8<>0,IF(C8>=B8,B8/C8*G8,"FEHLER"),0) -> 11.66666667 | F8: =G8/100 -> 0.25 | G8: 25
A10: Sprachverwendung im Kontext | B10: 27 | C10: 48 | D10: =IF(B10>C10,1,0) -> 0 | E10: =IF(C10<>0,IF(C10>=B10,B10/C10*G10,"FEHLER"),0) -> 14.0625 | F10: =G10/100 -> 0.25 | G10: 25
I11: Assessment Scale B2
A12: Textproduktion 1 | B12: 32 | C12: 40 | D12: =IF(B12>C12,1,0) -> 0 | E12: =IF(C12<>0,IF(C12>=B12,B12/C12*G12,"FEHLER"),0) -> 10 | F12: =G12/100 -> 0.125 | G12: 12.5
A14: Textproduktion 2 | B14: 22 | C14: 40 | D14: =IF(B14>C14,1,0) -> 0 | E14: =IF(C14<>0,IF(C14>=B14,B14/C14*G14,"FEHLER"),0) -> 6.875 | F14: =G14/100 -> 0.125 | G14: 12.5
A16: Textproduktion 3 | B16: 0 | C16: 40 | D16: =IF(B16>C16,1,0) -> 0 | E16: =IF(C16<>0,IF(C16>=B16,B16/C16*G16,"FEHLER"),0) -> 0 | F16: =G16/100 -> 0 | G16: 0
F17: =F6+F8+F10+F12+F14+F16 -> 1
G18: =IF(OR(F17=100%,F17=99.999999%),"OK","Wertigkeit MUSS 100% sein!") -> OK
B19: PROZENTPUNKTE GESAMT | E19: =ROUND(E6+E8+E10+E12+E14+E16,2) -> 59.57 | F19: Rezeptive Fertigkeiten | H19: =E6+E8 -> 28.63095238
B20: NOTE: | C20: =IF(AND(H19/100>=SUM(F6:F8)/2,H20/100>=SUM(F10:F16)/2),IF(E19<D25,"NICHT GENÜGEND",IF(AND(E19>=D25,E19<D24),"GENÜGEND",IF(AND(E19>=D24,E19<D23),"BEFRIEDIGEND",IF(AND(E19>=D23,E19<D22),"GUT",IF(E19>=D22,"SEHR GUT",))))),"NICHT GENÜGEND") -> NICHT GENÜGEND | E20: =IF(AND(H19/100>=SUM(F6:F8)/2,H20/100>=SUM(F10:F16)/2),IF(E19<D25,5,IF(AND(E19>=D25,E19<D24),4,IF(AND(E19>=D24,E19<D23),3,IF(AND(E19>=D23,E19<D22),2,IF(E19>=D22,1,))))),5) -> 5 | F20: Produktive Fertigkeiten | H20: =E10+E12+E14+E16 -> 30.9375
A22: Notenlegende | B22: Sehr gut | C22: 100 | D22: =D25+(C22-D25)/4*3 -> 90.75
B23: Gut | C23: =(((100-$D$25)/4)+D23)-0.01 -> 90.74 | D23: =D25+(C22-D25)/4*2 -> 81.5 | F23: 63 | G23: <- Notenschwelle festlegen
B24: Befriedigend | C24: =(((100-$D$25)/4)+D24)-0.01 -> 81.49 | D24: =D25+(C22-D25)/4 -> 72.25
B25: Genügend | C25: =(((100-$D$25)/4)+D25)-0.01 -> 72.24 | D25: =F23 -> 63
B26: Nicht genügend | C26: =F23-0.01 -> 62.99 | D26: 0
A29: =A1 & " " & A2 -> BG/BRG MUSTERSCHULE Matura Haupttermin - Schuljahr 2013/ 2014
A30: Name: | B30: =B3 -> NAME01
A32: TASK ACHIEVEMENT | B32: 1. TEXTAUFGABE
A33: Requirements of set task type | J33: 7
A34: Title / subject line / section headings
A35: Content points
A36: Supporting details / examples
A37: Different ideas / facts / graphs or solutions
A38: Explains ad/disadvantages
A39: Reasons in support of / against p.o.v.
A40: Personal significance of events / ideas
A41: Expressing news and views
A42: Set word length
A43: Performance/Communication
A45: ORGANISATION AND LAYOUT | B45: 1. TEXTAUFGABE
A46: Performance of structure | J46: 9
A47: Paragraphing conventions
A48: Developing points
A49: Relationships between ideas
A50: Linking devices
A51: Clearly intelligible continuous writing
A52: Layout for required task type
A53: No attempt at organisation
A55: LEXICAL AND STRUCTURAL RANGE | B55: 1. TEXTAUFGABE
A56: Expressing him/herself | J56: 8
A57: Variety in structures
A58: Structures / sentence forms
A59: Range of vocabulary for set task
A60: Formulation to avoid repetition
A61: Lifting of words from the prompt
A62: Expressing him/herself in the set task
A63: Descriptions / viewpoints / arguments
A64: Insufficient language to make an assessment
A66: =A1 & " " & A2 -> BG/BRG MUSTERSCHULE Matura Haupttermin - Schuljahr 2013/ 2014
A67: Name: | B67: =B3 -> NAME01
A69: LEXICAL AND STRUCTURAL ACCURACY | B69: 1. TEXTAUFGABE
A70: Structural control | J70: 8
A71: Errors and slips
A72: Influence from other languages
A73: Spelling
A74: Major errors with more complex thoughts
A75: Lexical inaccuracies
A76: Linking devices
A77: Punctuation conventions
A78: Rereading
A79: Limited accuracy
A80: Insufficient language to make an assessment
C83: 2. TEXTAUFGABE
A88: TASK ACHIEVEMENT | B88: 2. TEXTAUFGABE
A89: Requirements of set task type | J89: 6
A90: Title / subject line / section headings
A91: Content points
A92: Supporting details / examples
A93: Different ideas / facts / graphs or solutions
A94: Explains ad/disadvantages
A95: Reasons in support of / against p.o.v.
A96: Personal significance of events / ideas
A97: Expressing news and views
A98: Set word length
A99: Performance/Communication
A102: =A1 & " " & A2 -> BG/BRG MUSTERSCHULE Matura Haupttermin - Schuljahr 2013/ 2014
A103: Name: | B103: =B3 -> NAME01
A105: ORGANISATION AND LAYOUT | B105: 2. TEXTAUFGABE
A106: Performance of structure | J106: 5
A107: Paragraphing conventions
A108: Developing points
A109: Relationships between ideas
A110: Linking devices
A111: Clearly intelligible continuous writing
A112: Layout for required task type
A113: No attempt at organisation
A115: LEXICAL AND STRUCTURAL RANGE | B115: 2. TEXTAUFGABE
A116: Expressing him/herself | J116: 7
A117: Variety in structures
A118: Structures / sentence forms
A119: Range of vocabulary for set task
A120: Formulation to avoid repetition
A121: Lifting of words from the prompt
A122: Expressing him/herself in the set task
A123: Descriptions / viewpoints / arguments
A124: Insufficient language to make an assessment
A126: LEXICAL AND STRUCTURAL ACCURACY | B126: 2. TEXTAUFGABE
A127: Structural control | J127: 4
A128: Errors and slips
A129: Influence from other languages
A130: Spelling
A131: Major errors with more complex thoughts
A132: Lexical inaccuracies
A133: Linking devices
A134: Punctuation conventions
A135: Rereading
A136: Limited accuracy
A137: Insufficient language to make an assessment
A140: =A1 & " " & A2 -> BG/BRG MUSTERSCHULE Matura Haupttermin - Schuljahr 2013/ 2014
A141: Name: | B141: =B3 -> NAME01
C144: 3. TEXTAUFGABE
A149: TASK ACHIEVEMENT | B149: 3. TEXTAUFGABE
A150: Requirements of set task type | J150: 0
A151: Title / subject line / section headings
A152: Content points
A153: Supporting details / examples
A154: Different ideas / facts / graphs or solutions
A155: Explains ad/disadvantages
A156: Reasons in support of / against p.o.v.
A157: Personal significance of events / ideas
A158: Expressing news and views
A159: Set word length
A160: Performance/Communication
A162: ORGANISATION AND LAYOUT | B162: 3. TEXTAUFGABE
A163: Performance of structure | J163: 0
A164: Paragraphing conventions
A165: Developing points
A166: Relationships between ideas
A167: Linking devices
A168: Clearly intelligible continuous writing
A169: Layout for required task type
A170: No attempt at organisation
A176: =A1 & " " & A2 -> BG/BRG MUSTERSCHULE Matura Haupttermin - Schuljahr 2013/ 2014
A177: Name: | B177: =B3 -> NAME01
A180: LEXICAL AND STRUCTURAL RANGE | B180: 3. TEXTAUFGABE
A181: Expressing him/herself | J181: 0
A182: Variety in structures
A183: Structures / sentence forms
A184: Range of vocabulary for set task
A185: Formulation to avoid repetition
A186: Lifting of words from the prompt
A187: Expressing him/herself in the set task
A188: Descriptions / viewpoints / arguments
A189: Insufficient language to make an assessment
A191: LEXICAL AND STRUCTURAL ACCURACY | B191: 3. TEXTAUFGABE
A192: Structural control | J192: 0
A193: Errors and slips
A194: Influence from other languages
A195: Spelling
A196: Major errors with more complex thoughts
A197: Lexical inaccuracies
A198: Linking devices
A199: Punctuation conventions
A200: Rereading
A201: Limited accuracy
A202: Insufficient language to make an assessment
A205: =A1 & " " & A2 -> BG/BRG MUSTERSCHULE Matura Haupttermin - Schuljahr 2013/ 2014
A206: Name: | B206: =B3 -> NAME01
A208: ERFÜLLUNG DER AUFGABENSTELLUNG | B208: Textproduktion 1
A209: Einhaltung der Textsorte | J209: 0
A210: Titel/Betreff/Überschriften/Anrede/Grußzeile
A211: Ausführung der Aufgabenstellung
A212: Veranschaulichende Details
A213: Erklärung der Sachverhalte
A214: Irrelevante inhaltliche Punkte oder Details
A215: Eigene Meinung zu einer Situation
A216: Erklärung der Gründe für Handlungen
A217: Vorgegebene Wortanzahl
A218: Verfehlung der Aufgabenstellung
A221: AUFBAU UND LAYOUT | B221: Textproduktion 1
A222: Gesamtaufbau | J222: 0
A223: Präsentation inhaltlicher Punkte (Kohärenz)
A224: Gliederung
A225: Textspezifisches Layout
A226: Einsatz textgrammatischer Mittel (Kohäsion)
A227: Häufige Gedankensprünge
A228: Keine Struktur / keine Sprachproduktion
A231: SPEKTRUM SPRACHLICHER MITTEL | B231: Textproduktion 1
A232: Lexikalische und strukturelle Mitteln | J232: 0
A233: WH / Begrenzte Ausdrucksmöglichkeiten
A234: Formulierungen
A235: Formulierungsschwierigkeiten / Wortschatz
A236: Angemessener Stil
A237: Keine ausreichende Sprachproduktion
A242: =A1 & " " & A2 -> BG/BRG MUSTERSCHULE Matura Haupttermin - Schuljahr 2013/ 2014
A243: Name: | B243: =B3 -> NAME01
A245: SPRACHRICHTIGKEIT | B245: Textproduktion 1
A246: Grundwortschatz / Strukturen / Wendungen | J246: 0
A247: Kommunikation beeinträchtigende Fehler
A248: Rechtschreibung und Zeichensetzung
A249: Interferenzen anderer Sprachen
A250: Keine Sprachproduktion / nicht verständlich
C259: 2. TEXTPRODUKTION
A264: ERFÜLLUNG DER AUFGABENSTELLUNG | B264: Textproduktion 2
A265: Einhaltung der Textsorte | J265: 0
... 69 more rows

Sheet NAME02
A1: =Schritte_1_2_3!A17 -> BG/BRG MUSTERSCHULE
A2: =Schritte_1_2_3!A18 & " - " & Schritte_1_2_3!A19 -> Matura Haupttermin - Schuljahr 2013/ 2014
A3: NAME: | B3: NAME02
B5: Erreichte Punkte | C5: Zu vergeb. Punkte | E5: Prozent Punkte | F5: WERTIGKEIT | G5: Wertigkeit festlegen
A6: Hörverständnis | B6: 22 | C6: 28 | D6: =IF(B6>C6,1,0) -> 0 | E6: =IF(C6<>0,IF(C6>=B6,B6/C6*G6,"FEHLER"),0) -> 19.64285714 | F6: =G6/100 -> 0.25 | G6: 25
A8: Leseverständnis | B8: 20 | C8: 30 | D8: =IF(B8>C8,1,0) -> 0 | E8: =IF(C8<>0,IF(C8>=B8,B8/C8*G8,"FEHLER"),0) -> 16.66666667 | F8: =G8/100 -> 0.25 | G8: 25
A10: Sprachverwendung im Kontext | B10: 29 | C10: 48 | D10: =IF(B10>C10,1,0) -> 0 | E10: =IF(C10<>0,IF(C10>=B10,B10/C10*G10,"FEHLER"),0) -> 15.10416667 | F10: =G10/100 -> 0.25 | G10: 25
I11: Assessment Scale B2
A12: Textproduktion 1 | B12: 32 | C12: 40 | D12: =IF(B12>C12,1,0) -> 0 | E12: =IF(C12<>0,IF(C12>=B12,B12/C12*G12,"FEHLER"),0) -> 10 | F12: =G12/100 -> 0.125 | G12: 12.5
A14: Textproduktion 2 | B14: 32 | C14: 40 | D14: =IF(B14>C14,1,0) -> 0 | E14: =IF(C14<>0,IF(C14>=B14,B14/C14*G14,"FEHLER"),0) -> 10 | F14: =G14/100 -> 0.125 | G14: 12.5
A16: Textproduktion 3 | B16: 0 | C16: 40 | D16: =IF(B16>C16,1,0) -> 0 | E16: =IF(C16<>0,IF(C16>=B16,B16/C16*G16,"FEHLER"),0) -> 0 | F16: =G16/100 -> 0 | G16: 0
F17: =F6+F8+F10+F12+F14+F16 -> 1
G18: =IF(OR(F17=100%,F17=99.999999%),"OK","Wertigkeit MUSS 100% sein!") -> OK
B19: PROZENTPUNKTE GESAMT | E19: =ROUND(E6+E8+E10+E12+E14+E16,2) -> 71.41 | F19: Rezeptive Fertigkeiten | H19: =E6+E8 -> 36.30952381
B20: NOTE: | C20: =IF(AND(H19/100>=SUM(F6:F8)/2,H20/100>=SUM(F10:F16)/2),IF(E19<D25,"NICHT GENÜGEND",IF(AND(E19>=D25,E19<D24),"GENÜGEND",IF(AND(E19>=D24,E19<D23),"BEFRIEDIGEND",IF(AND(E19>=D23,E19<D22),"GUT",IF(E19>=D22,"SEHR GUT",))))),"NICHT GENÜGEND") -> GENÜGEND | E20: =IF(AND(H19/100>=SUM(F6:F8)/2,H20/100>=SUM(F10:F16)/2),IF(E19<D25,5,IF(AND(E19>=D25,E19<D24),4,IF(AND(E19>=D24,E19<D23),3,IF(AND(E19>=D23,E19<D22),2,IF(E19>=D22,1,))))),5) -> 4 | F20: Produktive Fertigkeiten | H20: =E10+E12+E14+E16 -> 35.10416667
A22: Notenlegende | B22: Sehr gut | C22: 100 | D22: =D25+(C22-D25)/4*3 -> 90.75
B23: Gut | C23: =(((100-$D$25)/4)+D23)-0.01 -> 90.74 | D23: =D25+(C22-D25)/4*2 -> 81.5 | F23: 63 | G23: <- Notenschwelle festlegen
B24: Befriedigend | C24: =(((100-$D$25)/4)+D24)-0.01 -> 81.49 | D24: =D25+(C22-D25)/4 -> 72.25
B25: Genügend | C25: =(((100-$D$25)/4)+D25)-0.01 -> 72.24 | D25: =F23 -> 63
B26: Nicht genügend | C26: =F23-0.01 -> 62.99 | D26: 0
A29: =A1 & " " & A2 -> BG/BRG MUSTERSCHULE Matura Haupttermin - Schuljahr 2013/ 2014
A30: Name: | B30: =B3 -> NAME02
A32: TASK ACHIEVEMENT | B32: 1. TEXTAUFGABE
A33: Requirements of set task type | J33: 10
A34: Title / subject line / section headings
A35: Content points
A36: Supporting details / examples
A37: Different ideas / facts / graphs or solutions
A38: Explains ad/disadvantages
A39: Reasons in support of / against p.o.v.
A40: Personal significance of events / ideas
A41: Expressing news and views
A42: Set word length
A43: Performance/Communication
A45: ORGANISATION AND LAYOUT | B45: 1. TEXTAUFGABE
A46: Performance of structure | J46: 10
A47: Paragraphing conventions
A48: Developing points
A49: Relationships between ideas
A50: Linking devices
A51: Clearly intelligible continuous writing
A52: Layout for required task type
A53: No attempt at organisation
A55: LEXICAL AND STRUCTURAL RANGE | B55: 1. TEXTAUFGABE
A56: Expressing him/herself | J56: 7
A57: Variety in structures
A58: Structures / sentence forms
A59: Range of vocabulary for set task
A60: Formulation to avoid repetition
A61: Lifting of words from the prompt
A62: Expressing him/herself in the set task
A63: Descriptions / viewpoints / arguments
A64: Insufficient language to make an assessment
A66: =A1 & " " & A2 -> BG/BRG MUSTERSCHULE Matura Haupttermin - Schuljahr 2013/ 2014
A67: Name: | B67: =B3 -> NAME02
A69: LEXICAL AND STRUCTURAL ACCURACY | B69: 1. TEXTAUFGABE
A70: Structural control | J70: 5
A71: Errors and slips
A72: Influence from other languages
A73: Spelling
A74: Major errors with more complex thoughts
A75: Lexical inaccuracies
A76: Linking devices
A77: Punctuation conventions
A78: Rereading
A79: Limited accuracy
A80: Insufficient language to make an assessment
C83: 2. TEXTAUFGABE
A88: TASK ACHIEVEMENT | B88: 2. TEXTAUFGABE
A89: Requirements of set task type | J89: 8
A90: Title / subject line / section headings
A91: Content points
A92: Supporting details / examples
A93: Different ideas / facts / graphs or solutions
A94: Explains ad/disadvantages
A95: Reasons in support of / against p.o.v.
A96: Personal significance of events / ideas
A97: Expressing news and views
A98: Set word length
A99: Performance/Communication
A102: =A1 & " " & A2 -> BG/BRG MUSTERSCHULE Matura Haupttermin - Schuljahr 2013/ 2014
A103: Name: | B103: =B3 -> NAME02
A105: ORGANISATION AND LAYOUT | B105: 2. TEXTAUFGABE
A106: Performance of structure | J106: 9
A107: Paragraphing conventions
A108: Developing points
A109: Relationships between ideas
A110: Linking devices
A111: Clearly intelligible continuous writing
A112: Layout for required task type
A113: No attempt at organisation
A115: LEXICAL AND STRUCTURAL RANGE | B115: 2. TEXTAUFGABE
A116: Expressing him/herself | J116: 7
A117: Variety in structures
A118: Structures / sentence forms
A119: Range of vocabulary for set task
A120: Formulation to avoid repetition
A121: Lifting of words from the prompt
A122: Expressing him/herself in the set task
A123: Descriptions / viewpoints / arguments
A124: Insufficient language to make an assessment
A126: LEXICAL AND STRUCTURAL ACCURACY | B126: 2. TEXTAUFGABE
A127: Structural control | J127: 8
A128: Errors and slips
A129: Influence from other languages
A130: Spelling
A131: Major errors with more complex thoughts
A132: Lexical inaccuracies
A133: Linking devices
A134: Punctuation conventions
A135: Rereading
A136: Limited accuracy
A137: Insufficient language to make an assessment
A140: =A1 & " " & A2 -> BG/BRG MUSTERSCHULE Matura Haupttermin - Schuljahr 2013/ 2014
A141: Name: | B141: =B3 -> NAME02
C144: 3. TEXTAUFGABE
A149: TASK ACHIEVEMENT | B149: 3. TEXTAUFGABE
A150: Requirements of set task type | J150: 0
A151: Title / subject line / section headings
A152: Content points
A153: Supporting details / examples
A154: Different ideas / facts / graphs or solutions
A155: Explains ad/disadvantages
A156: Reasons in support of / against p.o.v.
A157: Personal significance of events / ideas
A158: Expressing news and views
A159: Set word length
A160: Performance/Communication
A162: ORGANISATION AND LAYOUT | B162: 3. TEXTAUFGABE
A163: Performance of structure | J163: 0
A164: Paragraphing conventions
A165: Developing points
A166: Relationships between ideas
A167: Linking devices
A168: Clearly intelligible continuous writing
A169: Layout for required task type
A170: No attempt at organisation
A176: =A1 & " " & A2 -> BG/BRG MUSTERSCHULE Matura Haupttermin - Schuljahr 2013/ 2014
A177: Name: | B177: =B3 -> NAME02
A180: LEXICAL AND STRUCTURAL RANGE | B180: 3. TEXTAUFGABE
A181: Expressing him/herself | J181: 0
A182: Variety in structures
A183: Structures / sentence forms
A184: Range of vocabulary for set task
A185: Formulation to avoid repetition
A186: Lifting of words from the prompt
A187: Expressing him/herself in the set task
A188: Descriptions / viewpoints / arguments
A189: Insufficient language to make an assessment
A191: LEXICAL AND STRUCTURAL ACCURACY | B191: 3. TEXTAUFGABE
A192: Structural control | J192: 0
A193: Errors and slips
A194: Influence from other languages
A195: Spelling
A196: Major errors with more complex thoughts
A197: Lexical inaccuracies
A198: Linking devices
A199: Punctuation conventions
A200: Rereading
A201: Limited accuracy
A202: Insufficient language to make an assessment
A205: =A1 & " " & A2 -> BG/BRG MUSTERSCHULE Matura Haupttermin - Schuljahr 2013/ 2014
A206: Name: | B206: =B3 -> NAME02
A208: ERFÜLLUNG DER AUFGABENSTELLUNG | B208: Textproduktion 1
A209: Einhaltung der Textsorte | J209: 0
A210: Titel/Betreff/Überschriften/Anrede/Grußzeile
A211: Ausführung der Aufgabenstellung
A212: Veranschaulichende Details
A213: Erklärung der Sachverhalte
A214: Irrelevante inhaltliche Punkte oder Details
A215: Eigene Meinung zu einer Situation
A216: Erklärung der Gründe für Handlungen
A217: Vorgegebene Wortanzahl
A218: Verfehlung der Aufgabenstellung
A221: AUFBAU UND LAYOUT | B221: Textproduktion 1
A222: Gesamtaufbau | J222: 0
A223: Präsentation inhaltlicher Punkte (Kohärenz)
A224: Gliederung
A225: Textspezifisches Layout
A226: Einsatz textgrammatischer Mittel (Kohäsion)
A227: Häufige Gedankensprünge
A228: Keine Struktur / keine Sprachproduktion
A231: SPEKTRUM SPRACHLICHER MITTEL | B231: Textproduktion 1
A232: Lexikalische und strukturelle Mitteln | J232: 0
A233: WH / Begrenzte Ausdrucksmöglichkeiten
A234: Formulierungen
A235: Formulierungsschwierigkeiten / Wortschatz
A236: Angemessener Stil
A237: Keine ausreichende Sprachproduktion
A242: =A1 & " " & A2 -> BG/BRG MUSTERSCHULE Matura Haupttermin - Schuljahr 2013/ 2014
A243: Name: | B243: =B3 -> NAME02
A245: SPRACHRICHTIGKEIT | B245: Textproduktion 1
A246: Grundwortschatz / Strukturen / Wendungen | J246: 0
A247: Kommunikation beeinträchtigende Fehler
A248: Rechtschreibung und Zeichensetzung
A249: Interferenzen anderer Sprachen
A250: Keine Sprachproduktion / nicht verständlich
C259: 2. TEXTPRODUKTION
A264: ERFÜLLUNG DER AUFGABENSTELLUNG | B264: Textproduktion 2
A265: Einhaltung der Textsorte | J265: 0
... 69 more rows

Sheet NAME03
A1: =Schritte_1_2_3!A17 -> BG/BRG MUSTERSCHULE
A2: =Schritte_1_2_3!A18 & " - " & Schritte_1_2_3!A19 -> Matura Haupttermin - Schuljahr 2013/ 2014
A3: NAME: | B3: NAME03
B5: Erreichte Punkte | C5: Zu vergeb. Punkte | E5: Prozent Punkte | F5: WERTIGKEIT | G5: Wertigkeit festlegen
A6: Hörverständnis | B6: 23 | C6: 28 | D6: =IF(B6>C6,1,0) -> 0 | E6: =IF(C6<>0,IF(C6>=B6,B6/C6*G6,"FEHLER"),0) -> 20.53571429 | F6: =G6/100 -> 0.25 | G6: 25
A8: Leseverständnis | B8: 27 | C8: 30 | D8: =IF(B8>C8,1,0) -> 0 | E8: =IF(C8<>0,IF(C8>=B8,B8/C8*G8,"FEHLER"),0) -> 22.5 | F8: =G8/100 -> 0.25 | G8: 25
A10: Sprachverwendung im Kontext | B10: 46 | C10: 48 | D10: =IF(B10>C10,1,0) -> 0 | E10: =IF(C10<>0,IF(C10>=B10,B10/C10*G10,"FEHLER"),0) -> 23.95833333 | F10: =G10/100 -> 0.25 | G10: 25
I11: Assessment Scale B2
A12: Textproduktion 1 | B12: 32 | C12: 40 | D12: =IF(B12>C12,1,0) -> 0 | E12: =IF(C12<>0,IF(C12>=B12,B12/C12*G12,"FEHLER"),0) -> 10 | F12: =G12/100 -> 0.125 | G12: 12.5
A14: Textproduktion 2 | B14: 28 | C14: 40 | D14: =IF(B14>C14,1,0) -> 0 | E14: =IF(C14<>0,IF(C14>=B14,B14/C14*G14,"FEHLER"),0) -> 8.75 | F14: =G14/100 -> 0.125 | G14: 12.5
A16: Textproduktion 3 | B16: 0 | C16: 40 | D16: =IF(B16>C16,1,0) -> 0 | E16: =IF(C16<>0,IF(C16>=B16,B16/C16*G16,"FEHLER"),0) -> 0 | F16: =G16/100 -> 0 | G16: 0
F17: =F6+F8+F10+F12+F14+F16 -> 1
G18: =IF(OR(F17=100%,F17=99.999999%),"OK","Wertigkeit MUSS 100% sein!") -> OK
B19: PROZENTPUNKTE GESAMT | E19: =ROUND(E6+E8+E10+E12+E14+E16,2) -> 85.74 | F19: Rezeptive Fertigkeiten | H19: =E6+E8 -> 43.03571429
B20: NOTE: | C20: =IF(AND(H19/100>=SUM(F6:F8)/2,H20/100>=SUM(F10:F16)/2),IF(E19<D25,"NICHT GENÜGEND",IF(AND(E19>=D25,E19<D24),"GENÜGEND",IF(AND(E19>=D24,E19<D23),"BEFRIEDIGEND",IF(AND(E19>=D23,E19<D22),"GUT",IF(E19>=D22,"SEHR GUT",))))),"NICHT GENÜGEND") -> GUT | E20: =IF(AND(H19/100>=SUM(F6:F8)/2,H20/100>=SUM(F10:F16)/2),IF(E19<D25,5,IF(AND(E19>=D25,E19<D24),4,IF(AND(E19>=D24,E19<D23),3,IF(AND(E19>=D23,E19<D22),2,IF(E19>=D22,1,))))),5) -> 2 | F20: Produktive Fertigkeiten | H20: =E10+E12+E14+E16 -> 42.70833333
A22: Notenlegende | B22: Sehr gut | C22: 100 | D22: =D25+(C22-D25)/4*3 -> 90.75
B23: Gut | C23: =(((100-$D$25)/4)+D23)-0.01 -> 90.74 | D23: =D25+(C22-D25)/4*2 -> 81.5 | F23: 63 | G23: <- Notenschwelle festlegen
B24: Befriedigend | C24: =(((100-$D$25)/4)+D24)-0.01 -> 81.49 | D24: =D25+(C22-D25)/4 -> 72.25
B25: Genügend | C25: =(((100-$D$25)/4)+D25)-0.01 -> 72.24 | D25: =F23 -> 63
B26: Nicht genügend | C26: =F23-0.01 -> 62.99 | D26: 0
A29: =A1 & " " & A2 -> BG/BRG MUSTERSCHULE Matura Haupttermin - Schuljahr 2013/ 2014
A30: Name: | B30: =B3 -> NAME03
A32: TASK ACHIEVEMENT | B32: 1. TEXTAUFGABE
A33: Requirements of set task type | J33: 8
A34: Title / subject line / section headings
A35: Content points
A36: Supporting details / examples
A37: Different ideas / facts / graphs or solutions
A38: Explains ad/disadvantages
A39: Reasons in support of / against p.o.v.
A40: Personal significance of events / ideas
A41: Expressing news and views
A42: Set word length
A43: Performance/Communication
A45: ORGANISATION AND LAYOUT | B45: 1. TEXTAUFGABE
A46: Performance of structure | J46: 8
A47: Paragraphing conventions
A48: Developing points
A49: Relationships between ideas
A50: Linking devices
A51: Clearly intelligible continuous writing
A52: Layout for required task type
A53: No attempt at organisation
A55: LEXICAL AND STRUCTURAL RANGE | B55: 1. TEXTAUFGABE
A56: Expressing him/herself | J56: 9
A57: Variety in structures
A58: Structures / sentence forms
A59: Range of vocabulary for set task
A60: Formulation to avoid repetition
A61: Lifting of words from the prompt
A62: Expressing him/herself in the set task
A63: Descriptions / viewpoints / arguments
A64: Insufficient language to make an assessment
A66: =A1 & " " & A2 -> BG/BRG MUSTERSCHULE Matura Haupttermin - Schuljahr 2013/ 2014
A67: Name: | B67: =B3 -> NAME03
A69: LEXICAL AND STRUCTURAL ACCURACY | B69: 1. TEXTAUFGABE
A70: Structural control | J70: 7
A71: Errors and slips
A72: Influence from other languages
A73: Spelling
A74: Major errors with more complex thoughts
A75: Lexical inaccuracies
A76: Linking devices
A77: Punctuation conventions
A78: Rereading
A79: Limited accuracy
A80: Insufficient language to make an assessment
C83: 2. TEXTAUFGABE
A88: TASK ACHIEVEMENT | B88: 2. TEXTAUFGABE
A89: Requirements of set task type | J89: 7
A90: Title / subject line / section headings
A91: Content points
A92: Supporting details / examples
A93: Different ideas / facts / graphs or solutions
A94: Explains ad/disadvantages
A95: Reasons in support of / against p.o.v.
A96: Personal significance of events / ideas
A97: Expressing news and views
A98: Set word length
A99: Performance/Communication
A102: =A1 & " " & A2 -> BG/BRG MUSTERSCHULE Matura Haupttermin - Schuljahr 2013/ 2014
A103: Name: | B103: =B3 -> NAME03
A105: ORGANISATION AND LAYOUT | B105: 2. TEXTAUFGABE
A106: Performance of structure | J106: 8
A107: Paragraphing conventions
A108: Developing points
A109: Relationships between ideas
A110: Linking devices
A111: Clearly intelligible continuous writing
A112: Layout for required task type
A113: No attempt at organisation
A115: LEXICAL AND STRUCTURAL RANGE | B115: 2. TEXTAUFGABE
A116: Expressing him/herself | J116: 6
A117: Variety in structures
A118: Structures / sentence forms
A119: Range of vocabulary for set task
A120: Formulation to avoid repetition
A121: Lifting of words from the prompt
A122: Expressing him/herself in the set task
A123: Descriptions / viewpoints / arguments
A124: Insufficient language to make an assessment
A126: LEXICAL AND STRUCTURAL ACCURACY | B126: 2. TEXTAUFGABE
A127: Structural control | J127: 7
A128: Errors and slips
A129: Influence from other languages
A130: Spelling
A131: Major errors with more complex thoughts
A132: Lexical inaccuracies
A133: Linking devices
A134: Punctuation conventions
A135: Rereading
A136: Limited accuracy
A137: Insufficient language to make an assessment
A140: =A1 & " " & A2 -> BG/BRG MUSTERSCHULE Matura Haupttermin - Schuljahr 2013/ 2014
A141: Name: | B141: =B3 -> NAME03
C144: 3. TEXTAUFGABE
A149: TASK ACHIEVEMENT | B149: 3. TEXTAUFGABE
A150: Requirements of set task type | J150: 0
A151: Title / subject line / section headings
A152: Content points
A153: Supporting details / examples
A154: Different ideas / facts / graphs or solutions
A155: Explains ad/disadvantages
A156: Reasons in support of / against p.o.v.
A157: Personal significance of events / ideas
A158: Expressing news and views
A159: Set word length
A160: Performance/Communication
A162: ORGANISATION AND LAYOUT | B162: 3. TEXTAUFGABE
A163: Performance of structure | J163: 0
A164: Paragraphing conventions
A165: Developing points
A166: Relationships between ideas
A167: Linking devices
A168: Clearly intelligible continuous writing
A169: Layout for required task type
A170: No attempt at organisation
A176: =A1 & " " & A2 -> BG/BRG MUSTERSCHULE Matura Haupttermin - Schuljahr 2013/ 2014
A177: Name: | B177: =B3 -> NAME03
A180: LEXICAL AND STRUCTURAL RANGE | B180: 3. TEXTAUFGABE
A181: Expressing him/herself | J181: 0
A182: Variety in structures
A183: Structures / sentence forms
A184: Range of vocabulary for set task
A185: Formulation to avoid repetition
A186: Lifting of words from the prompt
A187: Expressing him/herself in the set task
A188: Descriptions / viewpoints / arguments
A189: Insufficient language to make an assessment
A191: LEXICAL AND STRUCTURAL ACCURACY | B191: 3. TEXTAUFGABE
A192: Structural control | J192: 0
A193: Errors and slips
A194: Influence from other languages
A195: Spelling
A196: Major errors with more complex thoughts
A197: Lexical inaccuracies
A198: Linking devices
A199: Punctuation conventions
A200: Rereading
A201: Limited accuracy
A202: Insufficient language to make an assessment
A205: =A1 & " " & A2 -> BG/BRG MUSTERSCHULE Matura Haupttermin - Schuljahr 2013/ 2014
A206: Name: | B206: =B3 -> NAME03
A208: ERFÜLLUNG DER AUFGABENSTELLUNG | B208: Textproduktion 1
A209: Einhaltung der Textsorte | J209: 0
A210: Titel/Betreff/Überschriften/Anrede/Grußzeile
A211: Ausführung der Aufgabenstellung
A212: Veranschaulichende Details
A213: Erklärung der Sachverhalte
A214: Irrelevante inhaltliche Punkte oder Details
A215: Eigene Meinung zu einer Situation
A216: Erklärung der Gründe für Handlungen
A217: Vorgegebene Wortanzahl
A218: Verfehlung der Aufgabenstellung
A221: AUFBAU UND LAYOUT | B221: Textproduktion 1
A222: Gesamtaufbau | J222: 0
A223: Präsentation inhaltlicher Punkte (Kohärenz)
A224: Gliederung
A225: Textspezifisches Layout
A226: Einsatz textgrammatischer Mittel (Kohäsion)
A227: Häufige Gedankensprünge
A228: Keine Struktur / keine Sprachproduktion
A231: SPEKTRUM SPRACHLICHER MITTEL | B231: Textproduktion 1
A232: Lexikalische und strukturelle Mitteln | J232: 0
A233: WH / Begrenzte Ausdrucksmöglichkeiten
A234: Formulierungen
A235: Formulierungsschwierigkeiten / Wortschatz
A236: Angemessener Stil
A237: Keine ausreichende Sprachproduktion
A242: =A1 & " " & A2 -> BG/BRG MUSTERSCHULE Matura Haupttermin - Schuljahr 2013/ 2014
A243: Name: | B243: =B3 -> NAME03
A245: SPRACHRICHTIGKEIT | B245: Textproduktion 1
A246: Grundwortschatz / Strukturen / Wendungen | J246: 0
A247: Kommunikation beeinträchtigende Fehler
A248: Rechtschreibung und Zeichensetzung
A249: Interferenzen anderer Sprachen
A250: Keine Sprachproduktion / nicht verständlich
C259: 2. TEXTPRODUKTION
A264: ERFÜLLUNG DER AUFGABENSTELLUNG | B264: Textproduktion 2
A265: Einhaltung der Textsorte | J265: 0
... 69 more rows

Sheet NAME04
A1: =Schritte_1_2_3!A17 -> BG/BRG MUSTERSCHULE
A2: =Schritte_1_2_3!A18 & " - " & Schritte_1_2_3!A19 -> Matura Haupttermin - Schuljahr 2013/ 2014
A3: NAME: | B3: NAME04
B5: Erreichte Punkte | C5: Zu vergeb. Punkte | E5: Prozent Punkte | F5: WERTIGKEIT | G5: Wertigkeit festlegen
A6: Hörverständnis | B6: 23 | C6: 28 | D6: =IF(B6>C6,1,0) -> 0 | E6: =IF(C6<>0,IF(C6>=B6,B6/C6*G6,"FEHLER"),0) -> 20.53571429 | F6: =G6/100 -> 0.25 | G6: 25
A8: Leseverständnis | B8: 13 | C8: 30 | D8: =IF(B8>C8,1,0) -> 0 | E8: =IF(C8<>0,IF(C8>=B8,B8/C8*G8,"FEHLER"),0) -> 10.83333333 | F8: =G8/100 -> 0.25 | G8: 25
A10: Sprachverwendung im Kontext | B10: 25 | C10: 48 | D10: =IF(B10>C10,1,0) -> 0 | E10: =IF(C10<>0,IF(C10>=B10,B10/C10*G10,"FEHLER"),0) -> 13.02083333 | F10: =G10/100 -> 0.25 | G10: 25
I11: Assessment Scale B2
A12: Textproduktion 1 | B12: 20 | C12: 40 | D12: =IF(B12>C12,1,0) -> 0 | E12: =IF(C12<>0,IF(C12>=B12,B12/C12*G12,"FEHLER"),0) -> 6.25 | F12: =G12/100 -> 0.125 | G12: 12.5
A14: Textproduktion 2 | B14: 18 | C14: 40 | D14: =IF(B14>C14,1,0) -> 0 | E14: =IF(C14<>0,IF(C14>=B14,B14/C14*G14,"FEHLER"),0) -> 5.625 | F14: =G14/100 -> 0.125 | G14: 12.5
A16: Textproduktion 3 | B16: 0 | C16: 40 | D16: =IF(B16>C16,1,0) -> 0 | E16: =IF(C16<>0,IF(C16>=B16,B16/C16*G16,"FEHLER"),0) -> 0 | F16: =G16/100 -> 0 | G16: 0
F17: =F6+F8+F10+F12+F14+F16 -> 1
G18: =IF(OR(F17=100%,F17=99.999999%),"OK","Wertigkeit MUSS 100% sein!") -> OK
B19: PROZENTPUNKTE GESAMT | E19: =ROUND(E6+E8+E10+E12+E14+E16,2) -> 56.26 | F19: Rezeptive Fertigkeiten | H19: =E6+E8 -> 31.36904762
B20: NOTE: | C20: =IF(AND(H19/100>=SUM(F6:F8)/2,H20/100>=SUM(F10:F16)/2),IF(E19<D25,"NICHT GENÜGEND",IF(AND(E19>=D25,E19<D24),"GENÜGEND",IF(AND(E19>=D24,E19<D23),"BEFRIEDIGEND",IF(AND(E19>=D23,E19<D22),"GUT",IF(E19>=D22,"SEHR GUT",))))),"NICHT GENÜGEND") -> NICHT GENÜGEND | E20: =IF(AND(H19/100>=SUM(F6:F8)/2,H20/100>=SUM(F10:F16)/2),IF(E19<D25,5,IF(AND(E19>=D25,E19<D24),4,IF(AND(E19>=D24,E19<D23),3,IF(AND(E19>=D23,E19<D22),2,IF(E19>=D22,1,))))),5) -> 5 | F20: Produktive Fertigkeiten | H20: =E10+E12+E14+E16 -> 24.89583333
A22: Notenlegende | B22: Sehr gut | C22: 100 | D22: =D25+(C22-D25)/4*3 -> 90.75
B23: Gut | C23: =(((100-$D$25)/4)+D23)-0.01 -> 90.74 | D23: =D25+(C22-D25)/4*2 -> 81.5 | F23: 63 | G23: <- Notenschwelle festlegen
B24: Befriedigend | C24: =(((100-$D$25)/4)+D24)-0.01 -> 81.49 | D24: =D25+(C22-D25)/4 -> 72.25
B25: Genügend | C25: =(((100-$D$25)/4)+D25)-0.01 -> 72.24 | D25: =F23 -> 63
B26: Nicht genügend | C26: =F23-0.01 -> 62.99 | D26: 0
A29: =A1 & " " & A2 -> BG/BRG MUSTERSCHULE Matura Haupttermin - Schuljahr 2013/ 2014
A30: Name: | B30: =B3 -> NAME04
A32: TASK ACHIEVEMENT | B32: 1. TEXTAUFGABE
A33: Requirements of set task type | J33: 5
A34: Title / subject line / section headings
A35: Content points
A36: Supporting details / examples
A37: Different ideas / facts / graphs or solutions
A38: Explains ad/disadvantages
A39: Reasons in support of / against p.o.v.
A40: Personal significance of events / ideas
A41: Expressing news and views
A42: Set word length
A43: Performance/Communication
A45: ORGANISATION AND LAYOUT | B45: 1. TEXTAUFGABE
A46: Performance of structure | J46: 8
A47: Paragraphing conventions
A48: Developing points
A49: Relationships between ideas
A50: Linking devices
A51: Clearly intelligible continuous writing
A52: Layout for required task type
A53: No attempt at organisation
A55: LEXICAL AND STRUCTURAL RANGE | B55: 1. TEXTAUFGABE
A56: Expressing him/herself | J56: 4
A57: Variety in structures
A58: Structures / sentence forms
A59: Range of vocabulary for set task
A60: Formulation to avoid repetition
A61: Lifting of words from the prompt
A62: Expressing him/herself in the set task
A63: Descriptions / viewpoints / arguments
A64: Insufficient language to make an assessment
A66: =A1 & " " & A2 -> BG/BRG MUSTERSCHULE Matura Haupttermin - Schuljahr 2013/ 2014
A67: Name: | B67: =B3 -> NAME04
A69: LEXICAL AND STRUCTURAL ACCURACY | B69: 1. TEXTAUFGABE
A70: Structural control | J70: 3
A71: Errors and slips
A72: Influence from other languages
A73: Spelling
A74: Major errors with more complex thoughts
A75: Lexical inaccuracies
A76: Linking devices
A77: Punctuation conventions
A78: Rereading
A79: Limited accuracy
A80: Insufficient language to make an assessment
C83: 2. TEXTAUFGABE
A88: TASK ACHIEVEMENT | B88: 2. TEXTAUFGABE
A89: Requirements of set task type | J89: 4
A90: Title / subject line / section headings
A91: Content points
A92: Supporting details / examples
A93: Different ideas / facts / graphs or solutions
A94: Explains ad/disadvantages
A95: Reasons in support of / against p.o.v.
A96: Personal significance of events / ideas
A97: Expressing news and views
A98: Set word length
A99: Performance/Communication
A102: =A1 & " " & A2 -> BG/BRG MUSTERSCHULE Matura Haupttermin - Schuljahr 2013/ 2014
A103: Name: | B103: =B3 -> NAME04
A105: ORGANISATION AND LAYOUT | B105: 2. TEXTAUFGABE
A106: Performance of structure | J106: 6
A107: Paragraphing conventions
A108: Developing points
A109: Relationships between ideas
A110: Linking devices
A111: Clearly intelligible continuous writing
A112: Layout for required task type
A113: No attempt at organisation
A115: LEXICAL AND STRUCTURAL RANGE | B115: 2. TEXTAUFGABE
A116: Expressing him/herself | J116: 3
A117: Variety in structures
A118: Structures / sentence forms
A119: Range of vocabulary for set task
A120: Formulation to avoid repetition
A121: Lifting of words from the prompt
A122: Expressing him/herself in the set task
A123: Descriptions / viewpoints / arguments
A124: Insufficient language to make an assessment
A126: LEXICAL AND STRUCTURAL ACCURACY | B126: 2. TEXTAUFGABE
A127: Structural control | J127: 5
A128: Errors and slips
A129: Influence from other languages
A130: Spelling
A131: Major errors with more complex thoughts
A132: Lexical inaccuracies
A133: Linking devices
A134: Punctuation conventions
A135: Rereading
A136: Limited accuracy
A137: Insufficient language to make an assessment
A140: =A1 & " " & A2 -> BG/BRG MUSTERSCHULE Matura Haupttermin - Schuljahr 2013/ 2014
A141: Name: | B141: =B3 -> NAME04
C144: 3. TEXTAUFGABE
A149: TASK ACHIEVEMENT | B149: 3. TEXTAUFGABE
A150: Requirements of set task type | J150: 0
A151: Title / subject line / section headings
A152: Content points
A153: Supporting details / examples
A154: Different ideas / facts / graphs or solutions
A155: Explains ad/disadvantages
A156: Reasons in support of / against p.o.v.
A157: Personal significance of events / ideas
A158: Expressing news and views
A159: Set word length
A160: Performance/Communication
A162: ORGANISATION AND LAYOUT | B162: 3. TEXTAUFGABE
A163: Performance of structure | J163: 0
A164: Paragraphing conventions
A165: Developing points
A166: Relationships between ideas
A167: Linking devices
A168: Clearly intelligible continuous writing
A169: Layout for required task type
A170: No attempt at organisation
A176: =A1 & " " & A2 -> BG/BRG MUSTERSCHULE Matura Haupttermin - Schuljahr 2013/ 2014
A177: Name: | B177: =B3 -> NAME04
A180: LEXICAL AND STRUCTURAL RANGE | B180: 3. TEXTAUFGABE
A181: Expressing him/herself | J181: 0
A182: Variety in structures
A183: Structures / sentence forms
A184: Range of vocabulary for set task
A185: Formulation to avoid repetition
A186: Lifting of words from the prompt
A187: Expressing him/herself in the set task
A188: Descriptions / viewpoints / arguments
A189: Insufficient language to make an assessment
A191: LEXICAL AND STRUCTURAL ACCURACY | B191: 3. TEXTAUFGABE
A192: Structural control | J192: 0
A193: Errors and slips
A194: Influence from other languages
A195: Spelling
A196: Major errors with more complex thoughts
A197: Lexical inaccuracies
A198: Linking devices
A199: Punctuation conventions
A200: Rereading
A201: Limited accuracy
A202: Insufficient language to make an assessment
A205: =A1 & " " & A2 -> BG/BRG MUSTERSCHULE Matura Haupttermin - Schuljahr 2013/ 2014
A206: Name: | B206: =B3 -> NAME04
A208: ERFÜLLUNG DER AUFGABENSTELLUNG | B208: Textproduktion 1
A209: Einhaltung der Textsorte | J209: 0
A210: Titel/Betreff/Überschriften/Anrede/Grußzeile
A211: Ausführung der Aufgabenstellung
A212: Veranschaulichende Details
A213: Erklärung der Sachverhalte
A214: Irrelevante inhaltliche Punkte oder Details
A215: Eigene Meinung zu einer Situation
A216: Erklärung der Gründe für Handlungen
A217: Vorgegebene Wortanzahl
A218: Verfehlung der Aufgabenstellung
A221: AUFBAU UND LAYOUT | B221: Textproduktion 1
A222: Gesamtaufbau | J222: 0
A223: Präsentation inhaltlicher Punkte (Kohärenz)
A224: Gliederung
A225: Textspezifisches Layout
A226: Einsatz textgrammatischer Mittel (Kohäsion)
A227: Häufige Gedankensprünge
A228: Keine Struktur / keine Sprachproduktion
A231: SPEKTRUM SPRACHLICHER MITTEL | B231: Textproduktion 1
A232: Lexikalische und strukturelle Mitteln | J232: 0
A233: WH / Begrenzte Ausdrucksmöglichkeiten
A234: Formulierungen
A235: Formulierungsschwierigkeiten / Wortschatz
A236: Angemessener Stil
A237: Keine ausreichende Sprachproduktion
A242: =A1 & " " & A2 -> BG/BRG MUSTERSCHULE Matura Haupttermin - Schuljahr 2013/ 2014
A243: Name: | B243: =B3 -> NAME04
A245: SPRACHRICHTIGKEIT | B245: Textproduktion 1
A246: Grundwortschatz / Strukturen / Wendungen | J246: 0
A247: Kommunikation beeinträchtigende Fehler
A248: Rechtschreibung und Zeichensetzung
A249: Interferenzen anderer Sprachen
A250: Keine Sprachproduktion / nicht verständlich
C259: 2. TEXTPRODUKTION
A264: ERFÜLLUNG DER AUFGABENSTELLUNG | B264: Textproduktion 2
A265: Einhaltung der Textsorte | J265: 0
... 69 more rows

Sheet NAME05
A1: =Schritte_1_2_3!A17 -> BG/BRG MUSTERSCHULE
A2: =Schritte_1_2_3!A18 & " - " & Schritte_1_2_3!A19 -> Matura Haupttermin - Schuljahr 2013/ 2014
A3: NAME: | B3: NAME05
B5: Erreichte Punkte | C5: Zu vergeb. Punkte | E5: Prozent Punkte | F5: WERTIGKEIT | G5: Wertigkeit festlegen
A6: Hörverständnis | B6: 20 | C6: 28 | D6: =IF(B6>C6,1,0) -> 0 | E6: =IF(C6<>0,IF(C6>=B6,B6/C6*G6,"FEHLER"),0) -> 17.85714286 | F6: =G6/100 -> 0.25 | G6: 25
A8: Leseverständnis | B8: 24 | C8: 30 | D8: =IF(B8>C8,1,0) -> 0 | E8: =IF(C8<>0,IF(C8>=B8,B8/C8*G8,"FEHLER"),0) -> 20 | F8: =G8/100 -> 0.25 | G8: 25
A10: Sprachverwendung im Kontext | B10: 36 | C10: 48 | D10: =IF(B10>C10,1,0) -> 0 | E10: =IF(C10<>0,IF(C10>=B10,B10/C10*G10,"FEHLER"),0) -> 18.75 | F10: =G10/100 -> 0.25 | G10: 25
I11: Assessment Scale B2
A12: Textproduktion 1 | B12: 36 | C12: 40 | D12: =IF(B12>C12,1,0) -> 0 | E12: =IF(C12<>0,IF(C12>=B12,B12/C12*G12,"FEHLER"),0) -> 11.25 | F12: =G12/100 -> 0.125 | G12: 12.5
A14: Textproduktion 2 | B14: 32 | C14: 40 | D14: =IF(B14>C14,1,0) -> 0 | E14: =IF(C14<>0,IF(C14>=B14,B14/C14*G14,"FEHLER"),0) -> 10 | F14: =G14/100 -> 0.125 | G14: 12.5
A16: Textproduktion 3 | B16: 0 | C16: 40 | D16: =IF(B16>C16,1,0) -> 0 | E16: =IF(C16<>0,IF(C16>=B16,B16/C16*G16,"FEHLER"),0) -> 0 | F16: =G16/100 -> 0 | G16: 0
F17: =F6+F8+F10+F12+F14+F16 -> 1
G18: =IF(OR(F17=100%,F17=99.999999%),"OK","Wertigkeit MUSS 100% sein!") -> OK
B19: PROZENTPUNKTE GESAMT | E19: =ROUND(E6+E8+E10+E12+E14+E16,2) -> 77.86 | F19: Rezeptive Fertigkeiten | H19: =E6+E8 -> 37.85714286
B20: NOTE: | C20: =IF(AND(H19/100>=SUM(F6:F8)/2,H20/100>=SUM(F10:F16)/2),IF(E19<D25,"NICHT GENÜGEND",IF(AND(E19>=D25,E19<D24),"GENÜGEND",IF(AND(E19>=D24,E19<D23),"BEFRIEDIGEND",IF(AND(E19>=D23,E19<D22),"GUT",IF(E19>=D22,"SEHR GUT",))))),"NICHT GENÜGEND") -> BEFRIEDIGEND | E20: =IF(AND(H19/100>=SUM(F6:F8)/2,H20/100>=SUM(F10:F16)/2),IF(E19<D25,5,IF(AND(E19>=D25,E19<D24),4,IF(AND(E19>=D24,E19<D23),3,IF(AND(E19>=D23,E19<D22),2,IF(E19>=D22,1,))))),5) -> 3 | F20: Produktive Fertigkeiten | H20: =E10+E12+E14+E16 -> 40
A22: Notenlegende | B22: Sehr gut | C22: 100 | D22: =D25+(C22-D25)/4*3 -> 90.75
B23: Gut | C23: =(((100-$D$25)/4)+D23)-0.01 -> 90.74 | D23: =D25+(C22-D25)/4*2 -> 81.5 | F23: 63 | G23: <- Notenschwelle festlegen
B24: Befriedigend | C24: =(((100-$D$25)/4)+D24)-0.01 -> 81.49 | D24: =D25+(C22-D25)/4 -> 72.25
B25: Genügend | C25: =(((100-$D$25)/4)+D25)-0.01 -> 72.24 | D25: =F23 -> 63
B26: Nicht genügend | C26: =F23-0.01 -> 62.99 | D26: 0
A29: =A1 & " " & A2 -> BG/BRG MUSTERSCHULE Matura Haupttermin - Schuljahr 2013/ 2014
A30: Name: | B30: =B3 -> NAME05
A32: TASK ACHIEVEMENT | B32: 1. TEXTAUFGABE
A33: Requirements of set task type | J33: 9
A34: Title / subject line / section headings
A35: Content points
A36: Supporting details / examples
A37: Different ideas / facts / graphs or solutions
A38: Explains ad/disadvantages
A39: Reasons in support of / against p.o.v.
A40: Personal significance of events / ideas
A41: Expressing news and views
A42: Set word length
A43: Performance/Communication
A45: ORGANISATION AND LAYOUT | B45: 1. TEXTAUFGABE
A46: Performance of structure | J46: 10
A47: Paragraphing conventions
A48: Developing points
A49: Relationships between ideas
A50: Linking devices
A51: Clearly intelligible continuous writing
A52: Layout for required task type
A53: No attempt at organisation
A55: LEXICAL AND STRUCTURAL RANGE | B55: 1. TEXTAUFGABE
A56: Expressing him/herself | J56: 9
A57: Variety in structures
A58: Structures / sentence forms
A59: Range of vocabulary for set task
A60: Formulation to avoid repetition
A61: Lifting of words from the prompt
A62: Expressing him/herself in the set task
A63: Descriptions / viewpoints / arguments
A64: Insufficient language to make an assessment
A66: =A1 & " " & A2 -> BG/BRG MUSTERSCHULE Matura Haupttermin - Schuljahr 2013/ 2014
A67: Name: | B67: =B3 -> NAME05
A69: LEXICAL AND STRUCTURAL ACCURACY | B69: 1. TEXTAUFGABE
A70: Structural control | J70: 8
A71: Errors and slips
A72: Influence from other languages
A73: Spelling
A74: Major errors with more complex thoughts
A75: Lexical inaccuracies
A76: Linking devices
A77: Punctuation conventions
A78: Rereading
A79: Limited accuracy
A80: Insufficient language to make an assessment
C83: 2. TEXTAUFGABE
A88: TASK ACHIEVEMENT | B88: 2. TEXTAUFGABE
A89: Requirements of set task type | J89: 8
A90: Title / subject line / section headings
A91: Content points
A92: Supporting details / examples
A93: Different ideas / facts / graphs or solutions
A94: Explains ad/disadvantages
A95: Reasons in support of / against p.o.v.
A96: Personal significance of events / ideas
A97: Expressing news and views
A98: Set word length
A99: Performance/Communication
A102: =A1 & " " & A2 -> BG/BRG MUSTERSCHULE Matura Haupttermin - Schuljahr 2013/ 2014
A103: Name: | B103: =B3 -> NAME05
A105: ORGANISATION AND LAYOUT | B105: 2. TEXTAUFGABE
A106: Performance of structure | J106: 9
A107: Paragraphing conventions
A108: Developing points
A109: Relationships between ideas
A110: Linking devices
A111: Clearly intelligible continuous writing
A112: Layout for required task type
A113: No attempt at organisation
A115: LEXICAL AND STRUCTURAL RANGE | B115: 2. TEXTAUFGABE
A116: Expressing him/herself | J116: 7
A117: Variety in structures
A118: Structures / sentence forms
A119: Range of vocabulary for set task
A120: Formulation to avoid repetition
A121: Lifting of words from the prompt
A122: Expressing him/herself in the set task
A123: Descriptions / viewpoints / arguments
A124: Insufficient language to make an assessment
A126: LEXICAL AND STRUCTURAL ACCURACY | B126: 2. TEXTAUFGABE
A127: Structural control | J127: 8
A128: Errors and slips
A129: Influence from other languages
A130: Spelling
A131: Major errors with more complex thoughts
A132: Lexical inaccuracies
A133: Linking devices
A134: Punctuation conventions
A135: Rereading
A136: Limited accuracy
A137: Insufficient language to make an assessment
A140: =A1 & " " & A2 -> BG/BRG MUSTERSCHULE Matura Haupttermin - Schuljahr 2013/ 2014
A141: Name: | B141: =B3 -> NAME05
C144: 3. TEXTAUFGABE
A149: TASK ACHIEVEMENT | B149: 3. TEXTAUFGABE
A150: Requirements of set task type | J150: 0
A151: Title / subject line / section headings
A152: Content points
A153: Supporting details / examples
A154: Different ideas / facts / graphs or solutions
A155: Explains ad/disadvantages
A156: Reasons in support of / against p.o.v.
A157: Personal significance of events / ideas
A158: Expressing news and views
A159: Set word length
A160: Performance/Communication
A162: ORGANISATION AND LAYOUT | B162: 3. TEXTAUFGABE
A163: Performance of structure | J163: 0
A164: Paragraphing conventions
A165: Developing points
A166: Relationships between ideas
A167: Linking devices
A168: Clearly intelligible continuous writing
A169: Layout for required task type
A170: No attempt at organisation
A176: =A1 & " " & A2 -> BG/BRG MUSTERSCHULE Matura Haupttermin - Schuljahr 2013/ 2014
A177: Name: | B177: =B3 -> NAME05
A180: LEXICAL AND STRUCTURAL RANGE | B180: 3. TEXTAUFGABE
A181: Expressing him/herself | J181: 0
A182: Variety in structures
A183: Structures / sentence forms
A184: Range of vocabulary for set task
A185: Formulation to avoid repetition
A186: Lifting of words from the prompt
A187: Expressing him/herself in the set task
A188: Descriptions / viewpoints / arguments
A189: Insufficient language to make an assessment
A191: LEXICAL AND STRUCTURAL ACCURACY | B191: 3. TEXTAUFGABE
A192: Structural control | J192: 0
A193: Errors and slips
A194: Influence from other languages
A195: Spelling
A196: Major errors with more complex thoughts
A197: Lexical inaccuracies
A198: Linking devices
A199: Punctuation conventions
A200: Rereading
A201: Limited accuracy
A202: Insufficient language to make an assessment
A205: =A1 & " " & A2 -> BG/BRG MUSTERSCHULE Matura Haupttermin - Schuljahr 2013/ 2014
A206: Name: | B206: =B3 -> NAME05
A208: ERFÜLLUNG DER AUFGABENSTELLUNG | B208: Textproduktion 1
A209: Einhaltung der Textsorte | J209: 0
A210: Titel/Betreff/Überschriften/Anrede/Grußzeile
A211: Ausführung der Aufgabenstellung
A212: Veranschaulichende Details
A213: Erklärung der Sachverhalte
A214: Irrelevante inhaltliche Punkte oder Details
A215: Eigene Meinung zu einer Situation
A216: Erklärung der Gründe für Handlungen
A217: Vorgegebene Wortanzahl
A218: Verfehlung der Aufgabenstellung
A221: AUFBAU UND LAYOUT | B221: Textproduktion 1
A222: Gesamtaufbau | J222: 0
A223: Präsentation inhaltlicher Punkte (Kohärenz)
A224: Gliederung
A225: Textspezifisches Layout
A226: Einsatz textgrammatischer Mittel (Kohäsion)
A227: Häufige Gedankensprünge
A228: Keine Struktur / keine Sprachproduktion
A231: SPEKTRUM SPRACHLICHER MITTEL | B231: Textproduktion 1
A232: Lexikalische und strukturelle Mitteln | J232: 0
A233: WH / Begrenzte Ausdrucksmöglichkeiten
A234: Formulierungen
A235: Formulierungsschwierigkeiten / Wortschatz
A236: Angemessener Stil
A237: Keine ausreichende Sprachproduktion
A242: =A1 & " " & A2 -> BG/BRG MUSTERSCHULE Matura Haupttermin - Schuljahr 2013/ 2014
A243: Name: | B243: =B3 -> NAME05
A245: SPRACHRICHTIGKEIT | B245: Textproduktion 1
A246: Grundwortschatz / Strukturen / Wendungen | J246: 0
A247: Kommunikation beeinträchtigende Fehler
A248: Rechtschreibung und Zeichensetzung
A249: Interferenzen anderer Sprachen
A250: Keine Sprachproduktion / nicht verständlich
C259: 2. TEXTPRODUKTION
A264: ERFÜLLUNG DER AUFGABENSTELLUNG | B264: Textproduktion 2
A265: Einhaltung der Textsorte | J265: 0
... 69 more rows

Sheet NAME06
A1: =Schritte_1_2_3!A17 -> BG/BRG MUSTERSCHULE
A2: =Schritte_1_2_3!A18 & " - " & Schritte_1_2_3!A19 -> Matura Haupttermin - Schuljahr 2013/ 2014
A3: NAME: | B3: NAME06
B5: Erreichte Punkte | C5: Zu vergeb. Punkte | E5: Prozent Punkte | F5: WERTIGKEIT | G5: Wertigkeit festlegen
A6: Hörverständnis | B6: 27 | C6: 28 | D6: =IF(B6>C6,1,0) -> 0 | E6: =IF(C6<>0,IF(C6>=B6,B6/C6*G6,"FEHLER"),0) -> 24.10714286 | F6: =G6/100 -> 0.25 | G6: 25
A8: Leseverständnis | B8: 29 | C8: 30 | D8: =IF(B8>C8,1,0) -> 0 | E8: =IF(C8<>0,IF(C8>=B8,B8/C8*G8,"FEHLER"),0) -> 24.16666667 | F8: =G8/100 -> 0.25 | G8: 25
A10: Sprachverwendung im Kontext | B10: 45 | C10: 48 | D10: =IF(B10>C10,1,0) -> 0 | E10: =IF(C10<>0,IF(C10>=B10,B10/C10*G10,"FEHLER"),0) -> 23.4375 | F10: =G10/100 -> 0.25 | G10: 25
I11: Assessment Scale B2
A12: Textproduktion 1 | B12: 40 | C12: 40 | D12: =IF(B12>C12,1,0) -> 0 | E12: =IF(C12<>0,IF(C12>=B12,B12/C12*G12,"FEHLER"),0) -> 12.5 | F12: =G12/100 -> 0.125 | G12: 12.5
A14: Textproduktion 2 | B14: 37 | C14: 40 | D14: =IF(B14>C14,1,0) -> 0 | E14: =IF(C14<>0,IF(C14>=B14,B14/C14*G14,"FEHLER"),0) -> 11.5625 | F14: =G14/100 -> 0.125 | G14: 12.5
A16: Textproduktion 3 | B16: 0 | C16: 40 | D16: =IF(B16>C16,1,0) -> 0 | E16: =IF(C16<>0,IF(C16>=B16,B16/C16*G16,"FEHLER"),0) -> 0 | F16: =G16/100 -> 0 | G16: 0
F17: =F6+F8+F10+F12+F14+F16 -> 1
G18: =IF(OR(F17=100%,F17=99.999999%),"OK","Wertigkeit MUSS 100% sein!") -> OK
B19: PROZENTPUNKTE GESAMT | E19: =ROUND(E6+E8+E10+E12+E14+E16,2) -> 95.77 | F19: Rezeptive Fertigkeiten | H19: =E6+E8 -> 48.27380952
B20: NOTE: | C20: =IF(AND(H19/100>=SUM(F6:F8)/2,H20/100>=SUM(F10:F16)/2),IF(E19<D25,"NICHT GENÜGEND",IF(AND(E19>=D25,E19<D24),"GENÜGEND",IF(AND(E19>=D24,E19<D23),"BEFRIEDIGEND",IF(AND(E19>=D23,E19<D22),"GUT",IF(E19>=D22,"SEHR GUT",))))),"NICHT GENÜGEND") -> SEHR GUT | E20: =IF(AND(H19/100>=SUM(F6:F8)/2,H20/100>=SUM(F10:F16)/2),IF(E19<D25,5,IF(AND(E19>=D25,E19<D24),4,IF(AND(E19>=D24,E19<D23),3,IF(AND(E19>=D23,E19<D22),2,IF(E19>=D22,1,))))),5) -> 1 | F20: Produktive Fertigkeiten | H20: =E10+E12+E14+E16 -> 47.5
A22: Notenlegende | B22: Sehr gut | C22: 100 | D22: =D25+(C22-D25)/4*3 -> 90.75
B23: Gut | C23: =(((100-$D$25)/4)+D23)-0.01 -> 90.74 | D23: =D25+(C22-D25)/4*2 -> 81.5 | F23: 63 | G23: <- Notenschwelle festlegen
B24: Befriedigend | C24: =(((100-$D$25)/4)+D24)-0.01 -> 81.49 | D24: =D25+(C22-D25)/4 -> 72.25
B25: Genügend | C25: =(((100-$D$25)/4)+D25)-0.01 -> 72.24 | D25: =F23 -> 63
B26: Nicht genügend | C26: =F23-0.01 -> 62.99 | D26: 0
A29: =A1 & " " & A2 -> BG/BRG MUSTERSCHULE Matura Haupttermin - Schuljahr 2013/ 2014
A30: Name: | B30: =B3 -> NAME06
A32: TASK ACHIEVEMENT | B32: 1. TEXTAUFGABE
A33: Requirements of set task type | J33: 10
A34: Title / subject line / section headings
A35: Content points
A36: Supporting details / examples
A37: Different ideas / facts / graphs or solutions
A38: Explains ad/disadvantages
A39: Reasons in support of / against p.o.v.
A40: Personal significance of events / ideas
A41: Expressing news and views
A42: Set word length
A43: Performance/Communication
A45: ORGANISATION AND LAYOUT | B45: 1. TEXTAUFGABE
A46: Performance of structure | J46: 10
A47: Paragraphing conventions
A48: Developing points
A49: Relationships between ideas
A50: Linking devices
A51: Clearly intelligible continuous writing
A52: Layout for required task type
A53: No attempt at organisation
A55: LEXICAL AND STRUCTURAL RANGE | B55: 1. TEXTAUFGABE
A56: Expressing him/herself | J56: 10
A57: Variety in structures
A58: Structures / sentence forms
A59: Range of vocabulary for set task
A60: Formulation to avoid repetition
A61: Lifting of words from the prompt
A62: Expressing him/herself in the set task
A63: Descriptions / viewpoints / arguments
A64: Insufficient language to make an assessment
A66: =A1 & " " & A2 -> BG/BRG MUSTERSCHULE Matura Haupttermin - Schuljahr 2013/ 2014
A67: Name: | B67: =B3 -> NAME06
A69: LEXICAL AND STRUCTURAL ACCURACY | B69: 1. TEXTAUFGABE
A70: Structural control | J70: 10
A71: Errors and slips
A72: Influence from other languages
A73: Spelling
A74: Major errors with more complex thoughts
A75: Lexical inaccuracies
A76: Linking devices
A77: Punctuation conventions
A78: Rereading
A79: Limited accuracy
A80: Insufficient language to make an assessment
C83: 2. TEXTAUFGABE
A88: TASK ACHIEVEMENT | B88: 2. TEXTAUFGABE
A89: Requirements of set task type | J89: 9
A90: Title / subject line / section headings
A91: Content points
A92: Supporting details / examples
A93: Different ideas / facts / graphs or solutions
A94: Explains ad/disadvantages
A95: Reasons in support of / against p.o.v.
A96: Personal significance of events / ideas
A97: Expressing news and views
A98: Set word length
A99: Performance/Communication
A102: =A1 & " " & A2 -> BG/BRG MUSTERSCHULE Matura Haupttermin - Schuljahr 2013/ 2014
A103: Name: | B103: =B3 -> NAME06
A105: ORGANISATION AND LAYOUT | B105: 2. TEXTAUFGABE
A106: Performance of structure | J106: 10
A107: Paragraphing conventions
A108: Developing points
A109: Relationships between ideas
A110: Linking devices
A111: Clearly intelligible continuous writing
A112: Layout for required task type
A113: No attempt at organisation
A115: LEXICAL AND STRUCTURAL RANGE | B115: 2. TEXTAUFGABE
A116: Expressing him/herself | J116: 10
A117: Variety in structures
A118: Structures / sentence forms
A119: Range of vocabulary for set task
A120: Formulation to avoid repetition
A121: Lifting of words from the prompt
A122: Expressing him/herself in the set task
A123: Descriptions / viewpoints / arguments
A124: Insufficient language to make an assessment
A126: LEXICAL AND STRUCTURAL ACCURACY | B126: 2. TEXTAUFGABE
A127: Structural control | J127: 8
A128: Errors and slips
A129: Influence from other languages
A130: Spelling
A131: Major errors with more complex thoughts
A132: Lexical inaccuracies
A133: Linking devices
A134: Punctuation conventions
A135: Rereading
A136: Limited accuracy
A137: Insufficient language to make an assessment
A140: =A1 & " " & A2 -> BG/BRG MUSTERSCHULE Matura Haupttermin - Schuljahr 2013/ 2014
A141: Name: | B141: =B3 -> NAME06
C144: 3. TEXTAUFGABE
A149: TASK ACHIEVEMENT | B149: 3. TEXTAUFGABE
A150: Requirements of set task type | J150: 0
A151: Title / subject line / section headings
A152: Content points
A153: Supporting details / examples
A154: Different ideas / facts / graphs or solutions
A155: Explains ad/disadvantages
A156: Reasons in support of / against p.o.v.
A157: Personal significance of events / ideas
A158: Expressing news and views
A159: Set word length
A160: Performance/Communication
A162: ORGANISATION AND LAYOUT | B162: 3. TEXTAUFGABE
A163: Performance of structure | J163: 0
A164: Paragraphing conventions
A165: Developing points
A166: Relationships between ideas
A167: Linking devices
A168: Clearly intelligible continuous writing
A169: Layout for required task type
A170: No attempt at organisation
A176: =A1 & " " & A2 -> BG/BRG MUSTERSCHULE Matura Haupttermin - Schuljahr 2013/ 2014
A177: Name: | B177: =B3 -> NAME06
A180: LEXICAL AND STRUCTURAL RANGE | B180: 3. TEXTAUFGABE
A181: Expressing him/herself | J181: 0
A182: Variety in structures
A183: Structures / sentence forms
A184: Range of vocabulary for set task
A185: Formulation to avoid repetition
A186: Lifting of words from the prompt
A187: Expressing him/herself in the set task
A188: Descriptions / viewpoints / arguments
A189: Insufficient language to make an assessment
A191: LEXICAL AND STRUCTURAL ACCURACY | B191: 3. TEXTAUFGABE
A192: Structural control | J192: 0
A193: Errors and slips
A194: Influence from other languages
A195: Spelling
A196: Major errors with more complex thoughts
A197: Lexical inaccuracies
A198: Linking devices
A199: Punctuation conventions
A200: Rereading
A201: Limited accuracy
A202: Insufficient language to make an assessment
A205: =A1 & " " & A2 -> BG/BRG MUSTERSCHULE Matura Haupttermin - Schuljahr 2013/ 2014
A206: Name: | B206: =B3 -> NAME06
A208: ERFÜLLUNG DER AUFGABENSTELLUNG | B208: Textproduktion 1
A209: Einhaltung der Textsorte | J209: 0
A210: Titel/Betreff/Überschriften/Anrede/Grußzeile
A211: Ausführung der Aufgabenstellung
A212: Veranschaulichende Details
A213: Erklärung der Sachverhalte
A214: Irrelevante inhaltliche Punkte oder Details
A215: Eigene Meinung zu einer Situation
A216: Erklärung der Gründe für Handlungen
A217: Vorgegebene Wortanzahl
A218: Verfehlung der Aufgabenstellung
A221: AUFBAU UND LAYOUT | B221: Textproduktion 1
A222: Gesamtaufbau | J222: 0
A223: Präsentation inhaltlicher Punkte (Kohärenz)
A224: Gliederung
A225: Textspezifisches Layout
A226: Einsatz textgrammatischer Mittel (Kohäsion)
A227: Häufige Gedankensprünge
A228: Keine Struktur / keine Sprachproduktion
A231: SPEKTRUM SPRACHLICHER MITTEL | B231: Textproduktion 1
A232: Lexikalische und strukturelle Mitteln | J232: 0
A233: WH / Begrenzte Ausdrucksmöglichkeiten
A234: Formulierungen
A235: Formulierungsschwierigkeiten / Wortschatz
A236: Angemessener Stil
A237: Keine ausreichende Sprachproduktion
A242: =A1 & " " & A2 -> BG/BRG MUSTERSCHULE Matura Haupttermin - Schuljahr 2013/ 2014
A243: Name: | B243: =B3 -> NAME06
A245: SPRACHRICHTIGKEIT | B245: Textproduktion 1
A246: Grundwortschatz / Strukturen / Wendungen | J246: 0
A247: Kommunikation beeinträchtigende Fehler
A248: Rechtschreibung und Zeichensetzung
A249: Interferenzen anderer Sprachen
A250: Keine Sprachproduktion / nicht verständlich
C259: 2. TEXTPRODUKTION
A264: ERFÜLLUNG DER AUFGABENSTELLUNG | B264: Textproduktion 2
A265: Einhaltung der Textsorte | J265: 0
... 69 more rows

Sheet NAME07
A1: =Schritte_1_2_3!A17 -> BG/BRG MUSTERSCHULE
A2: =Schritte_1_2_3!A18 & " - " & Schritte_1_2_3!A19 -> Matura Haupttermin - Schuljahr 2013/ 2014
A3: NAME: | B3: NAME07
B5: Erreichte Punkte | C5: Zu vergeb. Punkte | E5: Prozent Punkte | F5: WERTIGKEIT | G5: Wertigkeit festlegen
A6: Hörverständnis | B6: 26 | C6: 28 | D6: =IF(B6>C6,1,0) -> 0 | E6: =IF(C6<>0,IF(C6>=B6,B6/C6*G6,"FEHLER"),0) -> 23.21428571 | F6: =G6/100 -> 0.25 | G6: 25
A8: Leseverständnis | B8: 27 | C8: 30 | D8: =IF(B8>C8,1,0) -> 0 | E8: =IF(C8<>0,IF(C8>=B8,B8/C8*G8,"FEHLER"),0) -> 22.5 | F8: =G8/100 -> 0.25 | G8: 25
A10: Sprachverwendung im Kontext | B10: 30 | C10: 48 | D10: =IF(B10>C10,1,0) -> 0 | E10: =IF(C10<>0,IF(C10>=B10,B10/C10*G10,"FEHLER"),0) -> 15.625 | F10: =G10/100 -> 0.25 | G10: 25
I11: Assessment Scale B2
A12: Textproduktion 1 | B12: 28 | C12: 40 | D12: =IF(B12>C12,1,0) -> 0 | E12: =IF(C12<>0,IF(C12>=B12,B12/C12*G12,"FEHLER"),0) -> 8.75 | F12: =G12/100 -> 0.125 | G12: 12.5
A14: Textproduktion 2 | B14: 19 | C14: 40 | D14: =IF(B14>C14,1,0) -> 0 | E14: =IF(C14<>0,IF(C14>=B14,B14/C14*G14,"FEHLER"),0) -> 5.9375 | F14: =G14/100 -> 0.125 | G14: 12.5
A16: Textproduktion 3 | B16: 0 | C16: 40 | D16: =IF(B16>C16,1,0) -> 0 | E16: =IF(C16<>0,IF(C16>=B16,B16/C16*G16,"FEHLER"),0) -> 0 | F16: =G16/100 -> 0 | G16: 0
F17: =F6+F8+F10+F12+F14+F16 -> 1
G18: =IF(OR(F17=100%,F17=99.999999%),"OK","Wertigkeit MUSS 100% sein!") -> OK
B19: PROZENTPUNKTE GESAMT | E19: =ROUND(E6+E8+E10+E12+E14+E16,2) -> 76.03 | F19: Rezeptive Fertigkeiten | H19: =E6+E8 -> 45.71428571
B20: NOTE: | C20: =IF(AND(H19/100>=SUM(F6:F8)/2,H20/100>=SUM(F10:F16)/2),IF(E19<D25,"NICHT GENÜGEND",IF(AND(E19>=D25,E19<D24),"GENÜGEND",IF(AND(E19>=D24,E19<D23),"BEFRIEDIGEND",IF(AND(E19>=D23,E19<D22),"GUT",IF(E19>=D22,"SEHR GUT",))))),"NICHT GENÜGEND") -> BEFRIEDIGEND | E20: =IF(AND(H19/100>=SUM(F6:F8)/2,H20/100>=SUM(F10:F16)/2),IF(E19<D25,5,IF(AND(E19>=D25,E19<D24),4,IF(AND(E19>=D24,E19<D23),3,IF(AND(E19>=D23,E19<D22),2,IF(E19>=D22,1,))))),5) -> 3 | F20: Produktive Fertigkeiten | H20: =E10+E12+E14+E16 -> 30.3125
A22: Notenlegende | B22: Sehr gut | C22: 100 | D22: =D25+(C22-D25)/4*3 -> 90.75
B23: Gut | C23: =(((100-$D$25)/4)+D23)-0.01 -> 90.74 | D23: =D25+(C22-D25)/4*2 -> 81.5 | F23: 63 | G23: <- Notenschwelle festlegen
B24: Befriedigend | C24: =(((100-$D$25)/4)+D24)-0.01 -> 81.49 | D24: =D25+(C22-D25)/4 -> 72.25
B25: Genügend | C25: =(((100-$D$25)/4)+D25)-0.01 -> 72.24 | D25: =F23 -> 63
B26: Nicht genügend | C26: =F23-0.01 -> 62.99 | D26: 0
A29: =A1 & " " & A2 -> BG/BRG MUSTERSCHULE Matura Haupttermin - Schuljahr 2013/ 2014
A30: Name: | B30: =B3 -> NAME07
A32: TASK ACHIEVEMENT | B32: 1. TEXTAUFGABE
A33: Requirements of set task type | J33: 7
A34: Title / subject line / section headings
A35: Content points
A36: Supporting details / examples
A37: Different ideas / facts / graphs or solutions
A38: Explains ad/disadvantages
A39: Reasons in support of / against p.o.v.
A40: Personal significance of events / ideas
A41: Expressing news and views
A42: Set word length
A43: Performance/Communication
A45: ORGANISATION AND LAYOUT | B45: 1. TEXTAUFGABE
A46: Performance of structure | J46: 8
A47: Paragraphing conventions
A48: Developing points
A49: Relationships between ideas
A50: Linking devices
A51: Clearly intelligible continuous writing
A52: Layout for required task type
A53: No attempt at organisation
A55: LEXICAL AND STRUCTURAL RANGE | B55: 1. TEXTAUFGABE
A56: Expressing him/herself | J56: 7
A57: Variety in structures
A58: Structures / sentence forms
A59: Range of vocabulary for set task
A60: Formulation to avoid repetition
A61: Lifting of words from the prompt
A62: Expressing him/herself in the set task
A63: Descriptions / viewpoints / arguments
A64: Insufficient language to make an assessment
A66: =A1 & " " & A2 -> BG/BRG MUSTERSCHULE Matura Haupttermin - Schuljahr 2013/ 2014
A67: Name: | B67: =B3 -> NAME07
A69: LEXICAL AND STRUCTURAL ACCURACY | B69: 1. TEXTAUFGABE
A70: Structural control | J70: 6
A71: Errors and slips
A72: Influence from other languages
A73: Spelling
A74: Major errors with more complex thoughts
A75: Lexical inaccuracies
A76: Linking devices
A77: Punctuation conventions
A78: Rereading
A79: Limited accuracy
A80: Insufficient language to make an assessment
C83: 2. TEXTAUFGABE
A88: TASK ACHIEVEMENT | B88: 2. TEXTAUFGABE
A89: Requirements of set task type | J89: 4
A90: Title / subject line / section headings
A91: Content points
A92: Supporting details / examples
A93: Different ideas / facts / graphs or solutions
A94: Explains ad/disadvantages
A95: Reasons in support of / against p.o.v.
A96: Personal significance of events / ideas
A97: Expressing news and views
A98: Set word length
A99: Performance/Communication
A102: =A1 & " " & A2 -> BG/BRG MUSTERSCHULE Matura Haupttermin - Schuljahr 2013/ 2014
A103: Name: | B103: =B3 -> NAME07
A105: ORGANISATION AND LAYOUT | B105: 2. TEXTAUFGABE
A106: Performance of structure | J106: 4
A107: Paragraphing conventions
A108: Developing points
A109: Relationships between ideas
A110: Linking devices
A111: Clearly intelligible continuous writing
A112: Layout for required task type
A113: No attempt at organisation
A115: LEXICAL AND STRUCTURAL RANGE | B115: 2. TEXTAUFGABE
A116: Expressing him/herself | J116: 6
A117: Variety in structures
A118: Structures / sentence forms
A119: Range of vocabulary for set task
A120: Formulation to avoid repetition
A121: Lifting of words from the prompt
A122: Expressing him/herself in the set task
A123: Descriptions / viewpoints / arguments
A124: Insufficient language to make an assessment
A126: LEXICAL AND STRUCTURAL ACCURACY | B126: 2. TEXTAUFGABE
A127: Structural control | J127: 5
A128: Errors and slips
A129: Influence from other languages
A130: Spelling
A131: Major errors with more complex thoughts
A132: Lexical inaccuracies
A133: Linking devices
A134: Punctuation conventions
A135: Rereading
A136: Limited accuracy
A137: Insufficient language to make an assessment
A140: =A1 & " " & A2 -> BG/BRG MUSTERSCHULE Matura Haupttermin - Schuljahr 2013/ 2014
A141: Name: | B141: =B3 -> NAME07
C144: 3. TEXTAUFGABE
A149: TASK ACHIEVEMENT | B149: 3. TEXTAUFGABE
A150: Requirements of set task type | J150: 0
A151: Title / subject line / section headings
A152: Content points
A153: Supporting details / examples
A154: Different ideas / facts / graphs or solutions
A155: Explains ad/disadvantages
A156: Reasons in support of / against p.o.v.
A157: Personal significance of events / ideas
A158: Expressing news and views
A159: Set word length
A160: Performance/Communication
A162: ORGANISATION AND LAYOUT | B162: 3. TEXTAUFGABE
A163: Performance of structure | J163: 0
A164: Paragraphing conventions
A165: Developing points
A166: Relationships between ideas
A167: Linking devices
A168: Clearly intelligible continuous writing
A169: Layout for required task type
A170: No attempt at organisation
A176: =A1 & " " & A2 -> BG/BRG MUSTERSCHULE Matura Haupttermin - Schuljahr 2013/ 2014
A177: Name: | B177: =B3 -> NAME07
A180: LEXICAL AND STRUCTURAL RANGE | B180: 3. TEXTAUFGABE
A181: Expressing him/herself | J181: 0
A182: Variety in structures
A183: Structures / sentence forms
A184: Range of vocabulary for set task
A185: Formulation to avoid repetition
A186: Lifting of words from the prompt
A187: Expressing him/herself in the set task
A188: Descriptions / viewpoints / arguments
A189: Insufficient language to make an assessment
A191: LEXICAL AND STRUCTURAL ACCURACY | B191: 3. TEXTAUFGABE
A192: Structural control | J192: 0
A193: Errors and slips
A194: Influence from other languages
A195: Spelling
A196: Major errors with more complex thoughts
A197: Lexical inaccuracies
A198: Linking devices
A199: Punctuation conventions
A200: Rereading
A201: Limited accuracy
A202: Insufficient language to make an assessment
A205: =A1 & " " & A2 -> BG/BRG MUSTERSCHULE Matura Haupttermin - Schuljahr 2013/ 2014
A206: Name: | B206: =B3 -> NAME07
A208: ERFÜLLUNG DER AUFGABENSTELLUNG | B208: Textproduktion 1
A209: Einhaltung der Textsorte | J209: 0
A210: Titel/Betreff/Überschriften/Anrede/Grußzeile
A211: Ausführung der Aufgabenstellung
A212: Veranschaulichende Details
A213: Erklärung der Sachverhalte
A214: Irrelevante inhaltliche Punkte oder Details
A215: Eigene Meinung zu einer Situation
A216: Erklärung der Gründe für Handlungen
A217: Vorgegebene Wortanzahl
A218: Verfehlung der Aufgabenstellung
A221: AUFBAU UND LAYOUT | B221: Textproduktion 1
A222: Gesamtaufbau | J222: 0
A223: Präsentation inhaltlicher Punkte (Kohärenz)
A224: Gliederung
A225: Textspezifisches Layout
A226: Einsatz textgrammatischer Mittel (Kohäsion)
A227: Häufige Gedankensprünge
A228: Keine Struktur / keine Sprachproduktion
A231: SPEKTRUM SPRACHLICHER MITTEL | B231: Textproduktion 1
A232: Lexikalische und strukturelle Mitteln | J232: 0
A233: WH / Begrenzte Ausdrucksmöglichkeiten
A234: Formulierungen
A235: Formulierungsschwierigkeiten / Wortschatz
A236: Angemessener Stil
A237: Keine ausreichende Sprachproduktion
A242: =A1 & " " & A2 -> BG/BRG MUSTERSCHULE Matura Haupttermin - Schuljahr 2013/ 2014
A243: Name: | B243: =B3 -> NAME07
A245: SPRACHRICHTIGKEIT | B245: Textproduktion 1
A246: Grundwortschatz / Strukturen / Wendungen | J246: 0
A247: Kommunikation beeinträchtigende Fehler
A248: Rechtschreibung und Zeichensetzung
A249: Interferenzen anderer Sprachen
A250: Keine Sprachproduktion / nicht verständlich
C259: 2. TEXTPRODUKTION
A264: ERFÜLLUNG DER AUFGABENSTELLUNG | B264: Textproduktion 2
A265: Einhaltung der Textsorte | J265: 0
... 69 more rows

Sheet NAME08
A1: =Schritte_1_2_3!A17 -> BG/BRG MUSTERSCHULE
A2: =Schritte_1_2_3!A18 & " - " & Schritte_1_2_3!A19 -> Matura Haupttermin - Schuljahr 2013/ 2014
A3: NAME: | B3: NAME08
B5: Erreichte Punkte | C5: Zu vergeb. Punkte | E5: Prozent Punkte | F5: WERTIGKEIT | G5: Wertigkeit festlegen
A6: Hörverständnis | B6: 25 | C6: 28 | D6: =IF(B6>C6,1,0) -> 0 | E6: =IF(C6<>0,IF(C6>=B6,B6/C6*G6,"FEHLER"),0) -> 22.32142857 | F6: =G6/100 -> 0.25 | G6: 25
A8: Leseverständnis | B8: 28 | C8: 30 | D8: =IF(B8>C8,1,0) -> 0 | E8: =IF(C8<>0,IF(C8>=B8,B8/C8*G8,"FEHLER"),0) -> 23.33333333 | F8: =G8/100 -> 0.25 | G8: 25
A10: Sprachverwendung im Kontext | B10: 41 | C10: 48 | D10: =IF(B10>C10,1,0) -> 0 | E10: =IF(C10<>0,IF(C10>=B10,B10/C10*G10,"FEHLER"),0) -> 21.35416667 | F10: =G10/100 -> 0.25 | G10: 25
I11: Assessment Scale B2
A12: Textproduktion 1 | B12: 39 | C12: 40 | D12: =IF(B12>C12,1,0) -> 0 | E12: =IF(C12<>0,IF(C12>=B12,B12/C12*G12,"FEHLER"),0) -> 12.1875 | F12: =G12/100 -> 0.125 | G12: 12.5
A14: Textproduktion 2 | B14: 36 | C14: 40 | D14: =IF(B14>C14,1,0) -> 0 | E14: =IF(C14<>0,IF(C14>=B14,B14/C14*G14,"FEHLER"),0) -> 11.25 | F14: =G14/100 -> 0.125 | G14: 12.5
A16: Textproduktion 3 | B16: 0 | C16: 40 | D16: =IF(B16>C16,1,0) -> 0 | E16: =IF(C16<>0,IF(C16>=B16,B16/C16*G16,"FEHLER"),0) -> 0 | F16: =G16/100 -> 0 | G16: 0
F17: =F6+F8+F10+F12+F14+F16 -> 1
G18: =IF(OR(F17=100%,F17=99.999999%),"OK","Wertigkeit MUSS 100% sein!") -> OK
B19: PROZENTPUNKTE GESAMT | E19: =ROUND(E6+E8+E10+E12+E14+E16,2) -> 90.45 | F19: Rezeptive Fertigkeiten | H19: =E6+E8 -> 45.6547619
B20: NOTE: | C20: =IF(AND(H19/100>=SUM(F6:F8)/2,H20/100>=SUM(F10:F16)/2),IF(E19<D25,"NICHT GENÜGEND",IF(AND(E19>=D25,E19<D24),"GENÜGEND",IF(AND(E19>=D24,E19<D23),"BEFRIEDIGEND",IF(AND(E19>=D23,E19<D22),"GUT",IF(E19>=D22,"SEHR GUT",))))),"NICHT GENÜGEND") -> GUT | E20: =IF(AND(H19/100>=SUM(F6:F8)/2,H20/100>=SUM(F10:F16)/2),IF(E19<D25,5,IF(AND(E19>=D25,E19<D24),4,IF(AND(E19>=D24,E19<D23),3,IF(AND(E19>=D23,E19<D22),2,IF(E19>=D22,1,))))),5) -> 2 | F20: Produktive Fertigkeiten | H20: =E10+E12+E14+E16 -> 44.79166667
A22: Notenlegende | B22: Sehr gut | C22: 100 | D22: =D25+(C22-D25)/4*3 -> 90.75
B23: Gut | C23: =(((100-$D$25)/4)+D23)-0.01 -> 90.74 | D23: =D25+(C22-D25)/4*2 -> 81.5 | F23: 63 | G23: <- Notenschwelle festlegen
B24: Befriedigend | C24: =(((100-$D$25)/4)+D24)-0.01 -> 81.49 | D24: =D25+(C22-D25)/4 -> 72.25
B25: Genügend | C25: =(((100-$D$25)/4)+D25)-0.01 -> 72.24 | D25: =F23 -> 63
B26: Nicht genügend | C26: =F23-0.01 -> 62.99 | D26: 0
A29: =A1 & " " & A2 -> BG/BRG MUSTERSCHULE Matura Haupttermin - Schuljahr 2013/ 2014
A30: Name: | B30: =B3 -> NAME08
A32: TASK ACHIEVEMENT | B32: 1. TEXTAUFGABE
A33: Requirements of set task type | J33: 10
A34: Title / subject line / section headings
A35: Content points
A36: Supporting details / examples
A37: Different ideas / facts / graphs or solutions
A38: Explains ad/disadvantages
A39: Reasons in support of / against p.o.v.
A40: Personal significance of events / ideas
A41: Expressing news and views
A42: Set word length
A43: Performance/Communication
A45: ORGANISATION AND LAYOUT | B45: 1. TEXTAUFGABE
A46: Performance of structure | J46: 10
A47: Paragraphing conventions
A48: Developing points
A49: Relationships between ideas
A50: Linking devices
A51: Clearly intelligible continuous writing
A52: Layout for required task type
A53: No attempt at organisation
A55: LEXICAL AND STRUCTURAL RANGE | B55: 1. TEXTAUFGABE
A56: Expressing him/herself | J56: 10
A57: Variety in structures
A58: Structures / sentence forms
A59: Range of vocabulary for set task
A60: Formulation to avoid repetition
A61: Lifting of words from the prompt
A62: Expressing him/herself in the set task
A63: Descriptions / viewpoints / arguments
A64: Insufficient language to make an assessment
A66: =A1 & " " & A2 -> BG/BRG MUSTERSCHULE Matura Haupttermin - Schuljahr 2013/ 2014
A67: Name: | B67: =B3 -> NAME08
A69: LEXICAL AND STRUCTURAL ACCURACY | B69: 1. TEXTAUFGABE
A70: Structural control | J70: 9
A71: Errors and slips
A72: Influence from other languages
A73: Spelling
A74: Major errors with more complex thoughts
A75: Lexical inaccuracies
A76: Linking devices
A77: Punctuation conventions
A78: Rereading
A79: Limited accuracy
A80: Insufficient language to make an assessment
C83: 2. TEXTAUFGABE
A88: TASK ACHIEVEMENT | B88: 2. TEXTAUFGABE
A89: Requirements of set task type | J89: 9
A90: Title / subject line / section headings
A91: Content points
A92: Supporting details / examples
A93: Different ideas / facts / graphs or solutions
A94: Explains ad/disadvantages
A95: Reasons in support of / against p.o.v.
A96: Personal significance of events / ideas
A97: Expressing news and views
A98: Set word length
A99: Performance/Communication
A102: =A1 & " " & A2 -> BG/BRG MUSTERSCHULE Matura Haupttermin - Schuljahr 2013/ 2014
A103: Name: | B103: =B3 -> NAME08
A105: ORGANISATION AND LAYOUT | B105: 2. TEXTAUFGABE
A106: Performance of structure | J106: 8
A107: Paragraphing conventions
A108: Developing points
A109: Relationships between ideas
A110: Linking devices
A111: Clearly intelligible continuous writing
A112: Layout for required task type
A113: No attempt at organisation
A115: LEXICAL AND STRUCTURAL RANGE | B115: 2. TEXTAUFGABE
A116: Expressing him/herself | J116: 9
A117: Variety in structures
A118: Structures / sentence forms
A119: Range of vocabulary for set task
A120: Formulation to avoid repetition
A121: Lifting of words from the prompt
A122: Expressing him/herself in the set task
A123: Descriptions / viewpoints / arguments
A124: Insufficient language to make an assessment
A126: LEXICAL AND STRUCTURAL ACCURACY | B126: 2. TEXTAUFGABE
A127: Structural control | J127: 10
A128: Errors and slips
A129: Influence from other languages
A130: Spelling
A131: Major errors with more complex thoughts
A132: Lexical inaccuracies
A133: Linking devices
A134: Punctuation conventions
A135: Rereading
A136: Limited accuracy
A137: Insufficient language to make an assessment
A140: =A1 & " " & A2 -> BG/BRG MUSTERSCHULE Matura Haupttermin - Schuljahr 2013/ 2014
A141: Name: | B141: =B3 -> NAME08
C144: 3. TEXTAUFGABE
A149: TASK ACHIEVEMENT | B149: 3. TEXTAUFGABE
A150: Requirements of set task type | J150: 0
A151: Title / subject line / section headings
A152: Content points
A153: Supporting details / examples
A154: Different ideas / facts / graphs or solutions
A155: Explains ad/disadvantages
A156: Reasons in support of / against p.o.v.
A157: Personal significance of events / ideas
A158: Expressing news and views
A159: Set word length
A160: Performance/Communication
A162: ORGANISATION AND LAYOUT | B162: 3. TEXTAUFGABE
A163: Performance of structure | J163: 0
A164: Paragraphing conventions
A165: Developing points
A166: Relationships between ideas
A167: Linking devices
A168: Clearly intelligible continuous writing
A169: Layout for required task type
A170: No attempt at organisation
A176: =A1 & " " & A2 -> BG/BRG MUSTERSCHULE Matura Haupttermin - Schuljahr 2013/ 2014
A177: Name: | B177: =B3 -> NAME08
A180: LEXICAL AND STRUCTURAL RANGE | B180: 3. TEXTAUFGABE
A181: Expressing him/herself | J181: 0
A182: Variety in structures
A183: Structures / sentence forms
A184: Range of vocabulary for set task
A185: Formulation to avoid repetition
A186: Lifting of words from the prompt
A187: Expressing him/herself in the set task
A188: Descriptions / viewpoints / arguments
A189: Insufficient language to make an assessment
A191: LEXICAL AND STRUCTURAL ACCURACY | B191: 3. TEXTAUFGABE
A192: Structural control | J192: 0
A193: Errors and slips
A194: Influence from other languages
A195: Spelling
A196: Major errors with more complex thoughts
A197: Lexical inaccuracies
A198: Linking devices
A199: Punctuation conventions
A200: Rereading
A201: Limited accuracy
A202: Insufficient language to make an assessment
A205: =A1 & " " & A2 -> BG/BRG MUSTERSCHULE Matura Haupttermin - Schuljahr 2013/ 2014
A206: Name: | B206: =B3 -> NAME08
A208: ERFÜLLUNG DER AUFGABENSTELLUNG | B208: Textproduktion 1
A209: Einhaltung der Textsorte | J209: 0
A210: Titel/Betreff/Überschriften/Anrede/Grußzeile
A211: Ausführung der Aufgabenstellung
A212: Veranschaulichende Details
A213: Erklärung der Sachverhalte
A214: Irrelevante inhaltliche Punkte oder Details
A215: Eigene Meinung zu einer Situation
A216: Erklärung der Gründe für Handlungen
A217: Vorgegebene Wortanzahl
A218: Verfehlung der Aufgabenstellung
A221: AUFBAU UND LAYOUT | B221: Textproduktion 1
A222: Gesamtaufbau | J222: 0
A223: Präsentation inhaltlicher Punkte (Kohärenz)
A224: Gliederung
A225: Textspezifisches Layout
A226: Einsatz textgrammatischer Mittel (Kohäsion)
A227: Häufige Gedankensprünge
A228: Keine Struktur / keine Sprachproduktion
A231: SPEKTRUM SPRACHLICHER MITTEL | B231: Textproduktion 1
A232: Lexikalische und strukturelle Mitteln | J232: 0
A233: WH / Begrenzte Ausdrucksmöglichkeiten
A234: Formulierungen
A235: Formulierungsschwierigkeiten / Wortschatz
A236: Angemessener Stil
A237: Keine ausreichende Sprachproduktion
A242: =A1 & " " & A2 -> BG/BRG MUSTERSCHULE Matura Haupttermin - Schuljahr 2013/ 2014
A243: Name: | B243: =B3 -> NAME08
A245: SPRACHRICHTIGKEIT | B245: Textproduktion 1
A246: Grundwortschatz / Strukturen / Wendungen | J246: 0
A247: Kommunikation beeinträchtigende Fehler
A248: Rechtschreibung und Zeichensetzung
A249: Interferenzen anderer Sprachen
A250: Keine Sprachproduktion / nicht verständlich
C259: 2. TEXTPRODUKTION
A264: ERFÜLLUNG DER AUFGABENSTELLUNG | B264: Textproduktion 2
A265: Einhaltung der Textsorte | J265: 0
... 69 more rows

Sheet NAME09
A1: =Schritte_1_2_3!A17 -> BG/BRG MUSTERSCHULE
A2: =Schritte_1_2_3!A18 & " - " & Schritte_1_2_3!A19 -> Matura Haupttermin - Schuljahr 2013/ 2014
A3: NAME: | B3: NAME09
B5: Erreichte Punkte | C5: Zu vergeb. Punkte | E5: Prozent Punkte | F5: WERTIGKEIT | G5: Wertigkeit festlegen
A6: Hörverständnis | B6: 27 | C6: 28 | D6: =IF(B6>C6,1,0) -> 0 | E6: =IF(C6<>0,IF(C6>=B6,B6/C6*G6,"FEHLER"),0) -> 24.10714286 | F6: =G6/100 -> 0.25 | G6: 25
A8: Leseverständnis | B8: 23 | C8: 30 | D8: =IF(B8>C8,1,0) -> 0 | E8: =IF(C8<>0,IF(C8>=B8,B8/C8*G8,"FEHLER"),0) -> 19.16666667 | F8: =G8/100 -> 0.25 | G8: 25
A10: Sprachverwendung im Kontext | B10: 30 | C10: 48 | D10: =IF(B10>C10,1,0) -> 0 | E10: =IF(C10<>0,IF(C10>=B10,B10/C10*G10,"FEHLER"),0) -> 15.625 | F10: =G10/100 -> 0.25 | G10: 25
I11: Assessment Scale B2
A12: Textproduktion 1 | B12: 29 | C12: 40 | D12: =IF(B12>C12,1,0) -> 0 | E12: =IF(C12<>0,IF(C12>=B12,B12/C12*G12,"FEHLER"),0) -> 9.0625 | F12: =G12/100 -> 0.125 | G12: 12.5
A14: Textproduktion 2 | B14: 24 | C14: 40 | D14: =IF(B14>C14,1,0) -> 0 | E14: =IF(C14<>0,IF(C14>=B14,B14/C14*G14,"FEHLER"),0) -> 7.5 | F14: =G14/100 -> 0.125 | G14: 12.5
A16: Textproduktion 3 | B16: 0 | C16: 40 | D16: =IF(B16>C16,1,0) -> 0 | E16: =IF(C16<>0,IF(C16>=B16,B16/C16*G16,"FEHLER"),0) -> 0 | F16: =G16/100 -> 0 | G16: 0
F17: =F6+F8+F10+F12+F14+F16 -> 1
G18: =IF(OR(F17=100%,F17=99.999999%),"OK","Wertigkeit MUSS 100% sein!") -> OK
B19: PROZENTPUNKTE GESAMT | E19: =ROUND(E6+E8+E10+E12+E14+E16,2) -> 75.46 | F19: Rezeptive Fertigkeiten | H19: =E6+E8 -> 43.27380952
B20: NOTE: | C20: =IF(AND(H19/100>=SUM(F6:F8)/2,H20/100>=SUM(F10:F16)/2),IF(E19<D25,"NICHT GENÜGEND",IF(AND(E19>=D25,E19<D24),"GENÜGEND",IF(AND(E19>=D24,E19<D23),"BEFRIEDIGEND",IF(AND(E19>=D23,E19<D22),"GUT",IF(E19>=D22,"SEHR GUT",))))),"NICHT GENÜGEND") -> BEFRIEDIGEND | E20: =IF(AND(H19/100>=SUM(F6:F8)/2,H20/100>=SUM(F10:F16)/2),IF(E19<D25,5,IF(AND(E19>=D25,E19<D24),4,IF(AND(E19>=D24,E19<D23),3,IF(AND(E19>=D23,E19<D22),2,IF(E19>=D22,1,))))),5) -> 3 | F20: Produktive Fertigkeiten | H20: =E10+E12+E14+E16 -> 32.1875
A22: Notenlegende | B22: Sehr gut | C22: 100 | D22: =D25+(C22-D25)/4*3 -> 90.75
B23: Gut | C23: =(((100-$D$25)/4)+D23)-0.01 -> 90.74 | D23: =D25+(C22-D25)/4*2 -> 81.5 | F23: 63 | G23: <- Notenschwelle festlegen
B24: Befriedigend | C24: =(((100-$D$25)/4)+D24)-0.01 -> 81.49 | D24: =D25+(C22-D25)/4 -> 72.25
B25: Genügend | C25: =(((100-$D$25)/4)+D25)-0.01 -> 72.24 | D25: =F23 -> 63
B26: Nicht genügend | C26: =F23-0.01 -> 62.99 | D26: 0
A29: =A1 & " " & A2 -> BG/BRG MUSTERSCHULE Matura Haupttermin - Schuljahr 2013/ 2014
A30: Name: | B30: =B3 -> NAME09
A32: TASK ACHIEVEMENT | B32: 1. TEXTAUFGABE
A33: Requirements of set task type | J33: 6
A34: Title / subject line / section headings
A35: Content points
A36: Supporting details / examples
A37: Different ideas / facts / graphs or solutions
A38: Explains ad/disadvantages
A39: Reasons in support of / against p.o.v.
A40: Personal significance of events / ideas
A41: Expressing news and views
A42: Set word length
A43: Performance/Communication
A45: ORGANISATION AND LAYOUT | B45: 1. TEXTAUFGABE
A46: Performance of structure | J46: 7
A47: Paragraphing conventions
A48: Developing points
A49: Relationships between ideas
A50: Linking devices
A51: Clearly intelligible continuous writing
A52: Layout for required task type
A53: No attempt at organisation
A55: LEXICAL AND STRUCTURAL RANGE | B55: 1. TEXTAUFGABE
A56: Expressing him/herself | J56: 8
A57: Variety in structures
A58: Structures / sentence forms
A59: Range of vocabulary for set task
A60: Formulation to avoid repetition
A61: Lifting of words from the prompt
A62: Expressing him/herself in the set task
A63: Descriptions / viewpoints / arguments
A64: Insufficient language to make an assessment
A66: =A1 & " " & A2 -> BG/BRG MUSTERSCHULE Matura Haupttermin - Schuljahr 2013/ 2014
A67: Name: | B67: =B3 -> NAME09
A69: LEXICAL AND STRUCTURAL ACCURACY | B69: 1. TEXTAUFGABE
A70: Structural control | J70: 8
A71: Errors and slips
A72: Influence from other languages
A73: Spelling
A74: Major errors with more complex thoughts
A75: Lexical inaccuracies
A76: Linking devices
A77: Punctuation conventions
A78: Rereading
A79: Limited accuracy
A80: Insufficient language to make an assessment
C83: 2. TEXTAUFGABE
A88: TASK ACHIEVEMENT | B88: 2. TEXTAUFGABE
A89: Requirements of set task type | J89: 7
A90: Title / subject line / section headings
A91: Content points
A92: Supporting details / examples
A93: Different ideas / facts / graphs or solutions
A94: Explains ad/disadvantages
A95: Reasons in support of / against p.o.v.
A96: Personal significance of events / ideas
A97: Expressing news and views
A98: Set word length
A99: Performance/Communication
A102: =A1 & " " & A2 -> BG/BRG MUSTERSCHULE Matura Haupttermin - Schuljahr 2013/ 2014
A103: Name: | B103: =B3 -> NAME09
A105: ORGANISATION AND LAYOUT | B105: 2. TEXTAUFGABE
A106: Performance of structure | J106: 7
A107: Paragraphing conventions
A108: Developing points
A109: Relationships between ideas
A110: Linking devices
A111: Clearly intelligible continuous writing
A112: Layout for required task type
A113: No attempt at organisation
A115: LEXICAL AND STRUCTURAL RANGE | B115: 2. TEXTAUFGABE
A116: Expressing him/herself | J116: 4
A117: Variety in structures
A118: Structures / sentence forms
A119: Range of vocabulary for set task
A120: Formulation to avoid repetition
A121: Lifting of words from the prompt
A122: Expressing him/herself in the set task
A123: Descriptions / viewpoints / arguments
A124: Insufficient language to make an assessment
A126: LEXICAL AND STRUCTURAL ACCURACY | B126: 2. TEXTAUFGABE
A127: Structural control | J127: 6
A128: Errors and slips
A129: Influence from other languages
A130: Spelling
A131: Major errors with more complex thoughts
A132: Lexical inaccuracies
A133: Linking devices
A134: Punctuation conventions
A135: Rereading
A136: Limited accuracy
A137: Insufficient language to make an assessment
A140: =A1 & " " & A2 -> BG/BRG MUSTERSCHULE Matura Haupttermin - Schuljahr 2013/ 2014
A141: Name: | B141: =B3 -> NAME09
C144: 3. TEXTAUFGABE
A149: TASK ACHIEVEMENT | B149: 3. TEXTAUFGABE
A150: Requirements of set task type | J150: 0
A151: Title / subject line / section headings
A152: Content points
A153: Supporting details / examples
A154: Different ideas / facts / graphs or solutions
A155: Explains ad/disadvantages
A156: Reasons in support of / against p.o.v.
A157: Personal significance of events / ideas
A158: Expressing news and views
A159: Set word length
A160: Performance/Communication
A162: ORGANISATION AND LAYOUT | B162: 3. TEXTAUFGABE
A163: Performance of structure | J163: 0
A164: Paragraphing conventions
A165: Developing points
A166: Relationships between ideas
A167: Linking devices
A168: Clearly intelligible continuous writing
A169: Layout for required task type
A170: No attempt at organisation
A176: =A1 & " " & A2 -> BG/BRG MUSTERSCHULE Matura Haupttermin - Schuljahr 2013/ 2014
A177: Name: | B177: =B3 -> NAME09
A180: LEXICAL AND STRUCTURAL RANGE | B180: 3. TEXTAUFGABE
A181: Expressing him/herself | J181: 0
A182: Variety in structures
A183: Structures / sentence forms
A184: Range of vocabulary for set task
A185: Formulation to avoid repetition
A186: Lifting of words from the prompt
A187: Expressing him/herself in the set task
A188: Descriptions / viewpoints / arguments
A189: Insufficient language to make an assessment
A191: LEXICAL AND STRUCTURAL ACCURACY | B191: 3. TEXTAUFGABE
A192: Structural control | J192: 0
A193: Errors and slips
A194: Influence from other languages
A195: Spelling
A196: Major errors with more complex thoughts
A197: Lexical inaccuracies
A198: Linking devices
A199: Punctuation conventions
A200: Rereading
A201: Limited accuracy
A202: Insufficient language to make an assessment
A205: =A1 & " " & A2 -> BG/BRG MUSTERSCHULE Matura Haupttermin - Schuljahr 2013/ 2014
A206: Name: | B206: =B3 -> NAME09
A208: ERFÜLLUNG DER AUFGABENSTELLUNG | B208: Textproduktion 1
A209: Einhaltung der Textsorte | J209: 0
A210: Titel/Betreff/Überschriften/Anrede/Grußzeile
A211: Ausführung der Aufgabenstellung
A212: Veranschaulichende Details
A213: Erklärung der Sachverhalte
A214: Irrelevante inhaltliche Punkte oder Details
A215: Eigene Meinung zu einer Situation
A216: Erklärung der Gründe für Handlungen
A217: Vorgegebene Wortanzahl
A218: Verfehlung der Aufgabenstellung
A221: AUFBAU UND LAYOUT | B221: Textproduktion 1
A222: Gesamtaufbau | J222: 0
A223: Präsentation inhaltlicher Punkte (Kohärenz)
A224: Gliederung
A225: Textspezifisches Layout
A226: Einsatz textgrammatischer Mittel (Kohäsion)
A227: Häufige Gedankensprünge
A228: Keine Struktur / keine Sprachproduktion
A231: SPEKTRUM SPRACHLICHER MITTEL | B231: Textproduktion 1
A232: Lexikalische und strukturelle Mitteln | J232: 0
A233: WH / Begrenzte Ausdrucksmöglichkeiten
A234: Formulierungen
A235: Formulierungsschwierigkeiten / Wortschatz
A236: Angemessener Stil
A237: Keine ausreichende Sprachproduktion
A242: =A1 & " " & A2 -> BG/BRG MUSTERSCHULE Matura Haupttermin - Schuljahr 2013/ 2014
A243: Name: | B243: =B3 -> NAME09
A245: SPRACHRICHTIGKEIT | B245: Textproduktion 1
A246: Grundwortschatz / Strukturen / Wendungen | J246: 0
A247: Kommunikation beeinträchtigende Fehler
A248: Rechtschreibung und Zeichensetzung
A249: Interferenzen anderer Sprachen
A250: Keine Sprachproduktion / nicht verständlich
C259: 2. TEXTPRODUKTION
A264: ERFÜLLUNG DER AUFGABENSTELLUNG | B264: Textproduktion 2
A265: Einhaltung der Textsorte | J265: 0
... 69 more rows

Sheet NAME10
A1: =Schritte_1_2_3!A17 -> BG/BRG MUSTERSCHULE
A2: =Schritte_1_2_3!A18 & " - " & Schritte_1_2_3!A19 -> Matura Haupttermin - Schuljahr 2013/ 2014
A3: NAME: | B3: NAME10
B5: Erreichte Punkte | C5: Zu vergeb. Punkte | E5: Prozent Punkte | F5: WERTIGKEIT | G5: Wertigkeit festlegen
A6: Hörverständnis | B6: 26 | C6: 28 | D6: =IF(B6>C6,1,0) -> 0 | E6: =IF(C6<>0,IF(C6>=B6,B6/C6*G6,"FEHLER"),0) -> 23.21428571 | F6: =G6/100 -> 0.25 | G6: 25
A8: Leseverständnis | B8: 18 | C8: 30 | D8: =IF(B8>C8,1,0) -> 0 | E8: =IF(C8<>0,IF(C8>=B8,B8/C8*G8,"FEHLER"),0) -> 15 | F8: =G8/100 -> 0.25 | G8: 25
A10: Sprachverwendung im Kontext | B10: 32 | C10: 48 | D10: =IF(B10>C10,1,0) -> 0 | E10: =IF(C10<>0,IF(C10>=B10,B10/C10*G10,"FEHLER"),0) -> 16.66666667 | F10: =G10/100 -> 0.25 | G10: 25
I11: Assessment Scale B2
A12: Textproduktion 1 | B12: 28 | C12: 40 | D12: =IF(B12>C12,1,0) -> 0 | E12: =IF(C12<>0,IF(C12>=B12,B12/C12*G12,"FEHLER"),0) -> 8.75 | F12: =G12/100 -> 0.125 | G12: 12.5
A14: Textproduktion 2 | B14: 16 | C14: 40 | D14: =IF(B14>C14,1,0) -> 0 | E14: =IF(C14<>0,IF(C14>=B14,B14/C14*G14,"FEHLER"),0) -> 5 | F14: =G14/100 -> 0.125 | G14: 12.5
A16: Textproduktion 3 | B16: 0 | C16: 40 | D16: =IF(B16>C16,1,0) -> 0 | E16: =IF(C16<>0,IF(C16>=B16,B16/C16*G16,"FEHLER"),0) -> 0 | F16: =G16/100 -> 0 | G16: 0
F17: =F6+F8+F10+F12+F14+F16 -> 1
G18: =IF(OR(F17=100%,F17=99.999999%),"OK","Wertigkeit MUSS 100% sein!") -> OK
B19: PROZENTPUNKTE GESAMT | E19: =ROUND(E6+E8+E10+E12+E14+E16,2) -> 68.63 | F19: Rezeptive Fertigkeiten | H19: =E6+E8 -> 38.21428571
B20: NOTE: | C20: =IF(AND(H19/100>=SUM(F6:F8)/2,H20/100>=SUM(F10:F16)/2),IF(E19<D25,"NICHT GENÜGEND",IF(AND(E19>=D25,E19<D24),"GENÜGEND",IF(AND(E19>=D24,E19<D23),"BEFRIEDIGEND",IF(AND(E19>=D23,E19<D22),"GUT",IF(E19>=D22,"SEHR GUT",))))),"NICHT GENÜGEND") -> GENÜGEND | E20: =IF(AND(H19/100>=SUM(F6:F8)/2,H20/100>=SUM(F10:F16)/2),IF(E19<D25,5,IF(AND(E19>=D25,E19<D24),4,IF(AND(E19>=D24,E19<D23),3,IF(AND(E19>=D23,E19<D22),2,IF(E19>=D22,1,))))),5) -> 4 | F20: Produktive Fertigkeiten | H20: =E10+E12+E14+E16 -> 30.41666667
A22: Notenlegende | B22: Sehr gut | C22: 100 | D22: =D25+(C22-D25)/4*3 -> 90.75
B23: Gut | C23: =(((100-$D$25)/4)+D23)-0.01 -> 90.74 | D23: =D25+(C22-D25)/4*2 -> 81.5 | F23: 63 | G23: <- Notenschwelle festlegen
B24: Befriedigend | C24: =(((100-$D$25)/4)+D24)-0.01 -> 81.49 | D24: =D25+(C22-D25)/4 -> 72.25
B25: Genügend | C25: =(((100-$D$25)/4)+D25)-0.01 -> 72.24 | D25: =F23 -> 63
B26: Nicht genügend | C26: =F23-0.01 -> 62.99 | D26: 0
A29: =A1 & " " & A2 -> BG/BRG MUSTERSCHULE Matura Haupttermin - Schuljahr 2013/ 2014
A30: Name: | B30: =B3 -> NAME10
A32: TASK ACHIEVEMENT | B32: 1. TEXTAUFGABE
A33: Requirements of set task type | J33: 8
A34: Title / subject line / section headings
A35: Content points
A36: Supporting details / examples
A37: Different ideas / facts / graphs or solutions
A38: Explains ad/disadvantages
A39: Reasons in support of / against p.o.v.
A40: Personal significance of events / ideas
A41: Expressing news and views
A42: Set word length
A43: Performance/Communication
A45: ORGANISATION AND LAYOUT | B45: 1. TEXTAUFGABE
A46: Performance of structure | J46: 7
A47: Paragraphing conventions
A48: Developing points
A49: Relationships between ideas
A50: Linking devices
A51: Clearly intelligible continuous writing
A52: Layout for required task type
A53: No attempt at organisation
A55: LEXICAL AND STRUCTURAL RANGE | B55: 1. TEXTAUFGABE
A56: Expressing him/herself | J56: 7
A57: Variety in structures
A58: Structures / sentence forms
A59: Range of vocabulary for set task
A60: Formulation to avoid repetition
A61: Lifting of words from the prompt
A62: Expressing him/herself in the set task
A63: Descriptions / viewpoints / arguments
A64: Insufficient language to make an assessment
A66: =A1 & " " & A2 -> BG/BRG MUSTERSCHULE Matura Haupttermin - Schuljahr 2013/ 2014
A67: Name: | B67: =B3 -> NAME10
A69: LEXICAL AND STRUCTURAL ACCURACY | B69: 1. TEXTAUFGABE
A70: Structural control | J70: 6
A71: Errors and slips
A72: Influence from other languages
A73: Spelling
A74: Major errors with more complex thoughts
A75: Lexical inaccuracies
A76: Linking devices
A77: Punctuation conventions
A78: Rereading
A79: Limited accuracy
A80: Insufficient language to make an assessment
C83: 2. TEXTAUFGABE
A88: TASK ACHIEVEMENT | B88: 2. TEXTAUFGABE
A89: Requirements of set task type | J89: 3
A90: Title / subject line / section headings
A91: Content points
A92: Supporting details / examples
A93: Different ideas / facts / graphs or solutions
A94: Explains ad/disadvantages
A95: Reasons in support of / against p.o.v.
A96: Personal significance of events / ideas
A97: Expressing news and views
A98: Set word length
A99: Performance/Communication
A102: =A1 & " " & A2 -> BG/BRG MUSTERSCHULE Matura Haupttermin - Schuljahr 2013/ 2014
A103: Name: | B103: =B3 -> NAME10
A105: ORGANISATION AND LAYOUT | B105: 2. TEXTAUFGABE
A106: Performance of structure | J106: 4
A107: Paragraphing conventions
A108: Developing points
A109: Relationships between ideas
A110: Linking devices
A111: Clearly intelligible continuous writing
A112: Layout for required task type
A113: No attempt at organisation
A115: LEXICAL AND STRUCTURAL RANGE | B115: 2. TEXTAUFGABE
A116: Expressing him/herself | J116: 4
A117: Variety in structures
A118: Structures / sentence forms
A119: Range of vocabulary for set task
A120: Formulation to avoid repetition
A121: Lifting of words from the prompt
A122: Expressing him/herself in the set task
A123: Descriptions / viewpoints / arguments
A124: Insufficient language to make an assessment
A126: LEXICAL AND STRUCTURAL ACCURACY | B126: 2. TEXTAUFGABE
A127: Structural control | J127: 5
A128: Errors and slips
A129: Influence from other languages
A130: Spelling
A131: Major errors with more complex thoughts
A132: Lexical inaccuracies
A133: Linking devices
A134: Punctuation conventions
A135: Rereading
A136: Limited accuracy
A137: Insufficient language to make an assessment
A140: =A1 & " " & A2 -> BG/BRG MUSTERSCHULE Matura Haupttermin - Schuljahr 2013/ 2014
A141: Name: | B141: =B3 -> NAME10
C144: 3. TEXTAUFGABE
A149: TASK ACHIEVEMENT | B149: 3. TEXTAUFGABE
A150: Requirements of set task type | J150: 0
A151: Title / subject line / section headings
A152: Content points
A153: Supporting details / examples
A154: Different ideas / facts / graphs or solutions
A155: Explains ad/disadvantages
A156: Reasons in support of / against p.o.v.
A157: Personal significance of events / ideas
A158: Expressing news and views
A159: Set word length
A160: Performance/Communication
A162: ORGANISATION AND LAYOUT | B162: 3. TEXTAUFGABE
A163: Performance of structure | J163: 0
A164: Paragraphing conventions
A165: Developing points
A166: Relationships between ideas
A167: Linking devices
A168: Clearly intelligible continuous writing
A169: Layout for required task type
A170: No attempt at organisation
A176: =A1 & " " & A2 -> BG/BRG MUSTERSCHULE Matura Haupttermin - Schuljahr 2013/ 2014
A177: Name: | B177: =B3 -> NAME10
A180: LEXICAL AND STRUCTURAL RANGE | B180: 3. TEXTAUFGABE
A181: Expressing him/herself | J181: 0
A182: Variety in structures
A183: Structures / sentence forms
A184: Range of vocabulary for set task
A185: Formulation to avoid repetition
A186: Lifting of words from the prompt
A187: Expressing him/herself in the set task
A188: Descriptions / viewpoints / arguments
A189: Insufficient language to make an assessment
A191: LEXICAL AND STRUCTURAL ACCURACY | B191: 3. TEXTAUFGABE
A192: Structural control | J192: 0
A193: Errors and slips
A194: Influence from other languages
A195: Spelling
A196: Major errors with more complex thoughts
A197: Lexical inaccuracies
A198: Linking devices
A199: Punctuation conventions
A200: Rereading
A201: Limited accuracy
A202: Insufficient language to make an assessment
A205: =A1 & " " & A2 -> BG/BRG MUSTERSCHULE Matura Haupttermin - Schuljahr 2013/ 2014
A206: Name: | B206: =B3 -> NAME10
A208: ERFÜLLUNG DER AUFGABENSTELLUNG | B208: Textproduktion 1
A209: Einhaltung der Textsorte | J209: 0
A210: Titel/Betreff/Überschriften/Anrede/Grußzeile
A211: Ausführung der Aufgabenstellung
A212: Veranschaulichende Details
A213: Erklärung der Sachverhalte
A214: Irrelevante inhaltliche Punkte oder Details
A215: Eigene Meinung zu einer Situation
A216: Erklärung der Gründe für Handlungen
A217: Vorgegebene Wortanzahl
A218: Verfehlung der Aufgabenstellung
A221: AUFBAU UND LAYOUT | B221: Textproduktion 1
A222: Gesamtaufbau | J222: 0
A223: Präsentation inhaltlicher Punkte (Kohärenz)
A224: Gliederung
A225: Textspezifisches Layout
A226: Einsatz textgrammatischer Mittel (Kohäsion)
A227: Häufige Gedankensprünge
A228: Keine Struktur / keine Sprachproduktion
A231: SPEKTRUM SPRACHLICHER MITTEL | B231: Textproduktion 1
A232: Lexikalische und strukturelle Mitteln | J232: 0
A233: WH / Begrenzte Ausdrucksmöglichkeiten
A234: Formulierungen
A235: Formulierungsschwierigkeiten / Wortschatz
A236: Angemessener Stil
A237: Keine ausreichende Sprachproduktion
A242: =A1 & " " & A2 -> BG/BRG MUSTERSCHULE Matura Haupttermin - Schuljahr 2013/ 2014
A243: Name: | B243: =B3 -> NAME10
A245: SPRACHRICHTIGKEIT | B245: Textproduktion 1
A246: Grundwortschatz / Strukturen / Wendungen | J246: 0
A247: Kommunikation beeinträchtigende Fehler
A248: Rechtschreibung und Zeichensetzung
A249: Interferenzen anderer Sprachen
A250: Keine Sprachproduktion / nicht verständlich
C259: 2. TEXTPRODUKTION
A264: ERFÜLLUNG DER AUFGABENSTELLUNG | B264: Textproduktion 2
A265: Einhaltung der Textsorte | J265: 0
... 69 more rows

Sheet NAME11
A1: =Schritte_1_2_3!A17 -> BG/BRG MUSTERSCHULE
A2: =Schritte_1_2_3!A18 & " - " & Schritte_1_2_3!A19 -> Matura Haupttermin - Schuljahr 2013/ 2014
A3: NAME: | B3: NAME11
B5: Erreichte Punkte | C5: Zu vergeb. Punkte | E5: Prozent Punkte | F5: WERTIGKEIT | G5: Wertigkeit festlegen
A6: Hörverständnis | B6: 11 | C6: 28 | D6: =IF(B6>C6,1,0) -> 0 | E6: =IF(C6<>0,IF(C6>=B6,B6/C6*G6,"FEHLER"),0) -> 9.821428571 | F6: =G6/100 -> 0.25 | G6: 25
A8: Leseverständnis | B8: 11 | C8: 30 | D8: =IF(B8>C8,1,0) -> 0 | E8: =IF(C8<>0,IF(C8>=B8,B8/C8*G8,"FEHLER"),0) -> 9.166666667 | F8: =G8/100 -> 0.25 | G8: 25
A10: Sprachverwendung im Kontext | B10: 44 | C10: 48 | D10: =IF(B10>C10,1,0) -> 0 | E10: =IF(C10<>0,IF(C10>=B10,B10/C10*G10,"FEHLER"),0) -> 22.91666667 | F10: =G10/100 -> 0.25 | G10: 25
I11: Assessment Scale B2
A12: Textproduktion 1 | B12: 34 | C12: 40 | D12: =IF(B12>C12,1,0) -> 0 | E12: =IF(C12<>0,IF(C12>=B12,B12/C12*G12,"FEHLER"),0) -> 10.625 | F12: =G12/100 -> 0.125 | G12: 12.5
A14: Textproduktion 2 | B14: 34 | C14: 40 | D14: =IF(B14>C14,1,0) -> 0 | E14: =IF(C14<>0,IF(C14>=B14,B14/C14*G14,"FEHLER"),0) -> 10.625 | F14: =G14/100 -> 0.125 | G14: 12.5
A16: Textproduktion 3 | B16: 0 | C16: 40 | D16: =IF(B16>C16,1,0) -> 0 | E16: =IF(C16<>0,IF(C16>=B16,B16/C16*G16,"FEHLER"),0) -> 0 | F16: =G16/100 -> 0 | G16: 0
F17: =F6+F8+F10+F12+F14+F16 -> 1
G18: =IF(OR(F17=100%,F17=99.999999%),"OK","Wertigkeit MUSS 100% sein!") -> OK
B19: PROZENTPUNKTE GESAMT | E19: =ROUND(E6+E8+E10+E12+E14+E16,2) -> 63.15 | F19: Rezeptive Fertigkeiten | H19: =E6+E8 -> 18.98809524
B20: NOTE: | C20: =IF(AND(H19/100>=SUM(F6:F8)/2,H20/100>=SUM(F10:F16)/2),IF(E19<D25,"NICHT GENÜGEND",IF(AND(E19>=D25,E19<D24),"GENÜGEND",IF(AND(E19>=D24,E19<D23),"BEFRIEDIGEND",IF(AND(E19>=D23,E19<D22),"GUT",IF(E19>=D22,"SEHR GUT",))))),"NICHT GENÜGEND") -> NICHT GENÜGEND | E20: =IF(AND(H19/100>=SUM(F6:F8)/2,H20/100>=SUM(F10:F16)/2),IF(E19<D25,5,IF(AND(E19>=D25,E19<D24),4,IF(AND(E19>=D24,E19<D23),3,IF(AND(E19>=D23,E19<D22),2,IF(E19>=D22,1,))))),5) -> 5 | F20: Produktive Fertigkeiten | H20: =E10+E12+E14+E16 -> 44.16666667
A22: Notenlegende | B22: Sehr gut | C22: 100 | D22: =D25+(C22-D25)/4*3 -> 90.75
B23: Gut | C23: =(((100-$D$25)/4)+D23)-0.01 -> 90.74 | D23: =D25+(C22-D25)/4*2 -> 81.5 | F23: 63 | G23: <- Notenschwelle festlegen
B24: Befriedigend | C24: =(((100-$D$25)/4)+D24)-0.01 -> 81.49 | D24: =D25+(C22-D25)/4 -> 72.25
B25: Genügend | C25: =(((100-$D$25)/4)+D25)-0.01 -> 72.24 | D25: =F23 -> 63
B26: Nicht genügend | C26: =F23-0.01 -> 62.99 | D26: 0
A29: =A1 & " " & A2 -> BG/BRG MUSTERSCHULE Matura Haupttermin - Schuljahr 2013/ 2014
A30: Name: | B30: =B3 -> NAME11
A32: TASK ACHIEVEMENT | B32: 1. TEXTAUFGABE
A33: Requirements of set task type | J33: 9
A34: Title / subject line / section headings
A35: Content points
A36: Supporting details / examples
A37: Different ideas / facts / graphs or solutions
A38: Explains ad/disadvantages
A39: Reasons in support of / against p.o.v.
A40: Personal significance of events / ideas
A41: Expressing news and views
A42: Set word length
A43: Performance/Communication
A45: ORGANISATION AND LAYOUT | B45: 1. TEXTAUFGABE
A46: Performance of structure | J46: 9
A47: Paragraphing conventions
A48: Developing points
A49: Relationships between ideas
A50: Linking devices
A51: Clearly intelligible continuous writing
A52: Layout for required task type
A53: No attempt at organisation
A55: LEXICAL AND STRUCTURAL RANGE | B55: 1. TEXTAUFGABE
A56: Expressing him/herself | J56: 8
A57: Variety in structures
A58: Structures / sentence forms
A59: Range of vocabulary for set task
A60: Formulation to avoid repetition
A61: Lifting of words from the prompt
A62: Expressing him/herself in the set task
A63: Descriptions / viewpoints / arguments
A64: Insufficient language to make an assessment
A66: =A1 & " " & A2 -> BG/BRG MUSTERSCHULE Matura Haupttermin - Schuljahr 2013/ 2014
A67: Name: | B67: =B3 -> NAME11
A69: LEXICAL AND STRUCTURAL ACCURACY | B69: 1. TEXTAUFGABE
A70: Structural control | J70: 8
A71: Errors and slips
A72: Influence from other languages
A73: Spelling
A74: Major errors with more complex thoughts
A75: Lexical inaccuracies
A76: Linking devices
A77: Punctuation conventions
A78: Rereading
A79: Limited accuracy
A80: Insufficient language to make an assessment
C83: 2. TEXTAUFGABE
A88: TASK ACHIEVEMENT | B88: 2. TEXTAUFGABE
A89: Requirements of set task type | J89: 8
A90: Title / subject line / section headings
A91: Content points
A92: Supporting details / examples
A93: Different ideas / facts / graphs or solutions
A94: Explains ad/disadvantages
A95: Reasons in support of / against p.o.v.
A96: Personal significance of events / ideas
A97: Expressing news and views
A98: Set word length
A99: Performance/Communication
A102: =A1 & " " & A2 -> BG/BRG MUSTERSCHULE Matura Haupttermin - Schuljahr 2013/ 2014
A103: Name: | B103: =B3 -> NAME11
A105: ORGANISATION AND LAYOUT | B105: 2. TEXTAUFGABE
A106: Performance of structure | J106: 9
A107: Paragraphing conventions
A108: Developing points
A109: Relationships between ideas
A110: Linking devices
A111: Clearly intelligible continuous writing
A112: Layout for required task type
A113: No attempt at organisation
A115: LEXICAL AND STRUCTURAL RANGE | B115: 2. TEXTAUFGABE
A116: Expressing him/herself | J116: 9
A117: Variety in structures
A118: Structures / sentence forms
A119: Range of vocabulary for set task
A120: Formulation to avoid repetition
A121: Lifting of words from the prompt
A122: Expressing him/herself in the set task
A123: Descriptions / viewpoints / arguments
A124: Insufficient language to make an assessment
A126: LEXICAL AND STRUCTURAL ACCURACY | B126: 2. TEXTAUFGABE
A127: Structural control | J127: 8
A128: Errors and slips
A129: Influence from other languages
A130: Spelling
A131: Major errors with more complex thoughts
A132: Lexical inaccuracies
A133: Linking devices
A134: Punctuation conventions
A135: Rereading
A136: Limited accuracy
A137: Insufficient language to make an assessment
A140: =A1 & " " & A2 -> BG/BRG MUSTERSCHULE Matura Haupttermin - Schuljahr 2013/ 2014
A141: Name: | B141: =B3 -> NAME11
C144: 3. TEXTAUFGABE
A149: TASK ACHIEVEMENT | B149: 3. TEXTAUFGABE
A150: Requirements of set task type | J150: 0
A151: Title / subject line / section headings
A152: Content points
A153: Supporting details / examples
A154: Different ideas / facts / graphs or solutions
A155: Explains ad/disadvantages
A156: Reasons in support of / against p.o.v.
A157: Personal significance of events / ideas
A158: Expressing news and views
A159: Set word length
A160: Performance/Communication
A162: ORGANISATION AND LAYOUT | B162: 3. TEXTAUFGABE
A163: Performance of structure | J163: 0
A164: Paragraphing conventions
A165: Developing points
A166: Relationships between ideas
A167: Linking devices
A168: Clearly intelligible continuous writing
A169: Layout for required task type
A170: No attempt at organisation
A176: =A1 & " " & A2 -> BG/BRG MUSTERSCHULE Matura Haupttermin - Schuljahr 2013/ 2014
A177: Name: | B177: =B3 -> NAME11
A180: LEXICAL AND STRUCTURAL RANGE | B180: 3. TEXTAUFGABE
A181: Expressing him/herself | J181: 0
A182: Variety in structures
A183: Structures / sentence forms
A184: Range of vocabulary for set task
A185: Formulation to avoid repetition
A186: Lifting of words from the prompt
A187: Expressing him/herself in the set task
A188: Descriptions / viewpoints / arguments
A189: Insufficient language to make an assessment
A191: LEXICAL AND STRUCTURAL ACCURACY | B191: 3. TEXTAUFGABE
A192: Structural control | J192: 0
A193: Errors and slips
A194: Influence from other languages
A195: Spelling
A196: Major errors with more complex thoughts
A197: Lexical inaccuracies
A198: Linking devices
A199: Punctuation conventions
A200: Rereading
A201: Limited accuracy
A202: Insufficient language to make an assessment
A205: =A1 & " " & A2 -> BG/BRG MUSTERSCHULE Matura Haupttermin - Schuljahr 2013/ 2014
A206: Name: | B206: =B3 -> NAME11
A208: ERFÜLLUNG DER AUFGABENSTELLUNG | B208: Textproduktion 1
A209: Einhaltung der Textsorte | J209: 0
A210: Titel/Betreff/Überschriften/Anrede/Grußzeile
A211: Ausführung der Aufgabenstellung
A212: Veranschaulichende Details
A213: Erklärung der Sachverhalte
A214: Irrelevante inhaltliche Punkte oder Details
A215: Eigene Meinung zu einer Situation
A216: Erklärung der Gründe für Handlungen
A217: Vorgegebene Wortanzahl
A218: Verfehlung der Aufgabenstellung
A221: AUFBAU UND LAYOUT | B221: Textproduktion 1
A222: Gesamtaufbau | J222: 0
A223: Präsentation inhaltlicher Punkte (Kohärenz)
A224: Gliederung
A225: Textspezifisches Layout
A226: Einsatz textgrammatischer Mittel (Kohäsion)
A227: Häufige Gedankensprünge
A228: Keine Struktur / keine Sprachproduktion
A231: SPEKTRUM SPRACHLICHER MITTEL | B231: Textproduktion 1
A232: Lexikalische und strukturelle Mitteln | J232: 0
A233: WH / Begrenzte Ausdrucksmöglichkeiten
A234: Formulierungen
A235: Formulierungsschwierigkeiten / Wortschatz
A236: Angemessener Stil
A237: Keine ausreichende Sprachproduktion
A242: =A1 & " " & A2 -> BG/BRG MUSTERSCHULE Matura Haupttermin - Schuljahr 2013/ 2014
A243: Name: | B243: =B3 -> NAME11
A245: SPRACHRICHTIGKEIT | B245: Textproduktion 1
A246: Grundwortschatz / Strukturen / Wendungen | J246: 0
A247: Kommunikation beeinträchtigende Fehler
A248: Rechtschreibung und Zeichensetzung
A249: Interferenzen anderer Sprachen
A250: Keine Sprachproduktion / nicht verständlich
C259: 2. TEXTPRODUKTION
A264: ERFÜLLUNG DER AUFGABENSTELLUNG | B264: Textproduktion 2
A265: Einhaltung der Textsorte | J265: 0
... 69 more rows

Sheet NAME12
A1: =Schritte_1_2_3!A17 -> BG/BRG MUSTERSCHULE
A2: =Schritte_1_2_3!A18 & " - " & Schritte_1_2_3!A19 -> Matura Haupttermin - Schuljahr 2013/ 2014
A3: NAME: | B3: NAME12
B5: Erreichte Punkte | C5: Zu vergeb. Punkte | E5: Prozent Punkte | F5: WERTIGKEIT | G5: Wertigkeit festlegen
A6: Hörverständnis | B6: 25 | C6: 28 | D6: =IF(B6>C6,1,0) -> 0 | E6: =IF(C6<>0,IF(C6>=B6,B6/C6*G6,"FEHLER"),0) -> 22.32142857 | F6: =G6/100 -> 0.25 | G6: 25
A8: Leseverständnis | B8: 24 | C8: 30 | D8: =IF(B8>C8,1,0) -> 0 | E8: =IF(C8<>0,IF(C8>=B8,B8/C8*G8,"FEHLER"),0) -> 20 | F8: =G8/100 -> 0.25 | G8: 25
A10: Sprachverwendung im Kontext | B10: 45 | C10: 48 | D10: =IF(B10>C10,1,0) -> 0 | E10: =IF(C10<>0,IF(C10>=B10,B10/C10*G10,"FEHLER"),0) -> 23.4375 | F10: =G10/100 -> 0.25 | G10: 25
I11: Assessment Scale B2
A12: Textproduktion 1 | B12: 25 | C12: 40 | D12: =IF(B12>C12,1,0) -> 0 | E12: =IF(C12<>0,IF(C12>=B12,B12/C12*G12,"FEHLER"),0) -> 7.8125 | F12: =G12/100 -> 0.125 | G12: 12.5
A14: Textproduktion 2 | B14: 23 | C14: 40 | D14: =IF(B14>C14,1,0) -> 0 | E14: =IF(C14<>0,IF(C14>=B14,B14/C14*G14,"FEHLER"),0) -> 7.1875 | F14: =G14/100 -> 0.125 | G14: 12.5
A16: Textproduktion 3 | B16: 0 | C16: 40 | D16: =IF(B16>C16,1,0) -> 0 | E16: =IF(C16<>0,IF(C16>=B16,B16/C16*G16,"FEHLER"),0) -> 0 | F16: =G16/100 -> 0 | G16: 0
F17: =F6+F8+F10+F12+F14+F16 -> 1
G18: =IF(OR(F17=100%,F17=99.999999%),"OK","Wertigkeit MUSS 100% sein!") -> OK
B19: PROZENTPUNKTE GESAMT | E19: =ROUND(E6+E8+E10+E12+E14+E16,2) -> 80.76 | F19: Rezeptive Fertigkeiten | H19: =E6+E8 -> 42.32142857
B20: NOTE: | C20: =IF(AND(H19/100>=SUM(F6:F8)/2,H20/100>=SUM(F10:F16)/2),IF(E19<D25,"NICHT GENÜGEND",IF(AND(E19>=D25,E19<D24),"GENÜGEND",IF(AND(E19>=D24,E19<D23),"BEFRIEDIGEND",IF(AND(E19>=D23,E19<D22),"GUT",IF(E19>=D22,"SEHR GUT",))))),"NICHT GENÜGEND") -> BEFRIEDIGEND | E20: =IF(AND(H19/100>=SUM(F6:F8)/2,H20/100>=SUM(F10:F16)/2),IF(E19<D25,5,IF(AND(E19>=D25,E19<D24),4,IF(AND(E19>=D24,E19<D23),3,IF(AND(E19>=D23,E19<D22),2,IF(E19>=D22,1,))))),5) -> 3 | F20: Produktive Fertigkeiten | H20: =E10+E12+E14+E16 -> 38.4375
A22: Notenlegende | B22: Sehr gut | C22: 100 | D22: =D25+(C22-D25)/4*3 -> 90.75
B23: Gut | C23: =(((100-$D$25)/4)+D23)-0.01 -> 90.74 | D23: =D25+(C22-D25)/4*2 -> 81.5 | F23: 63 | G23: <- Notenschwelle festlegen
B24: Befriedigend | C24: =(((100-$D$25)/4)+D24)-0.01 -> 81.49 | D24: =D25+(C22-D25)/4 -> 72.25
B25: Genügend | C25: =(((100-$D$25)/4)+D25)-0.01 -> 72.24 | D25: =F23 -> 63
B26: Nicht genügend | C26: =F23-0.01 -> 62.99 | D26: 0
A29: =A1 & " " & A2 -> BG/BRG MUSTERSCHULE Matura Haupttermin - Schuljahr 2013/ 2014
A30: Name: | B30: =B3 -> NAME12
A32: TASK ACHIEVEMENT | B32: 1. TEXTAUFGABE
A33: Requirements of set task type | J33: 5
A34: Title / subject line / section headings
A35: Content points
A36: Supporting details / examples
A37: Different ideas / facts / graphs or solutions
A38: Explains ad/disadvantages
A39: Reasons in support of / against p.o.v.
A40: Personal significance of events / ideas
A41: Expressing news and views
A42: Set word length
A43: Performance/Communication
A45: ORGANISATION AND LAYOUT | B45: 1. TEXTAUFGABE
A46: Performance of structure | J46: 7
A47: Paragraphing conventions
A48: Developing points
A49: Relationships between ideas
A50: Linking devices
A51: Clearly intelligible continuous writing
A52: Layout for required task type
A53: No attempt at organisation
A55: LEXICAL AND STRUCTURAL RANGE | B55: 1. TEXTAUFGABE
A56: Expressing him/herself | J56: 7
A57: Variety in structures
A58: Structures / sentence forms
A59: Range of vocabulary for set task
A60: Formulation to avoid repetition
A61: Lifting of words from the prompt
A62: Expressing him/herself in the set task
A63: Descriptions / viewpoints / arguments
A64: Insufficient language to make an assessment
A66: =A1 & " " & A2 -> BG/BRG MUSTERSCHULE Matura Haupttermin - Schuljahr 2013/ 2014
A67: Name: | B67: =B3 -> NAME12
A69: LEXICAL AND STRUCTURAL ACCURACY | B69: 1. TEXTAUFGABE
A70: Structural control | J70: 6
A71: Errors and slips
A72: Influence from other languages
A73: Spelling
A74: Major errors with more complex thoughts
A75: Lexical inaccuracies
A76: Linking devices
A77: Punctuation conventions
A78: Rereading
A79: Limited accuracy
A80: Insufficient language to make an assessment
C83: 2. TEXTAUFGABE
A88: TASK ACHIEVEMENT | B88: 2. TEXTAUFGABE
A89: Requirements of set task type | J89: 6
A90: Title / subject line / section headings
A91: Content points
A92: Supporting details / examples
A93: Different ideas / facts / graphs or solutions
A94: Explains ad/disadvantages
A95: Reasons in support of / against p.o.v.
A96: Personal significance of events / ideas
A97: Expressing news and views
A98: Set word length
A99: Performance/Communication
A102: =A1 & " " & A2 -> BG/BRG MUSTERSCHULE Matura Haupttermin - Schuljahr 2013/ 2014
A103: Name: | B103: =B3 -> NAME12
A105: ORGANISATION AND LAYOUT | B105: 2. TEXTAUFGABE
A106: Performance of structure | J106: 7
A107: Paragraphing conventions
A108: Developing points
A109: Relationships between ideas
A110: Linking devices
A111: Clearly intelligible continuous writing
A112: Layout for required task type
A113: No attempt at organisation
A115: LEXICAL AND STRUCTURAL RANGE | B115: 2. TEXTAUFGABE
A116: Expressing him/herself | J116: 5
A117: Variety in structures
A118: Structures / sentence forms
A119: Range of vocabulary for set task
A120: Formulation to avoid repetition
A121: Lifting of words from the prompt
A122: Expressing him/herself in the set task
A123: Descriptions / viewpoints / arguments
A124: Insufficient language to make an assessment
A126: LEXICAL AND STRUCTURAL ACCURACY | B126: 2. TEXTAUFGABE
A127: Structural control | J127: 5
A128: Errors and slips
A129: Influence from other languages
A130: Spelling
A131: Major errors with more complex thoughts
A132: Lexical inaccuracies
A133: Linking devices
A134: Punctuation conventions
A135: Rereading
A136: Limited accuracy
A137: Insufficient language to make an assessment
A140: =A1 & " " & A2 -> BG/BRG MUSTERSCHULE Matura Haupttermin - Schuljahr 2013/ 2014
A141: Name: | B141: =B3 -> NAME12
C144: 3. TEXTAUFGABE
A149: TASK ACHIEVEMENT | B149: 3. TEXTAUFGABE
A150: Requirements of set task type | J150: 0
A151: Title / subject line / section headings
A152: Content points
A153: Supporting details / examples
A154: Different ideas / facts / graphs or solutions
A155: Explains ad/disadvantages
A156: Reasons in support of / against p.o.v.
A157: Personal significance of events / ideas
A158: Expressing news and views
A159: Set word length
A160: Performance/Communication
A162: ORGANISATION AND LAYOUT | B162: 3. TEXTAUFGABE
A163: Performance of structure | J163: 0
A164: Paragraphing conventions
A165: Developing points
A166: Relationships between ideas
A167: Linking devices
A168: Clearly intelligible continuous writing
A169: Layout for required task type
A170: No attempt at organisation
A176: =A1 & " " & A2 -> BG/BRG MUSTERSCHULE Matura Haupttermin - Schuljahr 2013/ 2014
A177: Name: | B177: =B3 -> NAME12
A180: LEXICAL AND STRUCTURAL RANGE | B180: 3. TEXTAUFGABE
A181: Expressing him/herself | J181: 0
A182: Variety in structures
A183: Structures / sentence forms
A184: Range of vocabulary for set task
A185: Formulation to avoid repetition
A186: Lifting of words from the prompt
A187: Expressing him/herself in the set task
A188: Descriptions / viewpoints / arguments
A189: Insufficient language to make an assessment
A191: LEXICAL AND STRUCTURAL ACCURACY | B191: 3. TEXTAUFGABE
A192: Structural control | J192: 0
A193: Errors and slips
A194: Influence from other languages
A195: Spelling
A196: Major errors with more complex thoughts
A197: Lexical inaccuracies
A198: Linking devices
A199: Punctuation conventions
A200: Rereading
A201: Limited accuracy
A202: Insufficient language to make an assessment
A205: =A1 & " " & A2 -> BG/BRG MUSTERSCHULE Matura Haupttermin - Schuljahr 2013/ 2014
A206: Name: | B206: =B3 -> NAME12
A208: ERFÜLLUNG DER AUFGABENSTELLUNG | B208: Textproduktion 1
A209: Einhaltung der Textsorte | J209: 0
A210: Titel/Betreff/Überschriften/Anrede/Grußzeile
A211: Ausführung der Aufgabenstellung
A212: Veranschaulichende Details
A213: Erklärung der Sachverhalte
A214: Irrelevante inhaltliche Punkte oder Details
A215: Eigene Meinung zu einer Situation
A216: Erklärung der Gründe für Handlungen
A217: Vorgegebene Wortanzahl
A218: Verfehlung der Aufgabenstellung
A221: AUFBAU UND LAYOUT | B221: Textproduktion 1
A222: Gesamtaufbau | J222: 0
A223: Präsentation inhaltlicher Punkte (Kohärenz)
A224: Gliederung
A225: Textspezifisches Layout
A226: Einsatz textgrammatischer Mittel (Kohäsion)
A227: Häufige Gedankensprünge
A228: Keine Struktur / keine Sprachproduktion
A231: SPEKTRUM SPRACHLICHER MITTEL | B231: Textproduktion 1
A232: Lexikalische und strukturelle Mitteln | J232: 0
A233: WH / Begrenzte Ausdrucksmöglichkeiten
A234: Formulierungen
A235: Formulierungsschwierigkeiten / Wortschatz
A236: Angemessener Stil
A237: Keine ausreichende Sprachproduktion
A242: =A1 & " " & A2 -> BG/BRG MUSTERSCHULE Matura Haupttermin - Schuljahr 2013/ 2014
A243: Name: | B243: =B3 -> NAME12
A245: SPRACHRICHTIGKEIT | B245: Textproduktion 1
A246: Grundwortschatz / Strukturen / Wendungen | J246: 0
A247: Kommunikation beeinträchtigende Fehler
A248: Rechtschreibung und Zeichensetzung
A249: Interferenzen anderer Sprachen
A250: Keine Sprachproduktion / nicht verständlich
C259: 2. TEXTPRODUKTION
A264: ERFÜLLUNG DER AUFGABENSTELLUNG | B264: Textproduktion 2
A265: Einhaltung der Textsorte | J265: 0
... 69 more rows

Sheet Zahlen (hidden)
C1: Hören | E1: Lesen | G1: SpiK | I1: T1 | K1: T2 | M1: T3
A3: 0 | B3: =IF($A3<=Berechnen!$C$6,"x","") -> x | C3: =INDEX(A:A,SMALL(IF(B$3:B$103="x",ROW($3:$103)),ROW(A1))) -> 0 | D3: =IF($A3<=Berechnen!$C$8,"x","") -> x | E3: =INDEX(A:A,SMALL(IF(D$3:D$103="x",ROW($3:$103)),ROW(A1))) -> 0 | F3: =IF($A3<=Berechnen!$C$10,"x","") -> x | G3: =INDEX(A:A,SMALL(IF(F$3:F$103="x",ROW($3:$103)),ROW(A1))) -> 0 | H3: =IF($A3<=Berechnen!$C$12,"x","") -> x | I3: =INDEX(A:A,SMALL(IF(H$3:H$103="x",ROW($3:$103)),ROW(A1))) -> 0 | J3: =IF($A3<=Berechnen!$C$14,"x","") -> x | K3: =INDEX(A:A,SMALL(IF(J$3:J$103="x",ROW($3:$103)),ROW(A1))) -> 0 | L3: =IF($A3<=Berechnen!$C$16,"x","") -> x | M3: =INDEX(A:A,SMALL(IF(L$3:L$103="x",ROW($3:$103)),ROW(A1))) -> 0 | O3: Task Achievement | R3: Assessment Scale B1
A4: 1 | B4: =IF($A4<=Berechnen!$C$6,"x","") -> x | C4: =INDEX(A:A,SMALL(IF(B$3:B$103="x",ROW($3:$103)),ROW(A2))) -> 1 | D4: =IF($A4<=Berechnen!$C$8,"x","") -> x | E4: =INDEX(A:A,SMALL(IF(D$3:D$103="x",ROW($3:$103)),ROW(A2))) -> 1 | F4: =IF($A4<=Berechnen!$C$10,"x","") -> x | G4: =INDEX(A:A,SMALL(IF(F$3:F$103="x",ROW($3:$103)),ROW(A2))) -> 1 | H4: =IF($A4<=Berechnen!$C$12,"x","") -> x | I4: =INDEX(A:A,SMALL(IF(H$3:H$103="x",ROW($3:$103)),ROW(A2))) -> 1 | J4: =IF($A4<=Berechnen!$C$14,"x","") -> x | K4: =INDEX(A:A,SMALL(IF(J$3:J$103="x",ROW($3:$103)),ROW(A2))) -> 1 | L4: =IF($A4<=Berechnen!$C$16,"x","") -> x | M4: =INDEX(A:A,SMALL(IF(L$3:L$103="x",ROW($3:$103)),ROW(A2))) -> 1 | O4: Organisation and Layout | R4: Assessment Scale B2
A5: 2 | B5: =IF($A5<=Berechnen!$C$6,"x","") -> x | C5: =INDEX(A:A,SMALL(IF(B$3:B$103="x",ROW($3:$103)),ROW(A3))) -> 2 | D5: =IF($A5<=Berechnen!$C$8,"x","") -> x | E5: =INDEX(A:A,SMALL(IF(D$3:D$103="x",ROW($3:$103)),ROW(A3))) -> 2 | F5: =IF($A5<=Berechnen!$C$10,"x","") -> x | G5: =INDEX(A:A,SMALL(IF(F$3:F$103="x",ROW($3:$103)),ROW(A3))) -> 2 | H5: =IF($A5<=Berechnen!$C$12,"x","") -> x | I5: =INDEX(A:A,SMALL(IF(H$3:H$103="x",ROW($3:$103)),ROW(A3))) -> 2 | J5: =IF($A5<=Berechnen!$C$14,"x","") -> x | K5: =INDEX(A:A,SMALL(IF(J$3:J$103="x",ROW($3:$103)),ROW(A3))) -> 2 | L5: =IF($A5<=Berechnen!$C$16,"x","") -> x | M5: =INDEX(A:A,SMALL(IF(L$3:L$103="x",ROW($3:$103)),ROW(A3))) -> 2 | O5: Lexical and Structural Range
A6: 3 | B6: =IF($A6<=Berechnen!$C$6,"x","") -> x | C6: =INDEX(A:A,SMALL(IF(B$3:B$103="x",ROW($3:$103)),ROW(A4))) -> 3 | D6: =IF($A6<=Berechnen!$C$8,"x","") -> x | E6: =INDEX(A:A,SMALL(IF(D$3:D$103="x",ROW($3:$103)),ROW(A4))) -> 3 | F6: =IF($A6<=Berechnen!$C$10,"x","") -> x | G6: =INDEX(A:A,SMALL(IF(F$3:F$103="x",ROW($3:$103)),ROW(A4))) -> 3 | H6: =IF($A6<=Berechnen!$C$12,"x","") -> x | I6: =INDEX(A:A,SMALL(IF(H$3:H$103="x",ROW($3:$103)),ROW(A4))) -> 3 | J6: =IF($A6<=Berechnen!$C$14,"x","") -> x | K6: =INDEX(A:A,SMALL(IF(J$3:J$103="x",ROW($3:$103)),ROW(A4))) -> 3 | L6: =IF($A6<=Berechnen!$C$16,"x","") -> x | M6: =INDEX(A:A,SMALL(IF(L$3:L$103="x",ROW($3:$103)),ROW(A4))) -> 3 | O6: Lexical and Structural Accuracy
A7: 4 | B7: =IF($A7<=Berechnen!$C$6,"x","") -> x | C7: =INDEX(A:A,SMALL(IF(B$3:B$103="x",ROW($3:$103)),ROW(A5))) -> 4 | D7: =IF($A7<=Berechnen!$C$8,"x","") -> x | E7: =INDEX(A:A,SMALL(IF(D$3:D$103="x",ROW($3:$103)),ROW(A5))) -> 4 | F7: =IF($A7<=Berechnen!$C$10,"x","") -> x | G7: =INDEX(A:A,SMALL(IF(F$3:F$103="x",ROW($3:$103)),ROW(A5))) -> 4 | H7: =IF($A7<=Berechnen!$C$12,"x","") -> x | I7: =INDEX(A:A,SMALL(IF(H$3:H$103="x",ROW($3:$103)),ROW(A5))) -> 4 | J7: =IF($A7<=Berechnen!$C$14,"x","") -> x | K7: =INDEX(A:A,SMALL(IF(J$3:J$103="x",ROW($3:$103)),ROW(A5))) -> 4 | L7: =IF($A7<=Berechnen!$C$16,"x","") -> x | M7: =INDEX(A:A,SMALL(IF(L$3:L$103="x",ROW($3:$103)),ROW(A5))) -> 4
A8: 5 | B8: =IF($A8<=Berechnen!$C$6,"x","") -> x | C8: =INDEX(A:A,SMALL(IF(B$3:B$103="x",ROW($3:$103)),ROW(A6))) -> 5 | D8: =IF($A8<=Berechnen!$C$8,"x","") -> x | E8: =INDEX(A:A,SMALL(IF(D$3:D$103="x",ROW($3:$103)),ROW(A6))) -> 5 | F8: =IF($A8<=Berechnen!$C$10,"x","") -> x | G8: =INDEX(A:A,SMALL(IF(F$3:F$103="x",ROW($3:$103)),ROW(A6))) -> 5 | H8: =IF($A8<=Berechnen!$C$12,"x","") -> x | I8: =INDEX(A:A,SMALL(IF(H$3:H$103="x",ROW($3:$103)),ROW(A6))) -> 5 | J8: =IF($A8<=Berechnen!$C$14,"x","") -> x | K8: =INDEX(A:A,SMALL(IF(J$3:J$103="x",ROW($3:$103)),ROW(A6))) -> 5 | L8: =IF($A8<=Berechnen!$C$16,"x","") -> x | M8: =INDEX(A:A,SMALL(IF(L$3:L$103="x",ROW($3:$103)),ROW(A6))) -> 5
A9: 6 | B9: =IF($A9<=Berechnen!$C$6,"x","") -> x | C9: =INDEX(A:A,SMALL(IF(B$3:B$103="x",ROW($3:$103)),ROW(A7))) -> 6 | D9: =IF($A9<=Berechnen!$C$8,"x","") -> x | E9: =INDEX(A:A,SMALL(IF(D$3:D$103="x",ROW($3:$103)),ROW(A7))) -> 6 | F9: =IF($A9<=Berechnen!$C$10,"x","") -> x | G9: =INDEX(A:A,SMALL(IF(F$3:F$103="x",ROW($3:$103)),ROW(A7))) -> 6 | H9: =IF($A9<=Berechnen!$C$12,"x","") -> x | I9: =INDEX(A:A,SMALL(IF(H$3:H$103="x",ROW($3:$103)),ROW(A7))) -> 6 | J9: =IF($A9<=Berechnen!$C$14,"x","") -> x | K9: =INDEX(A:A,SMALL(IF(J$3:J$103="x",ROW($3:$103)),ROW(A7))) -> 6 | L9: =IF($A9<=Berechnen!$C$16,"x","") -> x | M9: =INDEX(A:A,SMALL(IF(L$3:L$103="x",ROW($3:$103)),ROW(A7))) -> 6 | O9: Essay
A10: 7 | B10: =IF($A10<=Berechnen!$C$6,"x","") -> x | C10: =INDEX(A:A,SMALL(IF(B$3:B$103="x",ROW($3:$103)),ROW(A8))) -> 7 | D10: =IF($A10<=Berechnen!$C$8,"x","") -> x | E10: =INDEX(A:A,SMALL(IF(D$3:D$103="x",ROW($3:$103)),ROW(A8))) -> 7 | F10: =IF($A10<=Berechnen!$C$10,"x","") -> x | G10: =INDEX(A:A,SMALL(IF(F$3:F$103="x",ROW($3:$103)),ROW(A8))) -> 7 | H10: =IF($A10<=Berechnen!$C$12,"x","") -> x | I10: =INDEX(A:A,SMALL(IF(H$3:H$103="x",ROW($3:$103)),ROW(A8))) -> 7 | J10: =IF($A10<=Berechnen!$C$14,"x","") -> x | K10: =INDEX(A:A,SMALL(IF(J$3:J$103="x",ROW($3:$103)),ROW(A8))) -> 7 | L10: =IF($A10<=Berechnen!$C$16,"x","") -> x | M10: =INDEX(A:A,SMALL(IF(L$3:L$103="x",ROW($3:$103)),ROW(A8))) -> 7 | O10: Email
A11: 8 | B11: =IF($A11<=Berechnen!$C$6,"x","") -> x | C11: =INDEX(A:A,SMALL(IF(B$3:B$103="x",ROW($3:$103)),ROW(A9))) -> 8 | D11: =IF($A11<=Berechnen!$C$8,"x","") -> x | E11: =INDEX(A:A,SMALL(IF(D$3:D$103="x",ROW($3:$103)),ROW(A9))) -> 8 | F11: =IF($A11<=Berechnen!$C$10,"x","") -> x | G11: =INDEX(A:A,SMALL(IF(F$3:F$103="x",ROW($3:$103)),ROW(A9))) -> 8 | H11: =IF($A11<=Berechnen!$C$12,"x","") -> x | I11: =INDEX(A:A,SMALL(IF(H$3:H$103="x",ROW($3:$103)),ROW(A9))) -> 8 | J11: =IF($A11<=Berechnen!$C$14,"x","") -> x | K11: =INDEX(A:A,SMALL(IF(J$3:J$103="x",ROW($3:$103)),ROW(A9))) -> 8 | L11: =IF($A11<=Berechnen!$C$16,"x","") -> x | M11: =INDEX(A:A,SMALL(IF(L$3:L$103="x",ROW($3:$103)),ROW(A9))) -> 8 | O11: Report
A12: 9 | B12: =IF($A12<=Berechnen!$C$6,"x","") -> x | C12: =INDEX(A:A,SMALL(IF(B$3:B$103="x",ROW($3:$103)),ROW(A10))) -> 9 | D12: =IF($A12<=Berechnen!$C$8,"x","") -> x | E12: =INDEX(A:A,SMALL(IF(D$3:D$103="x",ROW($3:$103)),ROW(A10))) -> 9 | F12: =IF($A12<=Berechnen!$C$10,"x","") -> x | G12: =INDEX(A:A,SMALL(IF(F$3:F$103="x",ROW($3:$103)),ROW(A10))) -> 9 | H12: =IF($A12<=Berechnen!$C$12,"x","") -> x | I12: =INDEX(A:A,SMALL(IF(H$3:H$103="x",ROW($3:$103)),ROW(A10))) -> 9 | J12: =IF($A12<=Berechnen!$C$14,"x","") -> x | K12: =INDEX(A:A,SMALL(IF(J$3:J$103="x",ROW($3:$103)),ROW(A10))) -> 9 | L12: =IF($A12<=Berechnen!$C$16,"x","") -> x | M12: =INDEX(A:A,SMALL(IF(L$3:L$103="x",ROW($3:$103)),ROW(A10))) -> 9 | O12: Article
A13: 10 | B13: =IF($A13<=Berechnen!$C$6,"x","") -> x | C13: =INDEX(A:A,SMALL(IF(B$3:B$103="x",ROW($3:$103)),ROW(A11))) -> 10 | D13: =IF($A13<=Berechnen!$C$8,"x","") -> x | E13: =INDEX(A:A,SMALL(IF(D$3:D$103="x",ROW($3:$103)),ROW(A11))) -> 10 | F13: =IF($A13<=Berechnen!$C$10,"x","") -> x | G13: =INDEX(A:A,SMALL(IF(F$3:F$103="x",ROW($3:$103)),ROW(A11))) -> 10 | H13: =IF($A13<=Berechnen!$C$12,"x","") -> x | I13: =INDEX(A:A,SMALL(IF(H$3:H$103="x",ROW($3:$103)),ROW(A11))) -> 10 | J13: =IF($A13<=Berechnen!$C$14,"x","") -> x | K13: =INDEX(A:A,SMALL(IF(J$3:J$103="x",ROW($3:$103)),ROW(A11))) -> 10 | L13: =IF($A13<=Berechnen!$C$16,"x","") -> x | M13: =INDEX(A:A,SMALL(IF(L$3:L$103="x",ROW($3:$103)),ROW(A11))) -> 10
A14: 11 | B14: =IF($A14<=Berechnen!$C$6,"x","") -> x | C14: =INDEX(A:A,SMALL(IF(B$3:B$103="x",ROW($3:$103)),ROW(A12))) -> 11 | D14: =IF($A14<=Berechnen!$C$8,"x","") -> x | E14: =INDEX(A:A,SMALL(IF(D$3:D$103="x",ROW($3:$103)),ROW(A12))) -> 11 | F14: =IF($A14<=Berechnen!$C$10,"x","") -> x | G14: =INDEX(A:A,SMALL(IF(F$3:F$103="x",ROW($3:$103)),ROW(A12))) -> 11 | H14: =IF($A14<=Berechnen!$C$12,"x","") -> x | I14: =INDEX(A:A,SMALL(IF(H$3:H$103="x",ROW($3:$103)),ROW(A12))) -> 11 | J14: =IF($A14<=Berechnen!$C$14,"x","") -> x | K14: =INDEX(A:A,SMALL(IF(J$3:J$103="x",ROW($3:$103)),ROW(A12))) -> 11 | L14: =IF($A14<=Berechnen!$C$16,"x","") -> x | M14: =INDEX(A:A,SMALL(IF(L$3:L$103="x",ROW($3:$103)),ROW(A12))) -> 11
A15: 12 | B15: =IF($A15<=Berechnen!$C$6,"x","") -> x | C15: =INDEX(A:A,SMALL(IF(B$3:B$103="x",ROW($3:$103)),ROW(A13))) -> 12 | D15: =IF($A15<=Berechnen!$C$8,"x","") -> x | E15: =INDEX(A:A,SMALL(IF(D$3:D$103="x",ROW($3:$103)),ROW(A13))) -> 12 | F15: =IF($A15<=Berechnen!$C$10,"x","") -> x | G15: =INDEX(A:A,SMALL(IF(F$3:F$103="x",ROW($3:$103)),ROW(A13))) -> 12 | H15: =IF($A15<=Berechnen!$C$12,"x","") -> x | I15: =INDEX(A:A,SMALL(IF(H$3:H$103="x",ROW($3:$103)),ROW(A13))) -> 12 | J15: =IF($A15<=Berechnen!$C$14,"x","") -> x | K15: =INDEX(A:A,SMALL(IF(J$3:J$103="x",ROW($3:$103)),ROW(A13))) -> 12 | L15: =IF($A15<=Berechnen!$C$16,"x","") -> x | M15: =INDEX(A:A,SMALL(IF(L$3:L$103="x",ROW($3:$103)),ROW(A13))) -> 12
A16: 13 | B16: =IF($A16<=Berechnen!$C$6,"x","") -> x | C16: =INDEX(A:A,SMALL(IF(B$3:B$103="x",ROW($3:$103)),ROW(A14))) -> 13 | D16: =IF($A16<=Berechnen!$C$8,"x","") -> x | E16: =INDEX(A:A,SMALL(IF(D$3:D$103="x",ROW($3:$103)),ROW(A14))) -> 13 | F16: =IF($A16<=Berechnen!$C$10,"x","") -> x | G16: =INDEX(A:A,SMALL(IF(F$3:F$103="x",ROW($3:$103)),ROW(A14))) -> 13 | H16: =IF($A16<=Berechnen!$C$12,"x","") -> x | I16: =INDEX(A:A,SMALL(IF(H$3:H$103="x",ROW($3:$103)),ROW(A14))) -> 13 | J16: =IF($A16<=Berechnen!$C$14,"x","") -> x | K16: =INDEX(A:A,SMALL(IF(J$3:J$103="x",ROW($3:$103)),ROW(A14))) -> 13 | L16: =IF($A16<=Berechnen!$C$16,"x","") -> x | M16: =INDEX(A:A,SMALL(IF(L$3:L$103="x",ROW($3:$103)),ROW(A14))) -> 13
A17: 14 | B17: =IF($A17<=Berechnen!$C$6,"x","") -> x | C17: =INDEX(A:A,SMALL(IF(B$3:B$103="x",ROW($3:$103)),ROW(A15))) -> 14 | D17: =IF($A17<=Berechnen!$C$8,"x","") -> x | E17: =INDEX(A:A,SMALL(IF(D$3:D$103="x",ROW($3:$103)),ROW(A15))) -> 14 | F17: =IF($A17<=Berechnen!$C$10,"x","") -> x | G17: =INDEX(A:A,SMALL(IF(F$3:F$103="x",ROW($3:$103)),ROW(A15))) -> 14 | H17: =IF($A17<=Berechnen!$C$12,"x","") -> x | I17: =INDEX(A:A,SMALL(IF(H$3:H$103="x",ROW($3:$103)),ROW(A15))) -> 14 | J17: =IF($A17<=Berechnen!$C$14,"x","") -> x | K17: =INDEX(A:A,SMALL(IF(J$3:J$103="x",ROW($3:$103)),ROW(A15))) -> 14 | L17: =IF($A17<=Berechnen!$C$16,"x","") -> x | M17: =INDEX(A:A,SMALL(IF(L$3:L$103="x",ROW($3:$103)),ROW(A15))) -> 14
A18: 15 | B18: =IF($A18<=Berechnen!$C$6,"x","") -> x | C18: =INDEX(A:A,SMALL(IF(B$3:B$103="x",ROW($3:$103)),ROW(A16))) -> 15 | D18: =IF($A18<=Berechnen!$C$8,"x","") -> x | E18: =INDEX(A:A,SMALL(IF(D$3:D$103="x",ROW($3:$103)),ROW(A16))) -> 15 | F18: =IF($A18<=Berechnen!$C$10,"x","") -> x | G18: =INDEX(A:A,SMALL(IF(F$3:F$103="x",ROW($3:$103)),ROW(A16))) -> 15 | H18: =IF($A18<=Berechnen!$C$12,"x","") -> x | I18: =INDEX(A:A,SMALL(IF(H$3:H$103="x",ROW($3:$103)),ROW(A16))) -> 15 | J18: =IF($A18<=Berechnen!$C$14,"x","") -> x | K18: =INDEX(A:A,SMALL(IF(J$3:J$103="x",ROW($3:$103)),ROW(A16))) -> 15 | L18: =IF($A18<=Berechnen!$C$16,"x","") -> x | M18: =INDEX(A:A,SMALL(IF(L$3:L$103="x",ROW($3:$103)),ROW(A16))) -> 15
A19: 16 | B19: =IF($A19<=Berechnen!$C$6,"x","") -> x | C19: =INDEX(A:A,SMALL(IF(B$3:B$103="x",ROW($3:$103)),ROW(A17))) -> 16 | D19: =IF($A19<=Berechnen!$C$8,"x","") -> x | E19: =INDEX(A:A,SMALL(IF(D$3:D$103="x",ROW($3:$103)),ROW(A17))) -> 16 | F19: =IF($A19<=Berechnen!$C$10,"x","") -> x | G19: =INDEX(A:A,SMALL(IF(F$3:F$103="x",ROW($3:$103)),ROW(A17))) -> 16 | H19: =IF($A19<=Berechnen!$C$12,"x","") -> x | I19: =INDEX(A:A,SMALL(IF(H$3:H$103="x",ROW($3:$103)),ROW(A17))) -> 16 | J19: =IF($A19<=Berechnen!$C$14,"x","") -> x | K19: =INDEX(A:A,SMALL(IF(J$3:J$103="x",ROW($3:$103)),ROW(A17))) -> 16 | L19: =IF($A19<=Berechnen!$C$16,"x","") -> x | M19: =INDEX(A:A,SMALL(IF(L$3:L$103="x",ROW($3:$103)),ROW(A17))) -> 16
A20: 17 | B20: =IF($A20<=Berechnen!$C$6,"x","") -> x | C20: =INDEX(A:A,SMALL(IF(B$3:B$103="x",ROW($3:$103)),ROW(A18))) -> 17 | D20: =IF($A20<=Berechnen!$C$8,"x","") -> x | E20: =INDEX(A:A,SMALL(IF(D$3:D$103="x",ROW($3:$103)),ROW(A18))) -> 17 | F20: =IF($A20<=Berechnen!$C$10,"x","") -> x | G20: =INDEX(A:A,SMALL(IF(F$3:F$103="x",ROW($3:$103)),ROW(A18))) -> 17 | H20: =IF($A20<=Berechnen!$C$12,"x","") -> x | I20: =INDEX(A:A,SMALL(IF(H$3:H$103="x",ROW($3:$103)),ROW(A18))) -> 17 | J20: =IF($A20<=Berechnen!$C$14,"x","") -> x | K20: =INDEX(A:A,SMALL(IF(J$3:J$103="x",ROW($3:$103)),ROW(A18))) -> 17 | L20: =IF($A20<=Berechnen!$C$16,"x","") -> x | M20: =INDEX(A:A,SMALL(IF(L$3:L$103="x",ROW($3:$103)),ROW(A18))) -> 17
A21: 18 | B21: =IF($A21<=Berechnen!$C$6,"x","") -> x | C21: =INDEX(A:A,SMALL(IF(B$3:B$103="x",ROW($3:$103)),ROW(A19))) -> 18 | D21: =IF($A21<=Berechnen!$C$8,"x","") -> x | E21: =INDEX(A:A,SMALL(IF(D$3:D$103="x",ROW($3:$103)),ROW(A19))) -> 18 | F21: =IF($A21<=Berechnen!$C$10,"x","") -> x | G21: =INDEX(A:A,SMALL(IF(F$3:F$103="x",ROW($3:$103)),ROW(A19))) -> 18 | H21: =IF($A21<=Berechnen!$C$12,"x","") -> x | I21: =INDEX(A:A,SMALL(IF(H$3:H$103="x",ROW($3:$103)),ROW(A19))) -> 18 | J21: =IF($A21<=Berechnen!$C$14,"x","") -> x | K21: =INDEX(A:A,SMALL(IF(J$3:J$103="x",ROW($3:$103)),ROW(A19))) -> 18 | L21: =IF($A21<=Berechnen!$C$16,"x","") -> x | M21: =INDEX(A:A,SMALL(IF(L$3:L$103="x",ROW($3:$103)),ROW(A19))) -> 18
A22: 19 | B22: =IF($A22<=Berechnen!$C$6,"x","") -> x | C22: =INDEX(A:A,SMALL(IF(B$3:B$103="x",ROW($3:$103)),ROW(A20))) -> 19 | D22: =IF($A22<=Berechnen!$C$8,"x","") -> x | E22: =INDEX(A:A,SMALL(IF(D$3:D$103="x",ROW($3:$103)),ROW(A20))) -> 19 | F22: =IF($A22<=Berechnen!$C$10,"x","") -> x | G22: =INDEX(A:A,SMALL(IF(F$3:F$103="x",ROW($3:$103)),ROW(A20))) -> 19 | H22: =IF($A22<=Berechnen!$C$12,"x","") -> x | I22: =INDEX(A:A,SMALL(IF(H$3:H$103="x",ROW($3:$103)),ROW(A20))) -> 19 | J22: =IF($A22<=Berechnen!$C$14,"x","") -> x | K22: =INDEX(A:A,SMALL(IF(J$3:J$103="x",ROW($3:$103)),ROW(A20))) -> 19 | L22: =IF($A22<=Berechnen!$C$16,"x","") -> x | M22: =INDEX(A:A,SMALL(IF(L$3:L$103="x",ROW($3:$103)),ROW(A20))) -> 19
A23: 20 | B23: =IF($A23<=Berechnen!$C$6,"x","") -> x | C23: =INDEX(A:A,SMALL(IF(B$3:B$103="x",ROW($3:$103)),ROW(A21))) -> 20 | D23: =IF($A23<=Berechnen!$C$8,"x","") -> x | E23: =INDEX(A:A,SMALL(IF(D$3:D$103="x",ROW($3:$103)),ROW(A21))) -> 20 | F23: =IF($A23<=Berechnen!$C$10,"x","") -> x | G23: =INDEX(A:A,SMALL(IF(F$3:F$103="x",ROW($3:$103)),ROW(A21))) -> 20 | H23: =IF($A23<=Berechnen!$C$12,"x","") -> x | I23: =INDEX(A:A,SMALL(IF(H$3:H$103="x",ROW($3:$103)),ROW(A21))) -> 20 | J23: =IF($A23<=Berechnen!$C$14,"x","") -> x | K23: =INDEX(A:A,SMALL(IF(J$3:J$103="x",ROW($3:$103)),ROW(A21))) -> 20 | L23: =IF($A23<=Berechnen!$C$16,"x","") -> x | M23: =INDEX(A:A,SMALL(IF(L$3:L$103="x",ROW($3:$103)),ROW(A21))) -> 20
A24: 21 | B24: =IF($A24<=Berechnen!$C$6,"x","") -> x | C24: =INDEX(A:A,SMALL(IF(B$3:B$103="x",ROW($3:$103)),ROW(A22))) -> 21 | D24: =IF($A24<=Berechnen!$C$8,"x","") -> x | E24: =INDEX(A:A,SMALL(IF(D$3:D$103="x",ROW($3:$103)),ROW(A22))) -> 21 | F24: =IF($A24<=Berechnen!$C$10,"x","") -> x | G24: =INDEX(A:A,SMALL(IF(F$3:F$103="x",ROW($3:$103)),ROW(A22))) -> 21 | H24: =IF($A24<=Berechnen!$C$12,"x","") -> x | I24: =INDEX(A:A,SMALL(IF(H$3:H$103="x",ROW($3:$103)),ROW(A22))) -> 21 | J24: =IF($A24<=Berechnen!$C$14,"x","") -> x | K24: =INDEX(A:A,SMALL(IF(J$3:J$103="x",ROW($3:$103)),ROW(A22))) -> 21 | L24: =IF($A24<=Berechnen!$C$16,"x","") -> x | M24: =INDEX(A:A,SMALL(IF(L$3:L$103="x",ROW($3:$103)),ROW(A22))) -> 21
A25: 22 | B25: =IF($A25<=Berechnen!$C$6,"x","") -> x | C25: =INDEX(A:A,SMALL(IF(B$3:B$103="x",ROW($3:$103)),ROW(A23))) -> 22 | D25: =IF($A25<=Berechnen!$C$8,"x","") -> x | E25: =INDEX(A:A,SMALL(IF(D$3:D$103="x",ROW($3:$103)),ROW(A23))) -> 22 | F25: =IF($A25<=Berechnen!$C$10,"x","") -> x | G25: =INDEX(A:A,SMALL(IF(F$3:F$103="x",ROW($3:$103)),ROW(A23))) -> 22 | H25: =IF($A25<=Berechnen!$C$12,"x","") -> x | I25: =INDEX(A:A,SMALL(IF(H$3:H$103="x",ROW($3:$103)),ROW(A23))) -> 22 | J25: =IF($A25<=Berechnen!$C$14,"x","") -> x | K25: =INDEX(A:A,SMALL(IF(J$3:J$103="x",ROW($3:$103)),ROW(A23))) -> 22 | L25: =IF($A25<=Berechnen!$C$16,"x","") -> x | M25: =INDEX(A:A,SMALL(IF(L$3:L$103="x",ROW($3:$103)),ROW(A23))) -> 22
A26: 23 | B26: =IF($A26<=Berechnen!$C$6,"x","") -> x | C26: =INDEX(A:A,SMALL(IF(B$3:B$103="x",ROW($3:$103)),ROW(A24))) -> 23 | D26: =IF($A26<=Berechnen!$C$8,"x","") -> x | E26: =INDEX(A:A,SMALL(IF(D$3:D$103="x",ROW($3:$103)),ROW(A24))) -> 23 | F26: =IF($A26<=Berechnen!$C$10,"x","") -> x | G26: =INDEX(A:A,SMALL(IF(F$3:F$103="x",ROW($3:$103)),ROW(A24))) -> 23 | H26: =IF($A26<=Berechnen!$C$12,"x","") -> x | I26: =INDEX(A:A,SMALL(IF(H$3:H$103="x",ROW($3:$103)),ROW(A24))) -> 23 | J26: =IF($A26<=Berechnen!$C$14,"x","") -> x | K26: =INDEX(A:A,SMALL(IF(J$3:J$103="x",ROW($3:$103)),ROW(A24))) -> 23 | L26: =IF($A26<=Berechnen!$C$16,"x","") -> x | M26: =INDEX(A:A,SMALL(IF(L$3:L$103="x",ROW($3:$103)),ROW(A24))) -> 23
A27: 24 | B27: =IF($A27<=Berechnen!$C$6,"x","") -> x | C27: =INDEX(A:A,SMALL(IF(B$3:B$103="x",ROW($3:$103)),ROW(A25))) -> 24 | D27: =IF($A27<=Berechnen!$C$8,"x","") -> x | E27: =INDEX(A:A,SMALL(IF(D$3:D$103="x",ROW($3:$103)),ROW(A25))) -> 24 | F27: =IF($A27<=Berechnen!$C$10,"x","") -> x | G27: =INDEX(A:A,SMALL(IF(F$3:F$103="x",ROW($3:$103)),ROW(A25))) -> 24 | H27: =IF($A27<=Berechnen!$C$12,"x","") -> x | I27: =INDEX(A:A,SMALL(IF(H$3:H$103="x",ROW($3:$103)),ROW(A25))) -> 24 | J27: =IF($A27<=Berechnen!$C$14,"x","") -> x | K27: =INDEX(A:A,SMALL(IF(J$3:J$103="x",ROW($3:$103)),ROW(A25))) -> 24 | L27: =IF($A27<=Berechnen!$C$16,"x","") -> x | M27: =INDEX(A:A,SMALL(IF(L$3:L$103="x",ROW($3:$103)),ROW(A25))) -> 24
A28: 25 | B28: =IF($A28<=Berechnen!$C$6,"x","") -> x | C28: =INDEX(A:A,SMALL(IF(B$3:B$103="x",ROW($3:$103)),ROW(A26))) -> 25 | D28: =IF($A28<=Berechnen!$C$8,"x","") -> x | E28: =INDEX(A:A,SMALL(IF(D$3:D$103="x",ROW($3:$103)),ROW(A26))) -> 25 | F28: =IF($A28<=Berechnen!$C$10,"x","") -> x | G28: =INDEX(A:A,SMALL(IF(F$3:F$103="x",ROW($3:$103)),ROW(A26))) -> 25 | H28: =IF($A28<=Berechnen!$C$12,"x","") -> x | I28: =INDEX(A:A,SMALL(IF(H$3:H$103="x",ROW($3:$103)),ROW(A26))) -> 25 | J28: =IF($A28<=Berechnen!$C$14,"x","") -> x | K28: =INDEX(A:A,SMALL(IF(J$3:J$103="x",ROW($3:$103)),ROW(A26))) -> 25 | L28: =IF($A28<=Berechnen!$C$16,"x","") -> x | M28: =INDEX(A:A,SMALL(IF(L$3:L$103="x",ROW($3:$103)),ROW(A26))) -> 25
A29: 26 | B29: =IF($A29<=Berechnen!$C$6,"x","") -> x | C29: =INDEX(A:A,SMALL(IF(B$3:B$103="x",ROW($3:$103)),ROW(A27))) -> 26 | D29: =IF($A29<=Berechnen!$C$8,"x","") -> x | E29: =INDEX(A:A,SMALL(IF(D$3:D$103="x",ROW($3:$103)),ROW(A27))) -> 26 | F29: =IF($A29<=Berechnen!$C$10,"x","") -> x | G29: =INDEX(A:A,SMALL(IF(F$3:F$103="x",ROW($3:$103)),ROW(A27))) -> 26 | H29: =IF($A29<=Berechnen!$C$12,"x","") -> x | I29: =INDEX(A:A,SMALL(IF(H$3:H$103="x",ROW($3:$103)),ROW(A27))) -> 26 | J29: =IF($A29<=Berechnen!$C$14,"x","") -> x | K29: =INDEX(A:A,SMALL(IF(J$3:J$103="x",ROW($3:$103)),ROW(A27))) -> 26 | L29: =IF($A29<=Berechnen!$C$16,"x","") -> x | M29: =INDEX(A:A,SMALL(IF(L$3:L$103="x",ROW($3:$103)),ROW(A27))) -> 26
A30: 27 | B30: =IF($A30<=Berechnen!$C$6,"x","") -> x | C30: =INDEX(A:A,SMALL(IF(B$3:B$103="x",ROW($3:$103)),ROW(A28))) -> 27 | D30: =IF($A30<=Berechnen!$C$8,"x","") -> x | E30: =INDEX(A:A,SMALL(IF(D$3:D$103="x",ROW($3:$103)),ROW(A28))) -> 27 | F30: =IF($A30<=Berechnen!$C$10,"x","") -> x | G30: =INDEX(A:A,SMALL(IF(F$3:F$103="x",ROW($3:$103)),ROW(A28))) -> 27 | H30: =IF($A30<=Berechnen!$C$12,"x","") -> x | I30: =INDEX(A:A,SMALL(IF(H$3:H$103="x",ROW($3:$103)),ROW(A28))) -> 27 | J30: =IF($A30<=Berechnen!$C$14,"x","") -> x | K30: =INDEX(A:A,SMALL(IF(J$3:J$103="x",ROW($3:$103)),ROW(A28))) -> 27 | L30: =IF($A30<=Berechnen!$C$16,"x","") -> x | M30: =INDEX(A:A,SMALL(IF(L$3:L$103="x",ROW($3:$103)),ROW(A28))) -> 27
A31: 28 | B31: =IF($A31<=Berechnen!$C$6,"x","") -> x | C31: =INDEX(A:A,SMALL(IF(B$3:B$103="x",ROW($3:$103)),ROW(A29))) -> 28 | D31: =IF($A31<=Berechnen!$C$8,"x","") -> x | E31: =INDEX(A:A,SMALL(IF(D$3:D$103="x",ROW($3:$103)),ROW(A29))) -> 28 | F31: =IF($A31<=Berechnen!$C$10,"x","") -> x | G31: =INDEX(A:A,SMALL(IF(F$3:F$103="x",ROW($3:$103)),ROW(A29))) -> 28 | H31: =IF($A31<=Berechnen!$C$12,"x","") -> x | I31: =INDEX(A:A,SMALL(IF(H$3:H$103="x",ROW($3:$103)),ROW(A29))) -> 28 | J31: =IF($A31<=Berechnen!$C$14,"x","") -> x | K31: =INDEX(A:A,SMALL(IF(J$3:J$103="x",ROW($3:$103)),ROW(A29))) -> 28 | L31: =IF($A31<=Berechnen!$C$16,"x","") -> x | M31: =INDEX(A:A,SMALL(IF(L$3:L$103="x",ROW($3:$103)),ROW(A29))) -> 28
A32: 29 | B32: =IF($A32<=Berechnen!$C$6,"x","") ->  | C32: =INDEX(A:A,SMALL(IF(B$3:B$103="x",ROW($3:$103)),ROW(A30))) ->  | D32: =IF($A32<=Berechnen!$C$8,"x","") -> x | E32: =INDEX(A:A,SMALL(IF(D$3:D$103="x",ROW($3:$103)),ROW(A30))) -> 29 | F32: =IF($A32<=Berechnen!$C$10,"x","") -> x | G32: =INDEX(A:A,SMALL(IF(F$3:F$103="x",ROW($3:$103)),ROW(A30))) -> 29 | H32: =IF($A32<=Berechnen!$C$12,"x","") -> x | I32: =INDEX(A:A,SMALL(IF(H$3:H$103="x",ROW($3:$103)),ROW(A30))) -> 29 | J32: =IF($A32<=Berechnen!$C$14,"x","") -> x | K32: =INDEX(A:A,SMALL(IF(J$3:J$103="x",ROW($3:$103)),ROW(A30))) -> 29 | L32: =IF($A32<=Berechnen!$C$16,"x","") -> x | M32: =INDEX(A:A,SMALL(IF(L$3:L$103="x",ROW($3:$103)),ROW(A30))) -> 29
A33: 30 | B33: =IF($A33<=Berechnen!$C$6,"x","") ->  | C33: =INDEX(A:A,SMALL(IF(B$3:B$103="x",ROW($3:$103)),ROW(A31))) ->  | D33: =IF($A33<=Berechnen!$C$8,"x","") -> x | E33: =INDEX(A:A,SMALL(IF(D$3:D$103="x",ROW($3:$103)),ROW(A31))) -> 30 | F33: =IF($A33<=Berechnen!$C$10,"x","") -> x | G33: =INDEX(A:A,SMALL(IF(F$3:F$103="x",ROW($3:$103)),ROW(A31))) -> 30 | H33: =IF($A33<=Berechnen!$C$12,"x","") -> x | I33: =INDEX(A:A,SMALL(IF(H$3:H$103="x",ROW($3:$103)),ROW(A31))) -> 30 | J33: =IF($A33<=Berechnen!$C$14,"x","") -> x | K33: =INDEX(A:A,SMALL(IF(J$3:J$103="x",ROW($3:$103)),ROW(A31))) -> 30 | L33: =IF($A33<=Berechnen!$C$16,"x","") -> x | M33: =INDEX(A:A,SMALL(IF(L$3:L$103="x",ROW($3:$103)),ROW(A31))) -> 30
A34: 31 | B34: =IF($A34<=Berechnen!$C$6,"x","") ->  | C34: =INDEX(A:A,SMALL(IF(B$3:B$103="x",ROW($3:$103)),ROW(A32))) ->  | D34: =IF($A34<=Berechnen!$C$8,"x","") ->  | E34: =INDEX(A:A,SMALL(IF(D$3:D$103="x",ROW($3:$103)),ROW(A32))) ->  | F34: =IF($A34<=Berechnen!$C$10,"x","") -> x | G34: =INDEX(A:A,SMALL(IF(F$3:F$103="x",ROW($3:$103)),ROW(A32))) -> 31 | H34: =IF($A34<=Berechnen!$C$12,"x","") -> x | I34: =INDEX(A:A,SMALL(IF(H$3:H$103="x",ROW($3:$103)),ROW(A32))) -> 31 | J34: =IF($A34<=Berechnen!$C$14,"x","") -> x | K34: =INDEX(A:A,SMALL(IF(J$3:J$103="x",ROW($3:$103)),ROW(A32))) -> 31 | L34: =IF($A34<=Berechnen!$C$16,"x","") -> x | M34: =INDEX(A:A,SMALL(IF(L$3:L$103="x",ROW($3:$103)),ROW(A32))) -> 31
A35: 32 | B35: =IF($A35<=Berechnen!$C$6,"x","") ->  | C35: =INDEX(A:A,SMALL(IF(B$3:B$103="x",ROW($3:$103)),ROW(A33))) ->  | D35: =IF($A35<=Berechnen!$C$8,"x","") ->  | E35: =INDEX(A:A,SMALL(IF(D$3:D$103="x",ROW($3:$103)),ROW(A33))) ->  | F35: =IF($A35<=Berechnen!$C$10,"x","") -> x | G35: =INDEX(A:A,SMALL(IF(F$3:F$103="x",ROW($3:$103)),ROW(A33))) -> 32 | H35: =IF($A35<=Berechnen!$C$12,"x","") -> x | I35: =INDEX(A:A,SMALL(IF(H$3:H$103="x",ROW($3:$103)),ROW(A33))) -> 32 | J35: =IF($A35<=Berechnen!$C$14,"x","") -> x | K35: =INDEX(A:A,SMALL(IF(J$3:J$103="x",ROW($3:$103)),ROW(A33))) -> 32 | L35: =IF($A35<=Berechnen!$C$16,"x","") -> x | M35: =INDEX(A:A,SMALL(IF(L$3:L$103="x",ROW($3:$103)),ROW(A33))) -> 32
A36: 33 | B36: =IF($A36<=Berechnen!$C$6,"x","") ->  | C36: =INDEX(A:A,SMALL(IF(B$3:B$103="x",ROW($3:$103)),ROW(A34))) ->  | D36: =IF($A36<=Berechnen!$C$8,"x","") ->  | E36: =INDEX(A:A,SMALL(IF(D$3:D$103="x",ROW($3:$103)),ROW(A34))) ->  | F36: =IF($A36<=Berechnen!$C$10,"x","") -> x | G36: =INDEX(A:A,SMALL(IF(F$3:F$103="x",ROW($3:$103)),ROW(A34))) -> 33 | H36: =IF($A36<=Berechnen!$C$12,"x","") -> x | I36: =INDEX(A:A,SMALL(IF(H$3:H$103="x",ROW($3:$103)),ROW(A34))) -> 33 | J36: =IF($A36<=Berechnen!$C$14,"x","") -> x | K36: =INDEX(A:A,SMALL(IF(J$3:J$103="x",ROW($3:$103)),ROW(A34))) -> 33 | L36: =IF($A36<=Berechnen!$C$16,"x","") -> x | M36: =INDEX(A:A,SMALL(IF(L$3:L$103="x",ROW($3:$103)),ROW(A34))) -> 33
A37: 34 | B37: =IF($A37<=Berechnen!$C$6,"x","") ->  | C37: =INDEX(A:A,SMALL(IF(B$3:B$103="x",ROW($3:$103)),ROW(A35))) ->  | D37: =IF($A37<=Berechnen!$C$8,"x","") ->  | E37: =INDEX(A:A,SMALL(IF(D$3:D$103="x",ROW($3:$103)),ROW(A35))) ->  | F37: =IF($A37<=Berechnen!$C$10,"x","") -> x | G37: =INDEX(A:A,SMALL(IF(F$3:F$103="x",ROW($3:$103)),ROW(A35))) -> 34 | H37: =IF($A37<=Berechnen!$C$12,"x","") -> x | I37: =INDEX(A:A,SMALL(IF(H$3:H$103="x",ROW($3:$103)),ROW(A35))) -> 34 | J37: =IF($A37<=Berechnen!$C$14,"x","") -> x | K37: =INDEX(A:A,SMALL(IF(J$3:J$103="x",ROW($3:$103)),ROW(A35))) -> 34 | L37: =IF($A37<=Berechnen!$C$16,"x","") -> x | M37: =INDEX(A:A,SMALL(IF(L$3:L$103="x",ROW($3:$103)),ROW(A35))) -> 34
A38: 35 | B38: =IF($A38<=Berechnen!$C$6,"x","") ->  | C38: =INDEX(A:A,SMALL(IF(B$3:B$103="x",ROW($3:$103)),ROW(A36))) ->  | D38: =IF($A38<=Berechnen!$C$8,"x","") ->  | E38: =INDEX(A:A,SMALL(IF(D$3:D$103="x",ROW($3:$103)),ROW(A36))) ->  | F38: =IF($A38<=Berechnen!$C$10,"x","") -> x | G38: =INDEX(A:A,SMALL(IF(F$3:F$103="x",ROW($3:$103)),ROW(A36))) -> 35 | H38: =IF($A38<=Berechnen!$C$12,"x","") -> x | I38: =INDEX(A:A,SMALL(IF(H$3:H$103="x",ROW($3:$103)),ROW(A36))) -> 35 | J38: =IF($A38<=Berechnen!$C$14,"x","") -> x | K38: =INDEX(A:A,SMALL(IF(J$3:J$103="x",ROW($3:$103)),ROW(A36))) -> 35 | L38: =IF($A38<=Berechnen!$C$16,"x","") -> x | M38: =INDEX(A:A,SMALL(IF(L$3:L$103="x",ROW($3:$103)),ROW(A36))) -> 35
A39: 36 | B39: =IF($A39<=Berechnen!$C$6,"x","") ->  | C39: =INDEX(A:A,SMALL(IF(B$3:B$103="x",ROW($3:$103)),ROW(A37))) ->  | D39: =IF($A39<=Berechnen!$C$8,"x","") ->  | E39: =INDEX(A:A,SMALL(IF(D$3:D$103="x",ROW($3:$103)),ROW(A37))) ->  | F39: =IF($A39<=Berechnen!$C$10,"x","") -> x | G39: =INDEX(A:A,SMALL(IF(F$3:F$103="x",ROW($3:$103)),ROW(A37))) -> 36 | H39: =IF($A39<=Berechnen!$C$12,"x","") -> x | I39: =INDEX(A:A,SMALL(IF(H$3:H$103="x",ROW($3:$103)),ROW(A37))) -> 36 | J39: =IF($A39<=Berechnen!$C$14,"x","") -> x | K39: =INDEX(A:A,SMALL(IF(J$3:J$103="x",ROW($3:$103)),ROW(A37))) -> 36 | L39: =IF($A39<=Berechnen!$C$16,"x","") -> x | M39: =INDEX(A:A,SMALL(IF(L$3:L$103="x",ROW($3:$103)),ROW(A37))) -> 36
A40: 37 | B40: =IF($A40<=Berechnen!$C$6,"x","") ->  | C40: =INDEX(A:A,SMALL(IF(B$3:B$103="x",ROW($3:$103)),ROW(A38))) ->  | D40: =IF($A40<=Berechnen!$C$8,"x","") ->  | E40: =INDEX(A:A,SMALL(IF(D$3:D$103="x",ROW($3:$103)),ROW(A38))) ->  | F40: =IF($A40<=Berechnen!$C$10,"x","") -> x | G40: =INDEX(A:A,SMALL(IF(F$3:F$103="x",ROW($3:$103)),ROW(A38))) -> 37 | H40: =IF($A40<=Berechnen!$C$12,"x","") -> x | I40: =INDEX(A:A,SMALL(IF(H$3:H$103="x",ROW($3:$103)),ROW(A38))) -> 37 | J40: =IF($A40<=Berechnen!$C$14,"x","") -> x | K40: =INDEX(A:A,SMALL(IF(J$3:J$103="x",ROW($3:$103)),ROW(A38))) -> 37 | L40: =IF($A40<=Berechnen!$C$16,"x","") -> x | M40: =INDEX(A:A,SMALL(IF(L$3:L$103="x",ROW($3:$103)),ROW(A38))) -> 37
A41: 38 | B41: =IF($A41<=Berechnen!$C$6,"x","") ->  | C41: =INDEX(A:A,SMALL(IF(B$3:B$103="x",ROW($3:$103)),ROW(A39))) ->  | D41: =IF($A41<=Berechnen!$C$8,"x","") ->  | E41: =INDEX(A:A,SMALL(IF(D$3:D$103="x",ROW($3:$103)),ROW(A39))) ->  | F41: =IF($A41<=Berechnen!$C$10,"x","") -> x | G41: =INDEX(A:A,SMALL(IF(F$3:F$103="x",ROW($3:$103)),ROW(A39))) -> 38 | H41: =IF($A41<=Berechnen!$C$12,"x","") -> x | I41: =INDEX(A:A,SMALL(IF(H$3:H$103="x",ROW($3:$103)),ROW(A39))) -> 38 | J41: =IF($A41<=Berechnen!$C$14,"x","") -> x | K41: =INDEX(A:A,SMALL(IF(J$3:J$103="x",ROW($3:$103)),ROW(A39))) -> 38 | L41: =IF($A41<=Berechnen!$C$16,"x","") -> x | M41: =INDEX(A:A,SMALL(IF(L$3:L$103="x",ROW($3:$103)),ROW(A39))) -> 38
A42: 39 | B42: =IF($A42<=Berechnen!$C$6,"x","") ->  | C42: =INDEX(A:A,SMALL(IF(B$3:B$103="x",ROW($3:$103)),ROW(A40))) ->  | D42: =IF($A42<=Berechnen!$C$8,"x","") ->  | E42: =INDEX(A:A,SMALL(IF(D$3:D$103="x",ROW($3:$103)),ROW(A40))) ->  | F42: =IF($A42<=Berechnen!$C$10,"x","") -> x | G42: =INDEX(A:A,SMALL(IF(F$3:F$103="x",ROW($3:$103)),ROW(A40))) -> 39 | H42: =IF($A42<=Berechnen!$C$12,"x","") -> x | I42: =INDEX(A:A,SMALL(IF(H$3:H$103="x",ROW($3:$103)),ROW(A40))) -> 39 | J42: =IF($A42<=Berechnen!$C$14,"x","") -> x | K42: =INDEX(A:A,SMALL(IF(J$3:J$103="x",ROW($3:$103)),ROW(A40))) -> 39 | L42: =IF($A42<=Berechnen!$C$16,"x","") -> x | M42: =INDEX(A:A,SMALL(IF(L$3:L$103="x",ROW($3:$103)),ROW(A40))) -> 39
A43: 40 | B43: =IF($A43<=Berechnen!$C$6,"x","") ->  | C43: =INDEX(A:A,SMALL(IF(B$3:B$103="x",ROW($3:$103)),ROW(A41))) ->  | D43: =IF($A43<=Berechnen!$C$8,"x","") ->  | E43: =INDEX(A:A,SMALL(IF(D$3:D$103="x",ROW($3:$103)),ROW(A41))) ->  | F43: =IF($A43<=Berechnen!$C$10,"x","") -> x | G43: =INDEX(A:A,SMALL(IF(F$3:F$103="x",ROW($3:$103)),ROW(A41))) -> 40 | H43: =IF($A43<=Berechnen!$C$12,"x","") -> x | I43: =INDEX(A:A,SMALL(IF(H$3:H$103="x",ROW($3:$103)),ROW(A41))) -> 40 | J43: =IF($A43<=Berechnen!$C$14,"x","") -> x | K43: =INDEX(A:A,SMALL(IF(J$3:J$103="x",ROW($3:$103)),ROW(A41))) -> 40 | L43: =IF($A43<=Berechnen!$C$16,"x","") -> x | M43: =INDEX(A:A,SMALL(IF(L$3:L$103="x",ROW($3:$103)),ROW(A41))) -> 40
A44: 41 | B44: =IF($A44<=Berechnen!$C$6,"x","") ->  | C44: =INDEX(A:A,SMALL(IF(B$3:B$103="x",ROW($3:$103)),ROW(A42))) ->  | D44: =IF($A44<=Berechnen!$C$8,"x","") ->  | E44: =INDEX(A:A,SMALL(IF(D$3:D$103="x",ROW($3:$103)),ROW(A42))) ->  | F44: =IF($A44<=Berechnen!$C$10,"x","") -> x | G44: =INDEX(A:A,SMALL(IF(F$3:F$103="x",ROW($3:$103)),ROW(A42))) -> 41 | H44: =IF($A44<=Berechnen!$C$12,"x","") ->  | I44: =INDEX(A:A,SMALL(IF(H$3:H$103="x",ROW($3:$103)),ROW(A42))) ->  | J44: =IF($A44<=Berechnen!$C$14,"x","") ->  | K44: =INDEX(A:A,SMALL(IF(J$3:J$103="x",ROW($3:$103)),ROW(A42))) ->  | L44: =IF($A44<=Berechnen!$C$16,"x","") ->  | M44: =INDEX(A:A,SMALL(IF(L$3:L$103="x",ROW($3:$103)),ROW(A42))) -> 
A45: 42 | B45: =IF($A45<=Berechnen!$C$6,"x","") ->  | C45: =INDEX(A:A,SMALL(IF(B$3:B$103="x",ROW($3:$103)),ROW(A43))) ->  | D45: =IF($A45<=Berechnen!$C$8,"x","") ->  | E45: =INDEX(A:A,SMALL(IF(D$3:D$103="x",ROW($3:$103)),ROW(A43))) ->  | F45: =IF($A45<=Berechnen!$C$10,"x","") -> x | G45: =INDEX(A:A,SMALL(IF(F$3:F$103="x",ROW($3:$103)),ROW(A43))) -> 42 | H45: =IF($A45<=Berechnen!$C$12,"x","") ->  | I45: =INDEX(A:A,SMALL(IF(H$3:H$103="x",ROW($3:$103)),ROW(A43))) ->  | J45: =IF($A45<=Berechnen!$C$14,"x","") ->  | K45: =INDEX(A:A,SMALL(IF(J$3:J$103="x",ROW($3:$103)),ROW(A43))) ->  | L45: =IF($A45<=Berechnen!$C$16,"x","") ->  | M45: =INDEX(A:A,SMALL(IF(L$3:L$103="x",ROW($3:$103)),ROW(A43))) -> 
A46: 43 | B46: =IF($A46<=Berechnen!$C$6,"x","") ->  | C46: =INDEX(A:A,SMALL(IF(B$3:B$103="x",ROW($3:$103)),ROW(A44))) ->  | D46: =IF($A46<=Berechnen!$C$8,"x","") ->  | E46: =INDEX(A:A,SMALL(IF(D$3:D$103="x",ROW($3:$103)),ROW(A44))) ->  | F46: =IF($A46<=Berechnen!$C$10,"x","") -> x | G46: =INDEX(A:A,SMALL(IF(F$3:F$103="x",ROW($3:$103)),ROW(A44))) -> 43 | H46: =IF($A46<=Berechnen!$C$12,"x","") ->  | I46: =INDEX(A:A,SMALL(IF(H$3:H$103="x",ROW($3:$103)),ROW(A44))) ->  | J46: =IF($A46<=Berechnen!$C$14,"x","") ->  | K46: =INDEX(A:A,SMALL(IF(J$3:J$103="x",ROW($3:$103)),ROW(A44))) ->  | L46: =IF($A46<=Berechnen!$C$16,"x","") ->  | M46: =INDEX(A:A,SMALL(IF(L$3:L$103="x",ROW($3:$103)),ROW(A44))) -> 
A47: 44 | B47: =IF($A47<=Berechnen!$C$6,"x","") ->  | C47: =INDEX(A:A,SMALL(IF(B$3:B$103="x",ROW($3:$103)),ROW(A45))) ->  | D47: =IF($A47<=Berechnen!$C$8,"x","") ->  | E47: =INDEX(A:A,SMALL(IF(D$3:D$103="x",ROW($3:$103)),ROW(A45))) ->  | F47: =IF($A47<=Berechnen!$C$10,"x","") -> x | G47: =INDEX(A:A,SMALL(IF(F$3:F$103="x",ROW($3:$103)),ROW(A45))) -> 44 | H47: =IF($A47<=Berechnen!$C$12,"x","") ->  | I47: =INDEX(A:A,SMALL(IF(H$3:H$103="x",ROW($3:$103)),ROW(A45))) ->  | J47: =IF($A47<=Berechnen!$C$14,"x","") ->  | K47: =INDEX(A:A,SMALL(IF(J$3:J$103="x",ROW($3:$103)),ROW(A45))) ->  | L47: =IF($A47<=Berechnen!$C$16,"x","") ->  | M47: =INDEX(A:A,SMALL(IF(L$3:L$103="x",ROW($3:$103)),ROW(A45))) -> 
A48: 45 | B48: =IF($A48<=Berechnen!$C$6,"x","") ->  | C48: =INDEX(A:A,SMALL(IF(B$3:B$103="x",ROW($3:$103)),ROW(A46))) ->  | D48: =IF($A48<=Berechnen!$C$8,"x","") ->  | E48: =INDEX(A:A,SMALL(IF(D$3:D$103="x",ROW($3:$103)),ROW(A46))) ->  | F48: =IF($A48<=Berechnen!$C$10,"x","") -> x | G48: =INDEX(A:A,SMALL(IF(F$3:F$103="x",ROW($3:$103)),ROW(A46))) -> 45 | H48: =IF($A48<=Berechnen!$C$12,"x","") ->  | I48: =INDEX(A:A,SMALL(IF(H$3:H$103="x",ROW($3:$103)),ROW(A46))) ->  | J48: =IF($A48<=Berechnen!$C$14,"x","") ->  | K48: =INDEX(A:A,SMALL(IF(J$3:J$103="x",ROW($3:$103)),ROW(A46))) ->  | L48: =IF($A48<=Berechnen!$C$16,"x","") ->  | M48: =INDEX(A:A,SMALL(IF(L$3:L$103="x",ROW($3:$103)),ROW(A46))) -> 
A49: 46 | B49: =IF($A49<=Berechnen!$C$6,"x","") ->  | C49: =INDEX(A:A,SMALL(IF(B$3:B$103="x",ROW($3:$103)),ROW(A47))) ->  | D49: =IF($A49<=Berechnen!$C$8,"x","") ->  | E49: =INDEX(A:A,SMALL(IF(D$3:D$103="x",ROW($3:$103)),ROW(A47))) ->  | F49: =IF($A49<=Berechnen!$C$10,"x","") -> x | G49: =INDEX(A:A,SMALL(IF(F$3:F$103="x",ROW($3:$103)),ROW(A47))) -> 46 | H49: =IF($A49<=Berechnen!$C$12,"x","") ->  | I49: =INDEX(A:A,SMALL(IF(H$3:H$103="x",ROW($3:$103)),ROW(A47))) ->  | J49: =IF($A49<=Berechnen!$C$14,"x","") ->  | K49: =INDEX(A:A,SMALL(IF(J$3:J$103="x",ROW($3:$103)),ROW(A47))) ->  | L49: =IF($A49<=Berechnen!$C$16,"x","") ->  | M49: =INDEX(A:A,SMALL(IF(L$3:L$103="x",ROW($3:$103)),ROW(A47))) -> 
A50: 47 | B50: =IF($A50<=Berechnen!$C$6,"x","") ->  | C50: =INDEX(A:A,SMALL(IF(B$3:B$103="x",ROW($3:$103)),ROW(A48))) ->  | D50: =IF($A50<=Berechnen!$C$8,"x","") ->  | E50: =INDEX(A:A,SMALL(IF(D$3:D$103="x",ROW($3:$103)),ROW(A48))) ->  | F50: =IF($A50<=Berechnen!$C$10,"x","") -> x | G50: =INDEX(A:A,SMALL(IF(F$3:F$103="x",ROW($3:$103)),ROW(A48))) -> 47 | H50: =IF($A50<=Berechnen!$C$12,"x","") ->  | I50: =INDEX(A:A,SMALL(IF(H$3:H$103="x",ROW($3:$103)),ROW(A48))) ->  | J50: =IF($A50<=Berechnen!$C$14,"x","") ->  | K50: =INDEX(A:A,SMALL(IF(J$3:J$103="x",ROW($3:$103)),ROW(A48))) ->  | L50: =IF($A50<=Berechnen!$C$16,"x","") ->  | M50: =INDEX(A:A,SMALL(IF(L$3:L$103="x",ROW($3:$103)),ROW(A48))) -> 
A51: 48 | B51: =IF($A51<=Berechnen!$C$6,"x","") ->  | C51: =INDEX(A:A,SMALL(IF(B$3:B$103="x",ROW($3:$103)),ROW(A49))) ->  | D51: =IF($A51<=Berechnen!$C$8,"x","") ->  | E51: =INDEX(A:A,SMALL(IF(D$3:D$103="x",ROW($3:$103)),ROW(A49))) ->  | F51: =IF($A51<=Berechnen!$C$10,"x","") -> x | G51: =INDEX(A:A,SMALL(IF(F$3:F$103="x",ROW($3:$103)),ROW(A49))) -> 48 | H51: =IF($A51<=Berechnen!$C$12,"x","") ->  | I51: =INDEX(A:A,SMALL(IF(H$3:H$103="x",ROW($3:$103)),ROW(A49))) ->  | J51: =IF($A51<=Berechnen!$C$14,"x","") ->  | K51: =INDEX(A:A,SMALL(IF(J$3:J$103="x",ROW($3:$103)),ROW(A49))) ->  | L51: =IF($A51<=Berechnen!$C$16,"x","") ->  | M51: =INDEX(A:A,SMALL(IF(L$3:L$103="x",ROW($3:$103)),ROW(A49))) -> 
A52: 49 | B52: =IF($A52<=Berechnen!$C$6,"x","") ->  | C52: =INDEX(A:A,SMALL(IF(B$3:B$103="x",ROW($3:$103)),ROW(A50))) ->  | D52: =IF($A52<=Berechnen!$C$8,"x","") ->  | E52: =INDEX(A:A,SMALL(IF(D$3:D$103="x",ROW($3:$103)),ROW(A50))) ->  | F52: =IF($A52<=Berechnen!$C$10,"x","") ->  | G52: =INDEX(A:A,SMALL(IF(F$3:F$103="x",ROW($3:$103)),ROW(A50))) ->  | H52: =IF($A52<=Berechnen!$C$12,"x","") ->  | I52: =INDEX(A:A,SMALL(IF(H$3:H$103="x",ROW($3:$103)),ROW(A50))) ->  | J52: =IF($A52<=Berechnen!$C$14,"x","") ->  | K52: =INDEX(A:A,SMALL(IF(J$3:J$103="x",ROW($3:$103)),ROW(A50))) ->  | L52: =IF($A52<=Berechnen!$C$16,"x","") ->  | M52: =INDEX(A:A,SMALL(IF(L$3:L$103="x",ROW($3:$103)),ROW(A50))) -> 
A53: 50 | B53: =IF($A53<=Berechnen!$C$6,"x","") ->  | C53: =INDEX(A:A,SMALL(IF(B$3:B$103="x",ROW($3:$103)),ROW(A51))) ->  | D53: =IF($A53<=Berechnen!$C$8,"x","") ->  | E53: =INDEX(A:A,SMALL(IF(D$3:D$103="x",ROW($3:$103)),ROW(A51))) ->  | F53: =IF($A53<=Berechnen!$C$10,"x","") ->  | G53: =INDEX(A:A,SMALL(IF(F$3:F$103="x",ROW($3:$103)),ROW(A51))) ->  | H53: =IF($A53<=Berechnen!$C$12,"x","") ->  | I53: =INDEX(A:A,SMALL(IF(H$3:H$103="x",ROW($3:$103)),ROW(A51))) ->  | J53: =IF($A53<=Berechnen!$C$14,"x","") ->  | K53: =INDEX(A:A,SMALL(IF(J$3:J$103="x",ROW($3:$103)),ROW(A51))) ->  | L53: =IF($A53<=Berechnen!$C$16,"x","") ->  | M53: =INDEX(A:A,SMALL(IF(L$3:L$103="x",ROW($3:$103)),ROW(A51))) -> 
A54: 51 | B54: =IF($A54<=Berechnen!$C$6,"x","") ->  | C54: =INDEX(A:A,SMALL(IF(B$3:B$103="x",ROW($3:$103)),ROW(A52))) ->  | D54: =IF($A54<=Berechnen!$C$8,"x","") ->  | E54: =INDEX(A:A,SMALL(IF(D$3:D$103="x",ROW($3:$103)),ROW(A52))) ->  | F54: =IF($A54<=Berechnen!$C$10,"x","") ->  | G54: =INDEX(A:A,SMALL(IF(F$3:F$103="x",ROW($3:$103)),ROW(A52))) ->  | H54: =IF($A54<=Berechnen!$C$12,"x","") ->  | I54: =INDEX(A:A,SMALL(IF(H$3:H$103="x",ROW($3:$103)),ROW(A52))) ->  | J54: =IF($A54<=Berechnen!$C$14,"x","") ->  | K54: =INDEX(A:A,SMALL(IF(J$3:J$103="x",ROW($3:$103)),ROW(A52))) ->  | L54: =IF($A54<=Berechnen!$C$16,"x","") ->  | M54: =INDEX(A:A,SMALL(IF(L$3:L$103="x",ROW($3:$103)),ROW(A52))) -> 
A55: 52 | B55: =IF($A55<=Berechnen!$C$6,"x","") ->  | C55: =INDEX(A:A,SMALL(IF(B$3:B$103="x",ROW($3:$103)),ROW(A53))) ->  | D55: =IF($A55<=Berechnen!$C$8,"x","") ->  | E55: =INDEX(A:A,SMALL(IF(D$3:D$103="x",ROW($3:$103)),ROW(A53))) ->  | F55: =IF($A55<=Berechnen!$C$10,"x","") ->  | G55: =INDEX(A:A,SMALL(IF(F$3:F$103="x",ROW($3:$103)),ROW(A53))) ->  | H55: =IF($A55<=Berechnen!$C$12,"x","") ->  | I55: =INDEX(A:A,SMALL(IF(H$3:H$103="x",ROW($3:$103)),ROW(A53))) ->  | J55: =IF($A55<=Berechnen!$C$14,"x","") ->  | K55: =INDEX(A:A,SMALL(IF(J$3:J$103="x",ROW($3:$103)),ROW(A53))) ->  | L55: =IF($A55<=Berechnen!$C$16,"x","") ->  | M55: =INDEX(A:A,SMALL(IF(L$3:L$103="x",ROW($3:$103)),ROW(A53))) -> 
A56: 53 | B56: =IF($A56<=Berechnen!$C$6,"x","") ->  | C56: =INDEX(A:A,SMALL(IF(B$3:B$103="x",ROW($3:$103)),ROW(A54))) ->  | D56: =IF($A56<=Berechnen!$C$8,"x","") ->  | E56: =INDEX(A:A,SMALL(IF(D$3:D$103="x",ROW($3:$103)),ROW(A54))) ->  | F56: =IF($A56<=Berechnen!$C$10,"x","") ->  | G56: =INDEX(A:A,SMALL(IF(F$3:F$103="x",ROW($3:$103)),ROW(A54))) ->  | H56: =IF($A56<=Berechnen!$C$12,"x","") ->  | I56: =INDEX(A:A,SMALL(IF(H$3:H$103="x",ROW($3:$103)),ROW(A54))) ->  | J56: =IF($A56<=Berechnen!$C$14,"x","") ->  | K56: =INDEX(A:A,SMALL(IF(J$3:J$103="x",ROW($3:$103)),ROW(A54))) ->  | L56: =IF($A56<=Berechnen!$C$16,"x","") ->  | M56: =INDEX(A:A,SMALL(IF(L$3:L$103="x",ROW($3:$103)),ROW(A54))) -> 
A57: 54 | B57: =IF($A57<=Berechnen!$C$6,"x","") ->  | C57: =INDEX(A:A,SMALL(IF(B$3:B$103="x",ROW($3:$103)),ROW(A55))) ->  | D57: =IF($A57<=Berechnen!$C$8,"x","") ->  | E57: =INDEX(A:A,SMALL(IF(D$3:D$103="x",ROW($3:$103)),ROW(A55))) ->  | F57: =IF($A57<=Berechnen!$C$10,"x","") ->  | G57: =INDEX(A:A,SMALL(IF(F$3:F$103="x",ROW($3:$103)),ROW(A55))) ->  | H57: =IF($A57<=Berechnen!$C$12,"x","") ->  | I57: =INDEX(A:A,SMALL(IF(H$3:H$103="x",ROW($3:$103)),ROW(A55))) ->  | J57: =IF($A57<=Berechnen!$C$14,"x","") ->  | K57: =INDEX(A:A,SMALL(IF(J$3:J$103="x",ROW($3:$103)),ROW(A55))) ->  | L57: =IF($A57<=Berechnen!$C$16,"x","") ->  | M57: =INDEX(A:A,SMALL(IF(L$3:L$103="x",ROW($3:$103)),ROW(A55))) -> 
A58: 55 | B58: =IF($A58<=Berechnen!$C$6,"x","") ->  | C58: =INDEX(A:A,SMALL(IF(B$3:B$103="x",ROW($3:$103)),ROW(A56))) ->  | D58: =IF($A58<=Berechnen!$C$8,"x","") ->  | E58: =INDEX(A:A,SMALL(IF(D$3:D$103="x",ROW($3:$103)),ROW(A56))) ->  | F58: =IF($A58<=Berechnen!$C$10,"x","") ->  | G58: =INDEX(A:A,SMALL(IF(F$3:F$103="x",ROW($3:$103)),ROW(A56))) ->  | H58: =IF($A58<=Berechnen!$C$12,"x","") ->  | I58: =INDEX(A:A,SMALL(IF(H$3:H$103="x",ROW($3:$103)),ROW(A56))) ->  | J58: =IF($A58<=Berechnen!$C$14,"x","") ->  | K58: =INDEX(A:A,SMALL(IF(J$3:J$103="x",ROW($3:$103)),ROW(A56))) ->  | L58: =IF($A58<=Berechnen!$C$16,"x","") ->  | M58: =INDEX(A:A,SMALL(IF(L$3:L$103="x",ROW($3:$103)),ROW(A56))) -> 
A59: 56 | B59: =IF($A59<=Berechnen!$C$6,"x","") ->  | C59: =INDEX(A:A,SMALL(IF(B$3:B$103="x",ROW($3:$103)),ROW(A57))) ->  | D59: =IF($A59<=Berechnen!$C$8,"x","") ->  | E59: =INDEX(A:A,SMALL(IF(D$3:D$103="x",ROW($3:$103)),ROW(A57))) ->  | F59: =IF($A59<=Berechnen!$C$10,"x","") ->  | G59: =INDEX(A:A,SMALL(IF(F$3:F$103="x",ROW($3:$103)),ROW(A57))) ->  | H59: =IF($A59<=Berechnen!$C$12,"x","") ->  | I59: =INDEX(A:A,SMALL(IF(H$3:H$103="x",ROW($3:$103)),ROW(A57))) ->  | J59: =IF($A59<=Berechnen!$C$14,"x","") ->  | K59: =INDEX(A:A,SMALL(IF(J$3:J$103="x",ROW($3:$103)),ROW(A57))) ->  | L59: =IF($A59<=Berechnen!$C$16,"x","") ->  | M59: =INDEX(A:A,SMALL(IF(L$3:L$103="x",ROW($3:$103)),ROW(A57))) -> 
A60: 57 | B60: =IF($A60<=Berechnen!$C$6,"x","") ->  | C60: =INDEX(A:A,SMALL(IF(B$3:B$103="x",ROW($3:$103)),ROW(A58))) ->  | D60: =IF($A60<=Berechnen!$C$8,"x","") ->  | E60: =INDEX(A:A,SMALL(IF(D$3:D$103="x",ROW($3:$103)),ROW(A58))) ->  | F60: =IF($A60<=Berechnen!$C$10,"x","") ->  | G60: =INDEX(A:A,SMALL(IF(F$3:F$103="x",ROW($3:$103)),ROW(A58))) ->  | H60: =IF($A60<=Berechnen!$C$12,"x","") ->  | I60: =INDEX(A:A,SMALL(IF(H$3:H$103="x",ROW($3:$103)),ROW(A58))) ->  | J60: =IF($A60<=Berechnen!$C$14,"x","") ->  | K60: =INDEX(A:A,SMALL(IF(J$3:J$103="x",ROW($3:$103)),ROW(A58))) ->  | L60: =IF($A60<=Berechnen!$C$16,"x","") ->  | M60: =INDEX(A:A,SMALL(IF(L$3:L$103="x",ROW($3:$103)),ROW(A58))) -> 
A61: 58 | B61: =IF($A61<=Berechnen!$C$6,"x","") ->  | C61: =INDEX(A:A,SMALL(IF(B$3:B$103="x",ROW($3:$103)),ROW(A59))) ->  | D61: =IF($A61<=Berechnen!$C$8,"x","") ->  | E61: =INDEX(A:A,SMALL(IF(D$3:D$103="x",ROW($3:$103)),ROW(A59))) ->  | F61: =IF($A61<=Berechnen!$C$10,"x","") ->  | G61: =INDEX(A:A,SMALL(IF(F$3:F$103="x",ROW($3:$103)),ROW(A59))) ->  | H61: =IF($A61<=Berechnen!$C$12,"x","") ->  | I61: =INDEX(A:A,SMALL(IF(H$3:H$103="x",ROW($3:$103)),ROW(A59))) ->  | J61: =IF($A61<=Berechnen!$C$14,"x","") ->  | K61: =INDEX(A:A,SMALL(IF(J$3:J$103="x",ROW($3:$103)),ROW(A59))) ->  | L61: =IF($A61<=Berechnen!$C$16,"x","") ->  | M61: =INDEX(A:A,SMALL(IF(L$3:L$103="x",ROW($3:$103)),ROW(A59))) -> 
A62: 59 | B62: =IF($A62<=Berechnen!$C$6,"x","") ->  | C62: =INDEX(A:A,SMALL(IF(B$3:B$103="x",ROW($3:$103)),ROW(A60))) ->  | D62: =IF($A62<=Berechnen!$C$8,"x","") ->  | E62: =INDEX(A:A,SMALL(IF(D$3:D$103="x",ROW($3:$103)),ROW(A60))) ->  | F62: =IF($A62<=Berechnen!$C$10,"x","") ->  | G62: =INDEX(A:A,SMALL(IF(F$3:F$103="x",ROW($3:$103)),ROW(A60))) ->  | H62: =IF($A62<=Berechnen!$C$12,"x","") ->  | I62: =INDEX(A:A,SMALL(IF(H$3:H$103="x",ROW($3:$103)),ROW(A60))) ->  | J62: =IF($A62<=Berechnen!$C$14,"x","") ->  | K62: =INDEX(A:A,SMALL(IF(J$3:J$103="x",ROW($3:$103)),ROW(A60))) ->  | L62: =IF($A62<=Berechnen!$C$16,"x","") ->  | M62: =INDEX(A:A,SMALL(IF(L$3:L$103="x",ROW($3:$103)),ROW(A60))) -> 
A63: 60 | B63: =IF($A63<=Berechnen!$C$6,"x","") ->  | C63: =INDEX(A:A,SMALL(IF(B$3:B$103="x",ROW($3:$103)),ROW(A61))) ->  | D63: =IF($A63<=Berechnen!$C$8,"x","") ->  | E63: =INDEX(A:A,SMALL(IF(D$3:D$103="x",ROW($3:$103)),ROW(A61))) ->  | F63: =IF($A63<=Berechnen!$C$10,"x","") ->  | G63: =INDEX(A:A,SMALL(IF(F$3:F$103="x",ROW($3:$103)),ROW(A61))) ->  | H63: =IF($A63<=Berechnen!$C$12,"x","") ->  | I63: =INDEX(A:A,SMALL(IF(H$3:H$103="x",ROW($3:$103)),ROW(A61))) ->  | J63: =IF($A63<=Berechnen!$C$14,"x","") ->  | K63: =INDEX(A:A,SMALL(IF(J$3:J$103="x",ROW($3:$103)),ROW(A61))) ->  | L63: =IF($A63<=Berechnen!$C$16,"x","") ->  | M63: =INDEX(A:A,SMALL(IF(L$3:L$103="x",ROW($3:$103)),ROW(A61))) -> 
A64: 61 | B64: =IF($A64<=Berechnen!$C$6,"x","") ->  | C64: =INDEX(A:A,SMALL(IF(B$3:B$103="x",ROW($3:$103)),ROW(A62))) ->  | D64: =IF($A64<=Berechnen!$C$8,"x","") ->  | E64: =INDEX(A:A,SMALL(IF(D$3:D$103="x",ROW($3:$103)),ROW(A62))) ->  | F64: =IF($A64<=Berechnen!$C$10,"x","") ->  | G64: =INDEX(A:A,SMALL(IF(F$3:F$103="x",ROW($3:$103)),ROW(A62))) ->  | H64: =IF($A64<=Berechnen!$C$12,"x","") ->  | I64: =INDEX(A:A,SMALL(IF(H$3:H$103="x",ROW($3:$103)),ROW(A62))) ->  | J64: =IF($A64<=Berechnen!$C$14,"x","") ->  | K64: =INDEX(A:A,SMALL(IF(J$3:J$103="x",ROW($3:$103)),ROW(A62))) ->  | L64: =IF($A64<=Berechnen!$C$16,"x","") ->  | M64: =INDEX(A:A,SMALL(IF(L$3:L$103="x",ROW($3:$103)),ROW(A62))) -> 
A65: 62 | B65: =IF($A65<=Berechnen!$C$6,"x","") ->  | C65: =INDEX(A:A,SMALL(IF(B$3:B$103="x",ROW($3:$103)),ROW(A63))) ->  | D65: =IF($A65<=Berechnen!$C$8,"x","") ->  | E65: =INDEX(A:A,SMALL(IF(D$3:D$103="x",ROW($3:$103)),ROW(A63))) ->  | F65: =IF($A65<=Berechnen!$C$10,"x","") ->  | G65: =INDEX(A:A,SMALL(IF(F$3:F$103="x",ROW($3:$103)),ROW(A63))) ->  | H65: =IF($A65<=Berechnen!$C$12,"x","") ->  | I65: =INDEX(A:A,SMALL(IF(H$3:H$103="x",ROW($3:$103)),ROW(A63))) ->  | J65: =IF($A65<=Berechnen!$C$14,"x","") ->  | K65: =INDEX(A:A,SMALL(IF(J$3:J$103="x",ROW($3:$103)),ROW(A63))) ->  | L65: =IF($A65<=Berechnen!$C$16,"x","") ->  | M65: =INDEX(A:A,SMALL(IF(L$3:L$103="x",ROW($3:$103)),ROW(A63))) -> 
A66: 63 | B66: =IF($A66<=Berechnen!$C$6,"x","") ->  | C66: =INDEX(A:A,SMALL(IF(B$3:B$103="x",ROW($3:$103)),ROW(A64))) ->  | D66: =IF($A66<=Berechnen!$C$8,"x","") ->  | E66: =INDEX(A:A,SMALL(IF(D$3:D$103="x",ROW($3:$103)),ROW(A64))) ->  | F66: =IF($A66<=Berechnen!$C$10,"x","") ->  | G66: =INDEX(A:A,SMALL(IF(F$3:F$103="x",ROW($3:$103)),ROW(A64))) ->  | H66: =IF($A66<=Berechnen!$C$12,"x","") ->  | I66: =INDEX(A:A,SMALL(IF(H$3:H$103="x",ROW($3:$103)),ROW(A64))) ->  | J66: =IF($A66<=Berechnen!$C$14,"x","") ->  | K66: =INDEX(A:A,SMALL(IF(J$3:J$103="x",ROW($3:$103)),ROW(A64))) ->  | L66: =IF($A66<=Berechnen!$C$16,"x","") ->  | M66: =INDEX(A:A,SMALL(IF(L$3:L$103="x",ROW($3:$103)),ROW(A64))) -> 
A67: 64 | B67: =IF($A67<=Berechnen!$C$6,"x","") ->  | C67: =INDEX(A:A,SMALL(IF(B$3:B$103="x",ROW($3:$103)),ROW(A65))) ->  | D67: =IF($A67<=Berechnen!$C$8,"x","") ->  | E67: =INDEX(A:A,SMALL(IF(D$3:D$103="x",ROW($3:$103)),ROW(A65))) ->  | F67: =IF($A67<=Berechnen!$C$10,"x","") ->  | G67: =INDEX(A:A,SMALL(IF(F$3:F$103="x",ROW($3:$103)),ROW(A65))) ->  | H67: =IF($A67<=Berechnen!$C$12,"x","") ->  | I67: =INDEX(A:A,SMALL(IF(H$3:H$103="x",ROW($3:$103)),ROW(A65))) ->  | J67: =IF($A67<=Berechnen!$C$14,"x","") ->  | K67: =INDEX(A:A,SMALL(IF(J$3:J$103="x",ROW($3:$103)),ROW(A65))) ->  | L67: =IF($A67<=Berechnen!$C$16,"x","") ->  | M67: =INDEX(A:A,SMALL(IF(L$3:L$103="x",ROW($3:$103)),ROW(A65))) -> 
A68: 65 | B68: =IF($A68<=Berechnen!$C$6,"x","") ->  | C68: =INDEX(A:A,SMALL(IF(B$3:B$103="x",ROW($3:$103)),ROW(A66))) ->  | D68: =IF($A68<=Berechnen!$C$8,"x","") ->  | E68: =INDEX(A:A,SMALL(IF(D$3:D$103="x",ROW($3:$103)),ROW(A66))) ->  | F68: =IF($A68<=Berechnen!$C$10,"x","") ->  | G68: =INDEX(A:A,SMALL(IF(F$3:F$103="x",ROW($3:$103)),ROW(A66))) ->  | H68: =IF($A68<=Berechnen!$C$12,"x","") ->  | I68: =INDEX(A:A,SMALL(IF(H$3:H$103="x",ROW($3:$103)),ROW(A66))) ->  | J68: =IF($A68<=Berechnen!$C$14,"x","") ->  | K68: =INDEX(A:A,SMALL(IF(J$3:J$103="x",ROW($3:$103)),ROW(A66))) ->  | L68: =IF($A68<=Berechnen!$C$16,"x","") ->  | M68: =INDEX(A:A,SMALL(IF(L$3:L$103="x",ROW($3:$103)),ROW(A66))) -> 
A69: 66 | B69: =IF($A69<=Berechnen!$C$6,"x","") ->  | C69: =INDEX(A:A,SMALL(IF(B$3:B$103="x",ROW($3:$103)),ROW(A67))) ->  | D69: =IF($A69<=Berechnen!$C$8,"x","") ->  | E69: =INDEX(A:A,SMALL(IF(D$3:D$103="x",ROW($3:$103)),ROW(A67))) ->  | F69: =IF($A69<=Berechnen!$C$10,"x","") ->  | G69: =INDEX(A:A,SMALL(IF(F$3:F$103="x",ROW($3:$103)),ROW(A67))) ->  | H69: =IF($A69<=Berechnen!$C$12,"x","") ->  | I69: =INDEX(A:A,SMALL(IF(H$3:H$103="x",ROW($3:$103)),ROW(A67))) ->  | J69: =IF($A69<=Berechnen!$C$14,"x","") ->  | K69: =INDEX(A:A,SMALL(IF(J$3:J$103="x",ROW($3:$103)),ROW(A67))) ->  | L69: =IF($A69<=Berechnen!$C$16,"x","") ->  | M69: =INDEX(A:A,SMALL(IF(L$3:L$103="x",ROW($3:$103)),ROW(A67))) -> 
A70: 67 | B70: =IF($A70<=Berechnen!$C$6,"x","") ->  | C70: =INDEX(A:A,SMALL(IF(B$3:B$103="x",ROW($3:$103)),ROW(A68))) ->  | D70: =IF($A70<=Berechnen!$C$8,"x","") ->  | E70: =INDEX(A:A,SMALL(IF(D$3:D$103="x",ROW($3:$103)),ROW(A68))) ->  | F70: =IF($A70<=Berechnen!$C$10,"x","") ->  | G70: =INDEX(A:A,SMALL(IF(F$3:F$103="x",ROW($3:$103)),ROW(A68))) ->  | H70: =IF($A70<=Berechnen!$C$12,"x","") ->  | I70: =INDEX(A:A,SMALL(IF(H$3:H$103="x",ROW($3:$103)),ROW(A68))) ->  | J70: =IF($A70<=Berechnen!$C$14,"x","") ->  | K70: =INDEX(A:A,SMALL(IF(J$3:J$103="x",ROW($3:$103)),ROW(A68))) ->  | L70: =IF($A70<=Berechnen!$C$16,"x","") ->  | M70: =INDEX(A:A,SMALL(IF(L$3:L$103="x",ROW($3:$103)),ROW(A68))) -> 
A71: 68 | B71: =IF($A71<=Berechnen!$C$6,"x","") ->  | C71: =INDEX(A:A,SMALL(IF(B$3:B$103="x",ROW($3:$103)),ROW(A69))) ->  | D71: =IF($A71<=Berechnen!$C$8,"x","") ->  | E71: =INDEX(A:A,SMALL(IF(D$3:D$103="x",ROW($3:$103)),ROW(A69))) ->  | F71: =IF($A71<=Berechnen!$C$10,"x","") ->  | G71: =INDEX(A:A,SMALL(IF(F$3:F$103="x",ROW($3:$103)),ROW(A69))) ->  | H71: =IF($A71<=Berechnen!$C$12,"x","") ->  | I71: =INDEX(A:A,SMALL(IF(H$3:H$103="x",ROW($3:$103)),ROW(A69))) ->  | J71: =IF($A71<=Berechnen!$C$14,"x","") ->  | K71: =INDEX(A:A,SMALL(IF(J$3:J$103="x",ROW($3:$103)),ROW(A69))) ->  | L71: =IF($A71<=Berechnen!$C$16,"x","") ->  | M71: =INDEX(A:A,SMALL(IF(L$3:L$103="x",ROW($3:$103)),ROW(A69))) -> 
A72: 69 | B72: =IF($A72<=Berechnen!$C$6,"x","") ->  | C72: =INDEX(A:A,SMALL(IF(B$3:B$103="x",ROW($3:$103)),ROW(A70))) ->  | D72: =IF($A72<=Berechnen!$C$8,"x","") ->  | E72: =INDEX(A:A,SMALL(IF(D$3:D$103="x",ROW($3:$103)),ROW(A70))) ->  | F72: =IF($A72<=Berechnen!$C$10,"x","") ->  | G72: =INDEX(A:A,SMALL(IF(F$3:F$103="x",ROW($3:$103)),ROW(A70))) ->  | H72: =IF($A72<=Berechnen!$C$12,"x","") ->  | I72: =INDEX(A:A,SMALL(IF(H$3:H$103="x",ROW($3:$103)),ROW(A70))) ->  | J72: =IF($A72<=Berechnen!$C$14,"x","") ->  | K72: =INDEX(A:A,SMALL(IF(J$3:J$103="x",ROW($3:$103)),ROW(A70))) ->  | L72: =IF($A72<=Berechnen!$C$16,"x","") ->  | M72: =INDEX(A:A,SMALL(IF(L$3:L$103="x",ROW($3:$103)),ROW(A70))) -> 
A73: 70 | B73: =IF($A73<=Berechnen!$C$6,"x","") ->  | C73: =INDEX(A:A,SMALL(IF(B$3:B$103="x",ROW($3:$103)),ROW(A71))) ->  | D73: =IF($A73<=Berechnen!$C$8,"x","") ->  | E73: =INDEX(A:A,SMALL(IF(D$3:D$103="x",ROW($3:$103)),ROW(A71))) ->  | F73: =IF($A73<=Berechnen!$C$10,"x","") ->  | G73: =INDEX(A:A,SMALL(IF(F$3:F$103="x",ROW($3:$103)),ROW(A71))) ->  | H73: =IF($A73<=Berechnen!$C$12,"x","") ->  | I73: =INDEX(A:A,SMALL(IF(H$3:H$103="x",ROW($3:$103)),ROW(A71))) ->  | J73: =IF($A73<=Berechnen!$C$14,"x","") ->  | K73: =INDEX(A:A,SMALL(IF(J$3:J$103="x",ROW($3:$103)),ROW(A71))) ->  | L73: =IF($A73<=Berechnen!$C$16,"x","") ->  | M73: =INDEX(A:A,SMALL(IF(L$3:L$103="x",ROW($3:$103)),ROW(A71))) -> 
A74: 71 | B74: =IF($A74<=Berechnen!$C$6,"x","") ->  | C74: =INDEX(A:A,SMALL(IF(B$3:B$103="x",ROW($3:$103)),ROW(A72))) ->  | D74: =IF($A74<=Berechnen!$C$8,"x","") ->  | E74: =INDEX(A:A,SMALL(IF(D$3:D$103="x",ROW($3:$103)),ROW(A72))) ->  | F74: =IF($A74<=Berechnen!$C$10,"x","") ->  | G74: =INDEX(A:A,SMALL(IF(F$3:F$103="x",ROW($3:$103)),ROW(A72))) ->  | H74: =IF($A74<=Berechnen!$C$12,"x","") ->  | I74: =INDEX(A:A,SMALL(IF(H$3:H$103="x",ROW($3:$103)),ROW(A72))) ->  | J74: =IF($A74<=Berechnen!$C$14,"x","") ->  | K74: =INDEX(A:A,SMALL(IF(J$3:J$103="x",ROW($3:$103)),ROW(A72))) ->  | L74: =IF($A74<=Berechnen!$C$16,"x","") ->  | M74: =INDEX(A:A,SMALL(IF(L$3:L$103="x",ROW($3:$103)),ROW(A72))) -> 
A75: 72 | B75: =IF($A75<=Berechnen!$C$6,"x","") ->  | C75: =INDEX(A:A,SMALL(IF(B$3:B$103="x",ROW($3:$103)),ROW(A73))) ->  | D75: =IF($A75<=Berechnen!$C$8,"x","") ->  | E75: =INDEX(A:A,SMALL(IF(D$3:D$103="x",ROW($3:$103)),ROW(A73))) ->  | F75: =IF($A75<=Berechnen!$C$10,"x","") ->  | G75: =INDEX(A:A,SMALL(IF(F$3:F$103="x",ROW($3:$103)),ROW(A73))) ->  | H75: =IF($A75<=Berechnen!$C$12,"x","") ->  | I75: =INDEX(A:A,SMALL(IF(H$3:H$103="x",ROW($3:$103)),ROW(A73))) ->  | J75: =IF($A75<=Berechnen!$C$14,"x","") ->  | K75: =INDEX(A:A,SMALL(IF(J$3:J$103="x",ROW($3:$103)),ROW(A73))) ->  | L75: =IF($A75<=Berechnen!$C$16,"x","") ->  | M75: =INDEX(A:A,SMALL(IF(L$3:L$103="x",ROW($3:$103)),ROW(A73))) -> 
A76: 73 | B76: =IF($A76<=Berechnen!$C$6,"x","") ->  | C76: =INDEX(A:A,SMALL(IF(B$3:B$103="x",ROW($3:$103)),ROW(A74))) ->  | D76: =IF($A76<=Berechnen!$C$8,"x","") ->  | E76: =INDEX(A:A,SMALL(IF(D$3:D$103="x",ROW($3:$103)),ROW(A74))) ->  | F76: =IF($A76<=Berechnen!$C$10,"x","") ->  | G76: =INDEX(A:A,SMALL(IF(F$3:F$103="x",ROW($3:$103)),ROW(A74))) ->  | H76: =IF($A76<=Berechnen!$C$12,"x","") ->  | I76: =INDEX(A:A,SMALL(IF(H$3:H$103="x",ROW($3:$103)),ROW(A74))) ->  | J76: =IF($A76<=Berechnen!$C$14,"x","") ->  | K76: =INDEX(A:A,SMALL(IF(J$3:J$103="x",ROW($3:$103)),ROW(A74))) ->  | L76: =IF($A76<=Berechnen!$C$16,"x","") ->  | M76: =INDEX(A:A,SMALL(IF(L$3:L$103="x",ROW($3:$103)),ROW(A74))) -> 
A77: 74 | B77: =IF($A77<=Berechnen!$C$6,"x","") ->  | C77: =INDEX(A:A,SMALL(IF(B$3:B$103="x",ROW($3:$103)),ROW(A75))) ->  | D77: =IF($A77<=Berechnen!$C$8,"x","") ->  | E77: =INDEX(A:A,SMALL(IF(D$3:D$103="x",ROW($3:$103)),ROW(A75))) ->  | F77: =IF($A77<=Berechnen!$C$10,"x","") ->  | G77: =INDEX(A:A,SMALL(IF(F$3:F$103="x",ROW($3:$103)),ROW(A75))) ->  | H77: =IF($A77<=Berechnen!$C$12,"x","") ->  | I77: =INDEX(A:A,SMALL(IF(H$3:H$103="x",ROW($3:$103)),ROW(A75))) ->  | J77: =IF($A77<=Berechnen!$C$14,"x","") ->  | K77: =INDEX(A:A,SMALL(IF(J$3:J$103="x",ROW($3:$103)),ROW(A75))) ->  | L77: =IF($A77<=Berechnen!$C$16,"x","") ->  | M77: =INDEX(A:A,SMALL(IF(L$3:L$103="x",ROW($3:$103)),ROW(A75))) -> 
A78: 75 | B78: =IF($A78<=Berechnen!$C$6,"x","") ->  | C78: =INDEX(A:A,SMALL(IF(B$3:B$103="x",ROW($3:$103)),ROW(A76))) ->  | D78: =IF($A78<=Berechnen!$C$8,"x","") ->  | E78: =INDEX(A:A,SMALL(IF(D$3:D$103="x",ROW($3:$103)),ROW(A76))) ->  | F78: =IF($A78<=Berechnen!$C$10,"x","") ->  | G78: =INDEX(A:A,SMALL(IF(F$3:F$103="x",ROW($3:$103)),ROW(A76))) ->  | H78: =IF($A78<=Berechnen!$C$12,"x","") ->  | I78: =INDEX(A:A,SMALL(IF(H$3:H$103="x",ROW($3:$103)),ROW(A76))) ->  | J78: =IF($A78<=Berechnen!$C$14,"x","") ->  | K78: =INDEX(A:A,SMALL(IF(J$3:J$103="x",ROW($3:$103)),ROW(A76))) ->  | L78: =IF($A78<=Berechnen!$C$16,"x","") ->  | M78: =INDEX(A:A,SMALL(IF(L$3:L$103="x",ROW($3:$103)),ROW(A76))) -> 
A79: 76 | B79: =IF($A79<=Berechnen!$C$6,"x","") ->  | C79: =INDEX(A:A,SMALL(IF(B$3:B$103="x",ROW($3:$103)),ROW(A77))) ->  | D79: =IF($A79<=Berechnen!$C$8,"x","") ->  | E79: =INDEX(A:A,SMALL(IF(D$3:D$103="x",ROW($3:$103)),ROW(A77))) ->  | F79: =IF($A79<=Berechnen!$C$10,"x","") ->  | G79: =INDEX(A:A,SMALL(IF(F$3:F$103="x",ROW($3:$103)),ROW(A77))) ->  | H79: =IF($A79<=Berechnen!$C$12,"x","") ->  | I79: =INDEX(A:A,SMALL(IF(H$3:H$103="x",ROW($3:$103)),ROW(A77))) ->  | J79: =IF($A79<=Berechnen!$C$14,"x","") ->  | K79: =INDEX(A:A,SMALL(IF(J$3:J$103="x",ROW($3:$103)),ROW(A77))) ->  | L79: =IF($A79<=Berechnen!$C$16,"x","") ->  | M79: =INDEX(A:A,SMALL(IF(L$3:L$103="x",ROW($3:$103)),ROW(A77))) -> 
A80: 77 | B80: =IF($A80<=Berechnen!$C$6,"x","") ->  | C80: =INDEX(A:A,SMALL(IF(B$3:B$103="x",ROW($3:$103)),ROW(A78))) ->  | D80: =IF($A80<=Berechnen!$C$8,"x","") ->  | E80: =INDEX(A:A,SMALL(IF(D$3:D$103="x",ROW($3:$103)),ROW(A78))) ->  | F80: =IF($A80<=Berechnen!$C$10,"x","") ->  | G80: =INDEX(A:A,SMALL(IF(F$3:F$103="x",ROW($3:$103)),ROW(A78))) ->  | H80: =IF($A80<=Berechnen!$C$12,"x","") ->  | I80: =INDEX(A:A,SMALL(IF(H$3:H$103="x",ROW($3:$103)),ROW(A78))) ->  | J80: =IF($A80<=Berechnen!$C$14,"x","") ->  | K80: =INDEX(A:A,SMALL(IF(J$3:J$103="x",ROW($3:$103)),ROW(A78))) ->  | L80: =IF($A80<=Berechnen!$C$16,"x","") ->  | M80: =INDEX(A:A,SMALL(IF(L$3:L$103="x",ROW($3:$103)),ROW(A78))) -> 
A81: 78 | B81: =IF($A81<=Berechnen!$C$6,"x","") ->  | C81: =INDEX(A:A,SMALL(IF(B$3:B$103="x",ROW($3:$103)),ROW(A79))) ->  | D81: =IF($A81<=Berechnen!$C$8,"x","") ->  | E81: =INDEX(A:A,SMALL(IF(D$3:D$103="x",ROW($3:$103)),ROW(A79))) ->  | F81: =IF($A81<=Berechnen!$C$10,"x","") ->  | G81: =INDEX(A:A,SMALL(IF(F$3:F$103="x",ROW($3:$103)),ROW(A79))) ->  | H81: =IF($A81<=Berechnen!$C$12,"x","") ->  | I81: =INDEX(A:A,SMALL(IF(H$3:H$103="x",ROW($3:$103)),ROW(A79))) ->  | J81: =IF($A81<=Berechnen!$C$14,"x","") ->  | K81: =INDEX(A:A,SMALL(IF(J$3:J$103="x",ROW($3:$103)),ROW(A79))) ->  | L81: =IF($A81<=Berechnen!$C$16,"x","") ->  | M81: =INDEX(A:A,SMALL(IF(L$3:L$103="x",ROW($3:$103)),ROW(A79))) -> 
A82: 79 | B82: =IF($A82<=Berechnen!$C$6,"x","") ->  | C82: =INDEX(A:A,SMALL(IF(B$3:B$103="x",ROW($3:$103)),ROW(A80))) ->  | D82: =IF($A82<=Berechnen!$C$8,"x","") ->  | E82: =INDEX(A:A,SMALL(IF(D$3:D$103="x",ROW($3:$103)),ROW(A80))) ->  | F82: =IF($A82<=Berechnen!$C$10,"x","") ->  | G82: =INDEX(A:A,SMALL(IF(F$3:F$103="x",ROW($3:$103)),ROW(A80))) ->  | H82: =IF($A82<=Berechnen!$C$12,"x","") ->  | I82: =INDEX(A:A,SMALL(IF(H$3:H$103="x",ROW($3:$103)),ROW(A80))) ->  | J82: =IF($A82<=Berechnen!$C$14,"x","") ->  | K82: =INDEX(A:A,SMALL(IF(J$3:J$103="x",ROW($3:$103)),ROW(A80))) ->  | L82: =IF($A82<=Berechnen!$C$16,"x","") ->  | M82: =INDEX(A:A,SMALL(IF(L$3:L$103="x",ROW($3:$103)),ROW(A80))) -> 
A83: 80 | B83: =IF($A83<=Berechnen!$C$6,"x","") ->  | C83: =INDEX(A:A,SMALL(IF(B$3:B$103="x",ROW($3:$103)),ROW(A81))) ->  | D83: =IF($A83<=Berechnen!$C$8,"x","") ->  | E83: =INDEX(A:A,SMALL(IF(D$3:D$103="x",ROW($3:$103)),ROW(A81))) ->  | F83: =IF($A83<=Berechnen!$C$10,"x","") ->  | G83: =INDEX(A:A,SMALL(IF(F$3:F$103="x",ROW($3:$103)),ROW(A81))) ->  | H83: =IF($A83<=Berechnen!$C$12,"x","") ->  | I83: =INDEX(A:A,SMALL(IF(H$3:H$103="x",ROW($3:$103)),ROW(A81))) ->  | J83: =IF($A83<=Berechnen!$C$14,"x","") ->  | K83: =INDEX(A:A,SMALL(IF(J$3:J$103="x",ROW($3:$103)),ROW(A81))) ->  | L83: =IF($A83<=Berechnen!$C$16,"x","") ->  | M83: =INDEX(A:A,SMALL(IF(L$3:L$103="x",ROW($3:$103)),ROW(A81))) -> 
A84: 81 | B84: =IF($A84<=Berechnen!$C$6,"x","") ->  | C84: =INDEX(A:A,SMALL(IF(B$3:B$103="x",ROW($3:$103)),ROW(A82))) ->  | D84: =IF($A84<=Berechnen!$C$8,"x","") ->  | E84: =INDEX(A:A,SMALL(IF(D$3:D$103="x",ROW($3:$103)),ROW(A82))) ->  | F84: =IF($A84<=Berechnen!$C$10,"x","") ->  | G84: =INDEX(A:A,SMALL(IF(F$3:F$103="x",ROW($3:$103)),ROW(A82))) ->  | H84: =IF($A84<=Berechnen!$C$12,"x","") ->  | I84: =INDEX(A:A,SMALL(IF(H$3:H$103="x",ROW($3:$103)),ROW(A82))) ->  | J84: =IF($A84<=Berechnen!$C$14,"x","") ->  | K84: =INDEX(A:A,SMALL(IF(J$3:J$103="x",ROW($3:$103)),ROW(A82))) ->  | L84: =IF($A84<=Berechnen!$C$16,"x","") ->  | M84: =INDEX(A:A,SMALL(IF(L$3:L$103="x",ROW($3:$103)),ROW(A82))) -> 
A85: 82 | B85: =IF($A85<=Berechnen!$C$6,"x","") ->  | C85: =INDEX(A:A,SMALL(IF(B$3:B$103="x",ROW($3:$103)),ROW(A83))) ->  | D85: =IF($A85<=Berechnen!$C$8,"x","") ->  | E85: =INDEX(A:A,SMALL(IF(D$3:D$103="x",ROW($3:$103)),ROW(A83))) ->  | F85: =IF($A85<=Berechnen!$C$10,"x","") ->  | G85: =INDEX(A:A,SMALL(IF(F$3:F$103="x",ROW($3:$103)),ROW(A83))) ->  | H85: =IF($A85<=Berechnen!$C$12,"x","") ->  | I85: =INDEX(A:A,SMALL(IF(H$3:H$103="x",ROW($3:$103)),ROW(A83))) ->  | J85: =IF($A85<=Berechnen!$C$14,"x","") ->  | K85: =INDEX(A:A,SMALL(IF(J$3:J$103="x",ROW($3:$103)),ROW(A83))) ->  | L85: =IF($A85<=Berechnen!$C$16,"x","") ->  | M85: =INDEX(A:A,SMALL(IF(L$3:L$103="x",ROW($3:$103)),ROW(A83))) -> 
A86: 83 | B86: =IF($A86<=Berechnen!$C$6,"x","") ->  | C86: =INDEX(A:A,SMALL(IF(B$3:B$103="x",ROW($3:$103)),ROW(A84))) ->  | D86: =IF($A86<=Berechnen!$C$8,"x","") ->  | E86: =INDEX(A:A,SMALL(IF(D$3:D$103="x",ROW($3:$103)),ROW(A84))) ->  | F86: =IF($A86<=Berechnen!$C$10,"x","") ->  | G86: =INDEX(A:A,SMALL(IF(F$3:F$103="x",ROW($3:$103)),ROW(A84))) ->  | H86: =IF($A86<=Berechnen!$C$12,"x","") ->  | I86: =INDEX(A:A,SMALL(IF(H$3:H$103="x",ROW($3:$103)),ROW(A84))) ->  | J86: =IF($A86<=Berechnen!$C$14,"x","") ->  | K86: =INDEX(A:A,SMALL(IF(J$3:J$103="x",ROW($3:$103)),ROW(A84))) ->  | L86: =IF($A86<=Berechnen!$C$16,"x","") ->  | M86: =INDEX(A:A,SMALL(IF(L$3:L$103="x",ROW($3:$103)),ROW(A84))) -> 
A87: 84 | B87: =IF($A87<=Berechnen!$C$6,"x","") ->  | C87: =INDEX(A:A,SMALL(IF(B$3:B$103="x",ROW($3:$103)),ROW(A85))) ->  | D87: =IF($A87<=Berechnen!$C$8,"x","") ->  | E87: =INDEX(A:A,SMALL(IF(D$3:D$103="x",ROW($3:$103)),ROW(A85))) ->  | F87: =IF($A87<=Berechnen!$C$10,"x","") ->  | G87: =INDEX(A:A,SMALL(IF(F$3:F$103="x",ROW($3:$103)),ROW(A85))) ->  | H87: =IF($A87<=Berechnen!$C$12,"x","") ->  | I87: =INDEX(A:A,SMALL(IF(H$3:H$103="x",ROW($3:$103)),ROW(A85))) ->  | J87: =IF($A87<=Berechnen!$C$14,"x","") ->  | K87: =INDEX(A:A,SMALL(IF(J$3:J$103="x",ROW($3:$103)),ROW(A85))) ->  | L87: =IF($A87<=Berechnen!$C$16,"x","") ->  | M87: =INDEX(A:A,SMALL(IF(L$3:L$103="x",ROW($3:$103)),ROW(A85))) -> 
A88: 85 | B88: =IF($A88<=Berechnen!$C$6,"x","") ->  | C88: =INDEX(A:A,SMALL(IF(B$3:B$103="x",ROW($3:$103)),ROW(A86))) ->  | D88: =IF($A88<=Berechnen!$C$8,"x","") ->  | E88: =INDEX(A:A,SMALL(IF(D$3:D$103="x",ROW($3:$103)),ROW(A86))) ->  | F88: =IF($A88<=Berechnen!$C$10,"x","") ->  | G88: =INDEX(A:A,SMALL(IF(F$3:F$103="x",ROW($3:$103)),ROW(A86))) ->  | H88: =IF($A88<=Berechnen!$C$12,"x","") ->  | I88: =INDEX(A:A,SMALL(IF(H$3:H$103="x",ROW($3:$103)),ROW(A86))) ->  | J88: =IF($A88<=Berechnen!$C$14,"x","") ->  | K88: =INDEX(A:A,SMALL(IF(J$3:J$103="x",ROW($3:$103)),ROW(A86))) ->  | L88: =IF($A88<=Berechnen!$C$16,"x","") ->  | M88: =INDEX(A:A,SMALL(IF(L$3:L$103="x",ROW($3:$103)),ROW(A86))) -> 
A89: 86 | B89: =IF($A89<=Berechnen!$C$6,"x","") ->  | C89: =INDEX(A:A,SMALL(IF(B$3:B$103="x",ROW($3:$103)),ROW(A87))) ->  | D89: =IF($A89<=Berechnen!$C$8,"x","") ->  | E89: =INDEX(A:A,SMALL(IF(D$3:D$103="x",ROW($3:$103)),ROW(A87))) ->  | F89: =IF($A89<=Berechnen!$C$10,"x","") ->  | G89: =INDEX(A:A,SMALL(IF(F$3:F$103="x",ROW($3:$103)),ROW(A87))) ->  | H89: =IF($A89<=Berechnen!$C$12,"x","") ->  | I89: =INDEX(A:A,SMALL(IF(H$3:H$103="x",ROW($3:$103)),ROW(A87))) ->  | J89: =IF($A89<=Berechnen!$C$14,"x","") ->  | K89: =INDEX(A:A,SMALL(IF(J$3:J$103="x",ROW($3:$103)),ROW(A87))) ->  | L89: =IF($A89<=Berechnen!$C$16,"x","") ->  | M89: =INDEX(A:A,SMALL(IF(L$3:L$103="x",ROW($3:$103)),ROW(A87))) -> 
A90: 87 | B90: =IF($A90<=Berechnen!$C$6,"x","") ->  | C90: =INDEX(A:A,SMALL(IF(B$3:B$103="x",ROW($3:$103)),ROW(A88))) ->  | D90: =IF($A90<=Berechnen!$C$8,"x","") ->  | E90: =INDEX(A:A,SMALL(IF(D$3:D$103="x",ROW($3:$103)),ROW(A88))) ->  | F90: =IF($A90<=Berechnen!$C$10,"x","") ->  | G90: =INDEX(A:A,SMALL(IF(F$3:F$103="x",ROW($3:$103)),ROW(A88))) ->  | H90: =IF($A90<=Berechnen!$C$12,"x","") ->  | I90: =INDEX(A:A,SMALL(IF(H$3:H$103="x",ROW($3:$103)),ROW(A88))) ->  | J90: =IF($A90<=Berechnen!$C$14,"x","") ->  | K90: =INDEX(A:A,SMALL(IF(J$3:J$103="x",ROW($3:$103)),ROW(A88))) ->  | L90: =IF($A90<=Berechnen!$C$16,"x","") ->  | M90: =INDEX(A:A,SMALL(IF(L$3:L$103="x",ROW($3:$103)),ROW(A88))) -> 
A91: 88 | B91: =IF($A91<=Berechnen!$C$6,"x","") ->  | C91: =INDEX(A:A,SMALL(IF(B$3:B$103="x",ROW($3:$103)),ROW(A89))) ->  | D91: =IF($A91<=Berechnen!$C$8,"x","") ->  | E91: =INDEX(A:A,SMALL(IF(D$3:D$103="x",ROW($3:$103)),ROW(A89))) ->  | F91: =IF($A91<=Berechnen!$C$10,"x","") ->  | G91: =INDEX(A:A,SMALL(IF(F$3:F$103="x",ROW($3:$103)),ROW(A89))) ->  | H91: =IF($A91<=Berechnen!$C$12,"x","") ->  | I91: =INDEX(A:A,SMALL(IF(H$3:H$103="x",ROW($3:$103)),ROW(A89))) ->  | J91: =IF($A91<=Berechnen!$C$14,"x","") ->  | K91: =INDEX(A:A,SMALL(IF(J$3:J$103="x",ROW($3:$103)),ROW(A89))) ->  | L91: =IF($A91<=Berechnen!$C$16,"x","") ->  | M91: =INDEX(A:A,SMALL(IF(L$3:L$103="x",ROW($3:$103)),ROW(A89))) -> 
A92: 89 | B92: =IF($A92<=Berechnen!$C$6,"x","") ->  | C92: =INDEX(A:A,SMALL(IF(B$3:B$103="x",ROW($3:$103)),ROW(A90))) ->  | D92: =IF($A92<=Berechnen!$C$8,"x","") ->  | E92: =INDEX(A:A,SMALL(IF(D$3:D$103="x",ROW($3:$103)),ROW(A90))) ->  | F92: =IF($A92<=Berechnen!$C$10,"x","") ->  | G92: =INDEX(A:A,SMALL(IF(F$3:F$103="x",ROW($3:$103)),ROW(A90))) ->  | H92: =IF($A92<=Berechnen!$C$12,"x","") ->  | I92: =INDEX(A:A,SMALL(IF(H$3:H$103="x",ROW($3:$103)),ROW(A90))) ->  | J92: =IF($A92<=Berechnen!$C$14,"x","") ->  | K92: =INDEX(A:A,SMALL(IF(J$3:J$103="x",ROW($3:$103)),ROW(A90))) ->  | L92: =IF($A92<=Berechnen!$C$16,"x","") ->  | M92: =INDEX(A:A,SMALL(IF(L$3:L$103="x",ROW($3:$103)),ROW(A90))) -> 
A93: 90 | B93: =IF($A93<=Berechnen!$C$6,"x","") ->  | C93: =INDEX(A:A,SMALL(IF(B$3:B$103="x",ROW($3:$103)),ROW(A91))) ->  | D93: =IF($A93<=Berechnen!$C$8,"x","") ->  | E93: =INDEX(A:A,SMALL(IF(D$3:D$103="x",ROW($3:$103)),ROW(A91))) ->  | F93: =IF($A93<=Berechnen!$C$10,"x","") ->  | G93: =INDEX(A:A,SMALL(IF(F$3:F$103="x",ROW($3:$103)),ROW(A91))) ->  | H93: =IF($A93<=Berechnen!$C$12,"x","") ->  | I93: =INDEX(A:A,SMALL(IF(H$3:H$103="x",ROW($3:$103)),ROW(A91))) ->  | J93: =IF($A93<=Berechnen!$C$14,"x","") ->  | K93: =INDEX(A:A,SMALL(IF(J$3:J$103="x",ROW($3:$103)),ROW(A91))) ->  | L93: =IF($A93<=Berechnen!$C$16,"x","") ->  | M93: =INDEX(A:A,SMALL(IF(L$3:L$103="x",ROW($3:$103)),ROW(A91))) -> 
A94: 91 | B94: =IF($A94<=Berechnen!$C$6,"x","") ->  | C94: =INDEX(A:A,SMALL(IF(B$3:B$103="x",ROW($3:$103)),ROW(A92))) ->  | D94: =IF($A94<=Berechnen!$C$8,"x","") ->  | E94: =INDEX(A:A,SMALL(IF(D$3:D$103="x",ROW($3:$103)),ROW(A92))) ->  | F94: =IF($A94<=Berechnen!$C$10,"x","") ->  | G94: =INDEX(A:A,SMALL(IF(F$3:F$103="x",ROW($3:$103)),ROW(A92))) ->  | H94: =IF($A94<=Berechnen!$C$12,"x","") ->  | I94: =INDEX(A:A,SMALL(IF(H$3:H$103="x",ROW($3:$103)),ROW(A92))) ->  | J94: =IF($A94<=Berechnen!$C$14,"x","") ->  | K94: =INDEX(A:A,SMALL(IF(J$3:J$103="x",ROW($3:$103)),ROW(A92))) ->  | L94: =IF($A94<=Berechnen!$C$16,"x","") ->  | M94: =INDEX(A:A,SMALL(IF(L$3:L$103="x",ROW($3:$103)),ROW(A92))) -> 
A95: 92 | B95: =IF($A95<=Berechnen!$C$6,"x","") ->  | C95: =INDEX(A:A,SMALL(IF(B$3:B$103="x",ROW($3:$103)),ROW(A93))) ->  | D95: =IF($A95<=Berechnen!$C$8,"x","") ->  | E95: =INDEX(A:A,SMALL(IF(D$3:D$103="x",ROW($3:$103)),ROW(A93))) ->  | F95: =IF($A95<=Berechnen!$C$10,"x","") ->  | G95: =INDEX(A:A,SMALL(IF(F$3:F$103="x",ROW($3:$103)),ROW(A93))) ->  | H95: =IF($A95<=Berechnen!$C$12,"x","") ->  | I95: =INDEX(A:A,SMALL(IF(H$3:H$103="x",ROW($3:$103)),ROW(A93))) ->  | J95: =IF($A95<=Berechnen!$C$14,"x","") ->  | K95: =INDEX(A:A,SMALL(IF(J$3:J$103="x",ROW($3:$103)),ROW(A93))) ->  | L95: =IF($A95<=Berechnen!$C$16,"x","") ->  | M95: =INDEX(A:A,SMALL(IF(L$3:L$103="x",ROW($3:$103)),ROW(A93))) -> 
A96: 93 | B96: =IF($A96<=Berechnen!$C$6,"x","") ->  | C96: =INDEX(A:A,SMALL(IF(B$3:B$103="x",ROW($3:$103)),ROW(A94))) ->  | D96: =IF($A96<=Berechnen!$C$8,"x","") ->  | E96: =INDEX(A:A,SMALL(IF(D$3:D$103="x",ROW($3:$103)),ROW(A94))) ->  | F96: =IF($A96<=Berechnen!$C$10,"x","") ->  | G96: =INDEX(A:A,SMALL(IF(F$3:F$103="x",ROW($3:$103)),ROW(A94))) ->  | H96: =IF($A96<=Berechnen!$C$12,"x","") ->  | I96: =INDEX(A:A,SMALL(IF(H$3:H$103="x",ROW($3:$103)),ROW(A94))) ->  | J96: =IF($A96<=Berechnen!$C$14,"x","") ->  | K96: =INDEX(A:A,SMALL(IF(J$3:J$103="x",ROW($3:$103)),ROW(A94))) ->  | L96: =IF($A96<=Berechnen!$C$16,"x","") ->  | M96: =INDEX(A:A,SMALL(IF(L$3:L$103="x",ROW($3:$103)),ROW(A94))) -> 
A97: 94 | B97: =IF($A97<=Berechnen!$C$6,"x","") ->  | C97: =INDEX(A:A,SMALL(IF(B$3:B$103="x",ROW($3:$103)),ROW(A95))) ->  | D97: =IF($A97<=Berechnen!$C$8,"x","") ->  | E97: =INDEX(A:A,SMALL(IF(D$3:D$103="x",ROW($3:$103)),ROW(A95))) ->  | F97: =IF($A97<=Berechnen!$C$10,"x","") ->  | G97: =INDEX(A:A,SMALL(IF(F$3:F$103="x",ROW($3:$103)),ROW(A95))) ->  | H97: =IF($A97<=Berechnen!$C$12,"x","") ->  | I97: =INDEX(A:A,SMALL(IF(H$3:H$103="x",ROW($3:$103)),ROW(A95))) ->  | J97: =IF($A97<=Berechnen!$C$14,"x","") ->  | K97: =INDEX(A:A,SMALL(IF(J$3:J$103="x",ROW($3:$103)),ROW(A95))) ->  | L97: =IF($A97<=Berechnen!$C$16,"x","") ->  | M97: =INDEX(A:A,SMALL(IF(L$3:L$103="x",ROW($3:$103)),ROW(A95))) -> 
A98: 95 | B98: =IF($A98<=Berechnen!$C$6,"x","") ->  | C98: =INDEX(A:A,SMALL(IF(B$3:B$103="x",ROW($3:$103)),ROW(A96))) ->  | D98: =IF($A98<=Berechnen!$C$8,"x","") ->  | E98: =INDEX(A:A,SMALL(IF(D$3:D$103="x",ROW($3:$103)),ROW(A96))) ->  | F98: =IF($A98<=Berechnen!$C$10,"x","") ->  | G98: =INDEX(A:A,SMALL(IF(F$3:F$103="x",ROW($3:$103)),ROW(A96))) ->  | H98: =IF($A98<=Berechnen!$C$12,"x","") ->  | I98: =INDEX(A:A,SMALL(IF(H$3:H$103="x",ROW($3:$103)),ROW(A96))) ->  | J98: =IF($A98<=Berechnen!$C$14,"x","") ->  | K98: =INDEX(A:A,SMALL(IF(J$3:J$103="x",ROW($3:$103)),ROW(A96))) ->  | L98: =IF($A98<=Berechnen!$C$16,"x","") ->  | M98: =INDEX(A:A,SMALL(IF(L$3:L$103="x",ROW($3:$103)),ROW(A96))) -> 
A99: 96 | B99: =IF($A99<=Berechnen!$C$6,"x","") ->  | C99: =INDEX(A:A,SMALL(IF(B$3:B$103="x",ROW($3:$103)),ROW(A97))) ->  | D99: =IF($A99<=Berechnen!$C$8,"x","") ->  | E99: =INDEX(A:A,SMALL(IF(D$3:D$103="x",ROW($3:$103)),ROW(A97))) ->  | F99: =IF($A99<=Berechnen!$C$10,"x","") ->  | G99: =INDEX(A:A,SMALL(IF(F$3:F$103="x",ROW($3:$103)),ROW(A97))) ->  | H99: =IF($A99<=Berechnen!$C$12,"x","") ->  | I99: =INDEX(A:A,SMALL(IF(H$3:H$103="x",ROW($3:$103)),ROW(A97))) ->  | J99: =IF($A99<=Berechnen!$C$14,"x","") ->  | K99: =INDEX(A:A,SMALL(IF(J$3:J$103="x",ROW($3:$103)),ROW(A97))) ->  | L99: =IF($A99<=Berechnen!$C$16,"x","") ->  | M99: =INDEX(A:A,SMALL(IF(L$3:L$103="x",ROW($3:$103)),ROW(A97))) -> 
A100: 97 | B100: =IF($A100<=Berechnen!$C$6,"x","") ->  | C100: =INDEX(A:A,SMALL(IF(B$3:B$103="x",ROW($3:$103)),ROW(A98))) ->  | D100: =IF($A100<=Berechnen!$C$8,"x","") ->  | E100: =INDEX(A:A,SMALL(IF(D$3:D$103="x",ROW($3:$103)),ROW(A98))) ->  | F100: =IF($A100<=Berechnen!$C$10,"x","") ->  | G100: =INDEX(A:A,SMALL(IF(F$3:F$103="x",ROW($3:$103)),ROW(A98))) ->  | H100: =IF($A100<=Berechnen!$C$12,"x","") ->  | I100: =INDEX(A:A,SMALL(IF(H$3:H$103="x",ROW($3:$103)),ROW(A98))) ->  | J100: =IF($A100<=Berechnen!$C$14,"x","") ->  | K100: =INDEX(A:A,SMALL(IF(J$3:J$103="x",ROW($3:$103)),ROW(A98))) ->  | L100: =IF($A100<=Berechnen!$C$16,"x","") ->  | M100: =INDEX(A:A,SMALL(IF(L$3:L$103="x",ROW($3:$103)),ROW(A98))) -> 
A101: 98 | B101: =IF($A101<=Berechnen!$C$6,"x","") ->  | C101: =INDEX(A:A,SMALL(IF(B$3:B$103="x",ROW($3:$103)),ROW(A99))) ->  | D101: =IF($A101<=Berechnen!$C$8,"x","") ->  | E101: =INDEX(A:A,SMALL(IF(D$3:D$103="x",ROW($3:$103)),ROW(A99))) ->  | F101: =IF($A101<=Berechnen!$C$10,"x","") ->  | G101: =INDEX(A:A,SMALL(IF(F$3:F$103="x",ROW($3:$103)),ROW(A99))) ->  | H101: =IF($A101<=Berechnen!$C$12,"x","") ->  | I101: =INDEX(A:A,SMALL(IF(H$3:H$103="x",ROW($3:$103)),ROW(A99))) ->  | J101: =IF($A101<=Berechnen!$C$14,"x","") ->  | K101: =INDEX(A:A,SMALL(IF(J$3:J$103="x",ROW($3:$103)),ROW(A99))) ->  | L101: =IF($A101<=Berechnen!$C$16,"x","") ->  | M101: =INDEX(A:A,SMALL(IF(L$3:L$103="x",ROW($3:$103)),ROW(A99))) -> 
A102: 99 | B102: =IF($A102<=Berechnen!$C$6,"x","") ->  | C102: =INDEX(A:A,SMALL(IF(B$3:B$103="x",ROW($3:$103)),ROW(A100))) ->  | D102: =IF($A102<=Berechnen!$C$8,"x","") ->  | E102: =INDEX(A:A,SMALL(IF(D$3:D$103="x",ROW($3:$103)),ROW(A100))) ->  | F102: =IF($A102<=Berechnen!$C$10,"x","") ->  | G102: =INDEX(A:A,SMALL(IF(F$3:F$103="x",ROW($3:$103)),ROW(A100))) ->  | H102: =IF($A102<=Berechnen!$C$12,"x","") ->  | I102: =INDEX(A:A,SMALL(IF(H$3:H$103="x",ROW($3:$103)),ROW(A100))) ->  | J102: =IF($A102<=Berechnen!$C$14,"x","") ->  | K102: =INDEX(A:A,SMALL(IF(J$3:J$103="x",ROW($3:$103)),ROW(A100))) ->  | L102: =IF($A102<=Berechnen!$C$16,"x","") ->  | M102: =INDEX(A:A,SMALL(IF(L$3:L$103="x",ROW($3:$103)),ROW(A100))) -> 
A103: 100 | B103: =IF($A103<=Berechnen!$C$6,"x","") ->  | C103: =INDEX(A:A,SMALL(IF(B$3:B$103="x",ROW($3:$103)),ROW(A101))) ->  | D103: =IF($A103<=Berechnen!$C$8,"x","") ->  | E103: =INDEX(A:A,SMALL(IF(D$3:D$103="x",ROW($3:$103)),ROW(A101))) ->  | F103: =IF($A103<=Berechnen!$C$10,"x","") ->  | G103: =INDEX(A:A,SMALL(IF(F$3:F$103="x",ROW($3:$103)),ROW(A101))) ->  | H103: =IF($A103<=Berechnen!$C$12,"x","") ->  | I103: =INDEX(A:A,SMALL(IF(H$3:H$103="x",ROW($3:$103)),ROW(A101))) ->  | J103: =IF($A103<=Berechnen!$C$14,"x","") ->  | K103: =INDEX(A:A,SMALL(IF(J$3:J$103="x",ROW($3:$103)),ROW(A101))) ->  | L103: =IF($A103<=Berechnen!$C$16,"x","") ->  | M103: =INDEX(A:A,SMALL(IF(L$3:L$103="x",ROW($3:$103)),ROW(A101))) -> 
A112: TA
A114: Requirements of set task type | H114: Title / subject line / section headings
A115: (10) Requirements of set task type fully observed | H115: (10) Title / subject line / section headings / salutation / closing appropriate and precise
A116: (9) | H116: (9)
A117: (8) Requirements of set task type almost fully observed | H117: (8) Title / subject line / section headings / salutation / closing appropriate
A118: (7) | H118: (7)
A119: (6) Requirements of set task type mainly observed | H119: (6) Title / subject line / section headings / salutation / closing meaningful and adequately worded
A120: (5) | H120: (5)
A121: (4) Requirements of set task type partially observed | H121: (4) Title / subject line / section headings not meaningful / not adequately worded / partially missing
A122: (3) | H122: (3)
A123: (2) Requirements of set task type not observed | H123: (2) Title / subject line / section headings / salutation / closing not included
A124: (1) | H124: (1)
A128: Content points
A129: (10) All content points addressed and fully developed
A130: (9)
A131: (8) All content points addressed but one or two not fully developed
A132: (7)
A133: (6) Two out of three content points addressed, one may not be fully developed / all content points addressed, but none fully developed
A134: (5)
A135: (4) Two out of three content points addressed but none fully developed / sometimes makes up and develops irrelevant content points
A136: (3)
A137: (2) Only one content point addressed / hardly any content points developed / Frequently makes up and develops irrelevant content points
A138: (1)
A142: Supporting details / examples | K142: Different ideas / facts / graphs or solutions
A143: (10) Relevant supporting details / examples are provided for all content points | K143: (10) Evaluates different ideas / facts / graphs or solutions to a problem very well (TSD)
A144: (9) | K144: (9)
A145: (8) Relevant supporting details / examples provided for most content points (TSD) | K145: (8) Evaluates different ideas / facts / graphs or solutions to a problem well (TSD)
A146: (7) | K146: (7)
A147: (6) Relevant supporting details / examples generally provided | K147: (6) Some attempts to evaluate different ideas / facts / graphs (TSD)
A148: (5) | K148: (5)
A149: (4) Not enough relevant supporting details provided / supporting details sometimes irrelevant or include irrelevant information | K149: (4) Poor attempts to evaluate different ideas / facts / graphs (TSD)
A150: (3) | K150: (3)
A151: (2) Hardly any relevant supporting details provided / supporting details mostly irrelevant | K151: (2) No attempts to evaluate different ideas / facts / graphs (TSD)
A152: (1) | K152: (1)
A156: Explains ad/disadvantages | G156: Reasons in support of / against p.o.v.
A157: (10) Explains ad/disadvantages very well (TSD) | G157: (10) Gives very good reasons in support of / against points of view (TSD)
A158: (9) | G158: (9)
A159: (8) Explains ad/disadvantages well (TSD) | G159: (8) Gives good reasons in support of / against points of view (TSD)
A160: (7) | G160: (7)
A161: (6) Explains ad/disadvantages adequately (TSD) | G161: (6) Gives some reasons in support of / against points of view (TSD)
A162: (5) | G162: (5)
A163: (4) Poor attempts to explain ad/disadvantages (TSD) | G163: (4) Gives poor reasons in support of / against points of view (TSD)
A164: (3) | G164: (3)
A165: (2) No attempts at explaining ad/disadvantages (TSD) | G165: (2) Gives no reasons in support of / against points of view (TSD)
A166: (1) | G166: (1)
A170: Personal significance of events / ideas | I170: Expressing news and views
A171: (10) Successfully and convincingly highlights the personal significance of events / ideas (TSD) | I171: (10) Expresses news and views effectively and relates convincingly to those of others (TSD)
A172: (9) | I172: (9)
A173: (8) Successfully highlights the personal significance of events / ideas (TSD) | I173: (8) Expresses news and views effectively and relates well to those of others (TSD)
A174: (7) | I174: (7)
A175: (6) Highlights the personal significance of events / ideas (TSD) | I175: (6) Expresses news and views effectively and relates to those of others (TSD)
A176: (5) | I176: (5)
A177: (4) Fails to highlight the personal significance of events / ideas (TSD) | I177: (4) Little / no attempt to express news and views effectively (TSD)
A178: (3) | I178: (3)
A179: (2) No attempt to highlight the personal significance of events / ideas (TSD) | I179: (2) Unable to express news and views effectively (TSD)
A180: (1) | I180: (1)
A186: Set word length
A187: (10) Set word length (±10%) observed
A188: (8) Set word length (±10%) observed
A189: (6) Set word length (±10%) observed
A190: (4) Set word length (±10%) NOT observed
A191: (2) Set word length (±10%) NOT observed
A194: Performance/Communication
A195: (0*) Performance fails to address the task
A196: (0) Communication fails due to illegible handwriting
A197: (0) Insufficient language for assessment
A199: OL
A201: Performance of structure | G201: Paragraphing conventions
A202: (10) Performance has a very clear overall structure at the text level | G202: (10) Highly effective use of paragraphing
A203: (9) | G203: (9)
A204: (8) Performance has a clear overall structure at the text level | G204: (8) Good use of paragraphing
A205: (7) | G205: (7)
A206: (6) Performance has a satisfactory overall structure at the text level | G206: (6) Generally follows paragraphing conventions
A207: (5) | G207: (5)
A208: (4) Performance has inadequate overall structure at the text level | G208: (4) Seldom follows paragraphing conventions
A209: (3) | G209: (3)
A210: (2) Performance has little if any structure at the text level | G210: (2) Paragraphing conventions largely ignored
A211: (1) | G211: (1)
A213: Developing points | G213: Relationships between ideas
A214: (10) Develops points in a very clear and systematic way | G214: (10) Marks relationships between ideas in a very clear way
A215: (9) | G215: (9)
A216: (8) Develops points systematically | G216: (8) Most relationships between ideas marked
A217: (7) | G217: (7)
A218: (6) Develops points largely systematically | G218: (6) Some relationships between ideas marked
A219: (5) | G219: (5)
A220: (4) Links only shorter, simple elements into a connected linear sequence | G220: (4) Only a few relationships between ideas marked
A221: (3) | G221: (3)
A222: (2) Ideas are presented in a random order without logical connections
A223: (1)
A225: Linking devices | F225: Clearly intelligible continuous writing
A226: (10) Uses a wide variety of linking devices | F226: (6) Has produced clearly intelligible continuous writing
A227: (9) | F227: (5)
A228: (8) Uses a variety of linking devices | F228: (4) Has difficulty in producing clearly intelligible continuous writing
A229: (7) | F229: (3)
A230: (6) Uses a limited number of linking devices | F230: (2) Lacks clearly intelligible continuous writing
A231: (5) | F231: (1)
A232: (4) Only some simple linking devices used
A233: (3)
... 353 more rows
